Workbook

Sheet poznámky (hidden)
C4: tady by mělo vyjet:
C6: dotaz na počet expertů | H6: =MMULT -> 
C7: počet kritérií
C8: volba typu stanovení kritérií
C9: a pak se uvidí jestli udělat jen pattern či i ostatní
C12: parametry robotů | M12: 1
M13: 2
D18: FALSE
C19: FALSE

Sheet Vstupní data
E2: Počet kritérií: | H2: =_xlnm.Criteria -> 6 | Q2: Tabulka vstupů - kritéria, varianty a jejich hodnoty
E5: Počet expertů | H5: =experti -> 3
E7: Počet expertů | G7: 3 | I7: MIN 1 !!
E8: Počet kritérií | G8: 6 | I8: MAX 15!!
A15: MAX
A16: MIN
A18: MIN | N18: Sloupec1 | O18: Sloupec2 | P18: Sloupec3 | Q18: Sloupec4 | R18: Sloupec5 | S18: Sloupec6 | T18: Sloupec7 | U18: Sloupec8 | V18: Sloupec9 | W18: Sloupec10 | X18: Sloupec11 | Y18: Sloupec12 | Z18: Sloupec13 | AA18: Sloupec14 | AB18: Sloupec15 | AC18: Sloupec16 | AD18: Sloupec17
O19: Kritérium → | P19: K1 | Q19: K2 | R19: K3 | S19: K4 | T19: K5 | U19: K6
O20: Název kr. → | P20: Cena | Q20: Nosnost | R20: Dosah (horinz.) | S20: Opakovatelnost | T20: M-M interface | U20: Flexibilita prog.
O21: Jednotka kr. → | P21: EUR | Q21: kg | R21: m | S21: mm | T21: - | U21: -
D22: Fuzzy převodní tabulka pro přiřazení hodnoty kvalitativním kritériím | N22: Varianta ↓ | O22: Název var.↓ Charakter kr. → | P22: MIN | Q22: MAX | R22: MAX | S22: MIN | T22: MAX | U22: MAX
N23: =IF(O23 <> "", "V1", "") -> V1 | O23: ABB 1600 - 6/1.45 | P23: 28400 | Q23: 6 | R23: 1.45 | S23: 0.02 | T23: 0.7727 | U23: 0.5909
N24: =IF(O24 <> "", "V2", "") -> V2 | O24: ABB 1600 - 10/1.45 | P24: 25600 | Q24: 10 | R24: 1.45 | S24: 0.05 | T24: 0.7727 | U24: 0.5909
N25: =IF(O25 <> "", "V3", "") -> V3 | O25: KUKA KR6 R1820 | P25: 35000 | Q25: 6 | R25: 1.82 | S25: 0.04 | T25: 0.6818 | U25: 0.7727
N26: =IF(O26 <> "", "V4", "") -> V4 | O26: KUKA KR10 R1420 | P26: 29500 | Q26: 10 | R26: 1.42 | S26: 0.04 | T26: 0.6818 | U26: 0.7727
D27: Jazykový pojem | F27: Fuzzy hodnota | N27: =IF(O27 <> "", "V5", "") -> V5 | O27: Yaskawa Motoman HP20F | P27: 36500 | Q27: 20 | R27: 1.72 | S27: 0.06 | T27: 0.5 | U27: 0.5909
N28: =IF(O28 <> "", "V6", "") -> V6 | O28: Fanuc M-10iA/10M | P28: 38000 | Q28: 10 | R28: 1.42 | S28: 0.03 | T28: 0.5909 | U28: 0.6818
A29: ÚROVEŇ / KVALITA | D29: Mimořádně nízká | F29: 0.0455 | N29: =IF(O29 <> "", "V7", "") -> V7 | O29: Fanuc M-10iA/7L | P29: 42000 | Q29: 7 | R29: 1.63 | S29: 0.03 | T29: 0.5909 | U29: 0.6818
N30: =IF(O30 <> "", "V8", "") -> 
D31: Extrémně nízká | F31: 0.1364 | N31: =IF(O31 <> "", "V9", "") -> 
N32: =IF(O32 <> "", "V10", "") -> 
D33: Velmi nízká | F33: 0.2273 | N33: =IF(O33 <> "", "V11", "") -> 
N34: =IF(O34 <> "", "V12", "") -> 
D35: Nízká | F35: 0.3182 | N35: =IF(O35 <> "", "V13", "") -> 
N36: =IF(O36 <> "", "V14", "") -> 
D37: Podprůměrná | F37: 0.4091 | N37: =IF(O37 <> "", "V15", "") -> 
N38: =IF(O38 <> "", "V16", "") -> 
D39: Průměrná | F39: 0.5 | N39: =IF(O39 <> "", "V17", "") -> 
N40: =IF(O40 <> "", "V18", "") -> 
D41: Nadprůměrná | F41: 0.5909 | N41: =IF(O41 <> "", "V19", "") -> 
N42: =IF(O42 <> "", "V20", "") -> 
D43: Vysoká | F43: 0.6818 | N43: =IF(O43 <> "", "V21", "") -> 
N44: =IF(O44 <> "", "V22", "") -> 
D45: Velmi vysoká | F45: 0.7727 | N45: =IF(O45 <> "", "V23", "") -> 
N46: =IF(O46 <> "", "V24", "") -> 
D47: Exrémně vysoká | F47: 0.8636 | N47: =IF(O47 <> "", "V25", "") -> 
N48: =IF(O48 <> "", "V26", "") -> 
D49: Mimořádně vysoká | F49: 0.9545 | N49: =IF(O49 <> "", "V27", "") -> 
N50: =IF(O50 <> "", "V28", "") -> 
N51: =IF(O51 <> "", "V29", "") -> 
N52: =IF(O52 <> "", "V30", "") -> 
E58: MAX
E59: MIN

Sheet Porovnání v trojúhelníku párů
A1: SEZNAM KRITÉRIÍ
A2: =IF('Vstupní data'!P19=0,"",'Vstupní data'!P19) -> K1 | B2: =IF('Vstupní data'!P20=0,"",'Vstupní data'!P20) -> Cena | G2: Porovnání kritérií v trojúhelníku párů
A3: =IF('Vstupní data'!Q19=0,"",'Vstupní data'!Q19) -> K2 | B3: =IF('Vstupní data'!Q20=0,"",'Vstupní data'!Q20) -> Nosnost
A4: =IF('Vstupní data'!R19=0,"",'Vstupní data'!R19) -> K3 | B4: =IF('Vstupní data'!R20=0,"",'Vstupní data'!R20) -> Dosah (horinz.) | V4: Tabulka vah kritérií | AB4: Tabulka počtu zaškrnutí kritérií danými experty
A5: =IF('Vstupní data'!S19=0,"",'Vstupní data'!S19) -> K4 | B5: =IF('Vstupní data'!S20=0,"",'Vstupní data'!S20) -> Opakovatelnost
A6: =IF('Vstupní data'!T19=0,"",'Vstupní data'!T19) -> K5 | B6: =IF('Vstupní data'!T20=0,"",'Vstupní data'!T20) -> M-M interface
A7: =IF('Vstupní data'!U19=0,"",'Vstupní data'!U19) -> K6 | B7: =IF('Vstupní data'!U20=0,"",'Vstupní data'!U20) -> Flexibilita prog.
A8: =IF('Vstupní data'!V19=0,"",'Vstupní data'!V19) ->  | B8: =IF('Vstupní data'!V20=0,"",'Vstupní data'!V20) ->  | W8: Kritérium | X8: Váha kritéria | AC8: Kritéria
A9: =IF('Vstupní data'!W19=0,"",'Vstupní data'!W19) ->  | B9: =IF('Vstupní data'!W20=0,"",'Vstupní data'!W20) ->  | W9: 1 | X9: 0.2666666667 | AB9: Experti | AC9: 1 | AD9: 2 | AE9: 3 | AF9: 4 | AG9: 5 | AH9: 6 | AI9: Celkový součet
A10: =IF('Vstupní data'!X19=0,"",'Vstupní data'!X19) ->  | B10: =IF('Vstupní data'!X20=0,"",'Vstupní data'!X20) ->  | W10: 2 | X10: 0.08888888889 | AB10: 1
A11: =IF('Vstupní data'!Y19=0,"",'Vstupní data'!Y19) ->  | B11: =IF('Vstupní data'!Y20=0,"",'Vstupní data'!Y20) ->  | W11: 3 | X11: 0.1777777778 | AB11: Počet zaškrtnutí | AC11: 4 | AD11: 1 | AE11: 3 | AF11: 5 | AG11: 0 | AH11: 2 | AI11: 15
A12: =IF('Vstupní data'!Z19=0,"",'Vstupní data'!Z19) ->  | B12: =IF('Vstupní data'!Z20=0,"",'Vstupní data'!Z20) ->  | W12: 4 | X12: 0.2888888889 | AB12: Dílčí pořadí | AC12: 2 | AD12: 5 | AE12: 3 | AF12: 1 | AG12: 6 | AH12: 4 | AI12: 21
A13: =IF('Vstupní data'!AA19=0,"",'Vstupní data'!AA19) ->  | B13: =IF('Vstupní data'!AA20=0,"",'Vstupní data'!AA20) ->  | W13: 5 | X13: 0.06666666667 | AB13: 2
A14: =IF('Vstupní data'!AB19=0,"",'Vstupní data'!AB19) ->  | B14: =IF('Vstupní data'!AB20=0,"",'Vstupní data'!AB20) ->  | W14: 6 | X14: 0.1111111111 | AB14: Počet zaškrtnutí | AC14: 5 | AD14: 3 | AE14: 1 | AF14: 3 | AG14: 2 | AH14: 1 | AI14: 15
A15: =IF('Vstupní data'!AC19=0,"",'Vstupní data'!AC19) ->  | B15: =IF('Vstupní data'!AC20=0,"",'Vstupní data'!AC20) ->  | W15: Celkový součet | X15: 1 | AB15: Dílčí pořadí | AC15: 1 | AD15: 2.5 | AE15: 5.5 | AF15: 2.5 | AG15: 4 | AH15: 5.5 | AI15: 21
A16: =IF('Vstupní data'!AD19=0,"",'Vstupní data'!AD19) ->  | B16: =IF('Vstupní data'!AD20=0,"",'Vstupní data'!AD20) ->  | AB16: 3
AB17: Počet zaškrtnutí | AC17: 3 | AD17: 0 | AE17: 4 | AF17: 5 | AG17: 1 | AH17: 2 | AI17: 15
AB18: Dílčí pořadí | AC18: 3 | AD18: 6 | AE18: 2 | AF18: 1 | AG18: 5 | AH18: 4 | AI18: 21
AB19: Celkem Počet zaškrtnutí | AC19: 12 | AD19: 4 | AE19: 8 | AF19: 13 | AG19: 3 | AH19: 5 | AI19: 45
AB20: Celkem Dílčí pořadí | AC20: 6 | AD20: 13.5 | AE20: 10.5 | AF20: 4.5 | AG20: 15 | AH20: 13.5 | AI20: 63
AW24: W:
AW25: Součet pořadí kritéria
V26: Kendallův koeficient shody expertů W = | Y26: =IFERROR(AX44,"") -> 0.6116504854 | AW26: KRIT | AX26: SOUCET PORADI | BA26: Zavorka1 | BC26: T | BD26: =IFERROR('Uložení hodnot z trojúhelníku'!H1,"") -> 12
AW27: 1 | AX27: =IFERROR(GETPIVOTDATA("[Measures].[Součet Dílčí pořadí kritéria]",$AB$8,"[Tabulka1].[Kritéria]","[Tabulka1].[Kritéria].&[1]"),"") -> 6 | AY27: =IFERROR(IFERROR(AX27^2,""),"") -> 36 | BA27: =IFERROR((AX27-(experti*(_xlnm.Criteria+1)/2))^2,"") -> 20.25 | BB27: =IFERROR(SUM(IF(ISERR($BA$27:$BA$42),0,BA27)),"") -> 20.25 | BC27: krit | BD27: =IFERROR(MAX(A158:A175),"") -> 6
AW28: 2 | AX28: =IFERROR(GETPIVOTDATA("[Measures].[Součet Dílčí pořadí kritéria]",$AB$8,"[Tabulka1].[Kritéria]","[Tabulka1].[Kritéria].&[2]"),"") -> 13.5 | AY28: 182.25 | BA28: =IFERROR((AX28-(experti*(_xlnm.Criteria+1))/2)^2,"") -> 9 | BB28: 9
A29: Počet zadávajících expertů | E29: =IFERROR(experti,"") -> 3 | AW29: 3 | AX29: =IFERROR(GETPIVOTDATA("[Measures].[Součet Dílčí pořadí kritéria]",$AB$8,"[Tabulka1].[Kritéria]","[Tabulka1].[Kritéria].&[3]"),"") -> 10.5 | AY29: 110.25 | BA29: 0 | BB29: 0
AW30: 4 | AX30: =IFERROR(GETPIVOTDATA("[Measures].[Součet Dílčí pořadí kritéria]",$AB$8,"[Tabulka1].[Kritéria]","[Tabulka1].[Kritéria].&[4]"),"") -> 4.5 | AY30: 20.25 | BA30: 36 | BB30: 36
A31: Počet vyplněných expertů | E31: =IFERROR('Uložení hodnot z trojúhelníku'!G1,"") -> 3 | AW31: 5 | AX31: =IFERROR(GETPIVOTDATA("[Measures].[Součet Dílčí pořadí kritéria]",$AB$8,"[Tabulka1].[Kritéria]","[Tabulka1].[Kritéria].&[5]"),"") -> 15 | AY31: 225 | BA31: 20.25 | BB31: 20.25
AW32: 6 | AX32: =IFERROR(GETPIVOTDATA("[Measures].[Součet Dílčí pořadí kritéria]",$AB$8,"[Tabulka1].[Kritéria]","[Tabulka1].[Kritéria].&[6]"),"") -> 13.5 | AY32: 182.25 | BA32: 9 | BB32: 9
AW33: 7 | AX33: =IFERROR(GETPIVOTDATA("[Measures].[Součet Dílčí pořadí kritéria]",$AB$8,"[Tabulka1].[Kritéria]","[Tabulka1].[Kritéria].&[7]"),"") ->  | BB33: 0
AW34: 8 | AX34: =IFERROR(GETPIVOTDATA("[Measures].[Součet Dílčí pořadí kritéria]",$AB$8,"[Tabulka1].[Kritéria]","[Tabulka1].[Kritéria].&[8]"),"") ->  | BB34: 0
AW35: 9 | AX35: =IFERROR(GETPIVOTDATA("[Measures].[Součet Dílčí pořadí kritéria]",$AB$8,"[Tabulka1].[Kritéria]","[Tabulka1].[Kritéria].&[9]"),"") ->  | BB35: 0
AW36: 10 | AX36: =IFERROR(GETPIVOTDATA("[Measures].[Součet Dílčí pořadí kritéria]",$AB$8,"[Tabulka1].[Kritéria]","[Tabulka1].[Kritéria].&[10]"),"") ->  | BB36: 0
AW37: 11 | AX37: =IFERROR(GETPIVOTDATA("[Measures].[Součet Dílčí pořadí kritéria]",$AB$8,"[Tabulka1].[Kritéria]","[Tabulka1].[Kritéria].&[11]"),"") ->  | BB37: 0
AW38: 12 | AX38: =IFERROR(GETPIVOTDATA("[Measures].[Součet Dílčí pořadí kritéria]",$AB$8,"[Tabulka1].[Kritéria]","[Tabulka1].[Kritéria].&[12]"),"") ->  | BB38: 0
AW39: 13 | AX39: =IFERROR(GETPIVOTDATA("[Measures].[Součet Dílčí pořadí kritéria]",$AB$8,"[Tabulka1].[Kritéria]","[Tabulka1].[Kritéria].&[13]"),"") ->  | BB39: 0
AW40: 14 | AX40: =IFERROR(GETPIVOTDATA("[Measures].[Součet Dílčí pořadí kritéria]",$AB$8,"[Tabulka1].[Kritéria]","[Tabulka1].[Kritéria].&[14]"),"") ->  | BB40: 0
AW41: 15 | AX41: =IFERROR(GETPIVOTDATA("[Measures].[Součet Dílčí pořadí kritéria]",$AB$8,"[Tabulka1].[Kritéria]","[Tabulka1].[Kritéria].&[15]"),"") ->  | BB41: 0
AZ42: SUMA | BA42: =IFERROR(SUM(IF(ISERR(BA27:BA42),"",BA27:BA42)),"") -> 0 | BB42: =IFERROR(SUM(BB27:BB41),"") -> 94.5
BA43: S | BB43: =IFERROR((SUM(AY27:AY41)),"") -> 756
AW44: HODNOTA W | AX44: =IFERROR(((12*BB43)-(3*experti^2*_xlnm.Criteria*((_xlnm.Criteria+1)^2)))/(((experti^2)*(_xlnm.Criteria^3-_xlnm.Criteria))-(experti*BD26)),1) -> 0.6116504854
W57: 2 | X57: 3 | Y57: 4 | Z57: 5 | AA57: 6 | AB57: 7 | AC57: 8 | AD57: 9 | AE57: 10 | AF57: 11 | AG57: 12 | AH57: 13 | AI57: 14 | AJ57: 15 | AK57: 16
G58: FALSE | H58: FALSE | I58: FALSE | J58: FALSE | K58: FALSE | V58: 15 | W58: =IFERROR(AND(G58,G59)*1,"") -> 0 | X58: 0 | Y58: 0 | Z58: 0 | AA58: 0
G59: FALSE | H59: FALSE | I59: FALSE | J59: FALSE | K59: FALSE | V59: 14 | X59: =IFERROR(AND(H60,H61)*1,"") -> 0 | Y59: 0 | Z59: 0 | AA59: 0
H60: FALSE | I60: FALSE | J60: FALSE | K60: FALSE | V60: 13 | Y60: =IFERROR(AND(I62,I63)*1,"") -> 0 | Z60: 0 | AA60: 0
H61: FALSE | I61: FALSE | J61: FALSE | K61: FALSE | V61: 12 | Z61: =IFERROR(AND(J64,J65)*1,"") -> 0 | AA61: 0
I62: FALSE | J62: FALSE | K62: FALSE | V62: 11 | AA62: =IFERROR(AND(K66,K67)*1,"") -> 0
I63: FALSE | J63: FALSE | K63: FALSE | V63: 10 | AB63: =IFERROR(AND(L68,L69)*1,"") -> 
J64: FALSE | K64: FALSE | V64: 9 | AC64: =IFERROR(AND(M70,M71)*1,"") -> 
J65: FALSE | K65: FALSE | V65: 8 | AD65: =IFERROR(AND(N72,N73)*1,"") -> 
K66: FALSE | V66: 7 | AE66: =IFERROR(AND(O74,O75)*1,"") -> 
K67: FALSE | V67: 6 | AF67: =IFERROR(AND(P76,P77)*1,"") ->  | AG67: =IFERROR(AND(Q76,Q77)*1,"") ->  | AH67: =IFERROR(AND(R76,R77)*1,"") ->  | AI67: =IFERROR(AND(S76,S77)*1,"") ->  | AJ67: =IFERROR(AND(T76,T77)*1,"") -> 
V68: 5 | AG68: =IFERROR(AND(Q78,Q79)*1,"") ->  | AH68: =IFERROR(AND(R78,R79)*1,"") ->  | AI68: =IFERROR(AND(S78,S79)*1,"") ->  | AJ68: =IFERROR(AND(T78,T79)*1,"") -> 
V69: 4 | AH69: =IFERROR(AND(R80,R81)*1,"") ->  | AI69: =IFERROR(AND(S80,S81)*1,"") ->  | AJ69: =IFERROR(AND(T80,T81)*1,"") -> 
V70: 3 | AI70: =IFERROR(AND(S82,S83)*1,"") ->  | AJ70: =IFERROR(AND(T82,T83)*1,"") -> 
V71: 2 | AJ71: =IFERROR(AND(T84,T85)*1,"") -> 
V72: 1
W73: =MAX(W58:AA62) -> 0
W75: KONTROLA DVOJIC:
G108: 1 | H108: 1 | I108: 1 | J108: 1 | K108: 1
G109: 2 | H109: 3 | I109: 4 | J109: 5 | K109: 6
H110: 2 | I110: 2 | J110: 2 | K110: 2
H111: 3 | I111: 4 | J111: 5 | K111: 6
I112: 3 | J112: 3 | K112: 3
I113: 4 | J113: 5 | K113: 6
J114: 4 | K114: 4
J115: 5 | K115: 6
K116: 5
K117: 6
A132: Kritérium | B132: Korekce remíz
A133: 1 | B133: =IFERROR(COUNTIF($W$158:$AJ$185, A133)/2,"") -> 0
A134: 2 | B134: 0
A135: 3 | B135: 0
A136: 4 | B136: 0
A137: 5 | B137: 0
A138: 6 | B138: 0
A139: 7 | B139: 0
A140: 8 | B140: 0
A141: 9 | B141: 0
A142: 10 | B142: 0
A143: 11 | B143: 0
A144: 12 | B144: 0
A145: 13 | B145: 0
A146: 14 | B146: 0
A147: 15 | B147: 0
A152: celk. počet kroužků | C152: kontrolní hodnota kroužků
B153: =IFERROR(SUM(B158:B172),"") -> 0 | D153: =IFERROR(_xlnm.Criteria*(_xlnm.Criteria-1)/2,"") -> 15
A157: Kritérium | B157: Počet | C157: id experta | D157: Pořadí | E157: Počet remíz -1
A158: 1 | B158: =COUNTIF($G$158:$T$185, A158)-B133 -> 0 | C158: 4 | D158: =_xlfn.RANK.AVG(B158, B$158:B163) -> 3.5 | E158: =IFERROR(IF(A158<>"",IF(COUNTIF($B$157:B157,B158)=0,COUNTIF(B159:$B172,B158),0),0),"") -> 5 | G158: =IF(G58 = TRUE, G108, 0) -> 0 | H158: 0 | I158: 0 | J158: 0 | K158: 0 | W158: =IFERROR(G158*W58,"") -> 0 | X158: 0 | Y158: 0 | Z158: 0 | AA158: 0
A159: 2 | B159: 0 | C159: 4 | D159: =_xlfn.RANK.AVG(B159, B$158:B163) -> 3.5 | E159: =IFERROR(IF(A159<>"",IF(COUNTIF($B$157:B158,B159)=0,COUNTIF(B160:$B173,B159),0),0),"") -> 0 | G159: 0 | H159: 0 | I159: 0 | J159: 0 | K159: 0 | W159: =IFERROR(G159*W58,"") -> 0 | X159: 0 | Y159: 0 | Z159: 0 | AA159: 0
A160: 3 | B160: 0 | C160: 4 | D160: =_xlfn.RANK.AVG(B160, B$158:B163) -> 3.5 | E160: =IFERROR(IF(A160<>"",IF(COUNTIF($B$157:B159,B160)=0,COUNTIF(B161:$B174,B160),0),0),"") -> 0 | H160: =IF(H60 = TRUE, H110, 0) -> 0 | I160: 0 | J160: 0 | K160: 0 | X160: =IFERROR(H160*X59,"") -> 0 | Y160: 0 | Z160: 0 | AA160: 0
A161: 4 | B161: 0 | C161: 4 | D161: =_xlfn.RANK.AVG(B161, B$158:B163) -> 3.5 | E161: =IFERROR(IF(A161<>"",IF(COUNTIF($B$157:B160,B161)=0,COUNTIF(B162:$B175,B161),0),0),"") -> 0 | H161: 0 | I161: 0 | J161: 0 | K161: 0 | X161: =IFERROR(H161*X59,"") -> 0 | Y161: 0 | Z161: 0 | AA161: 0
A162: 5 | B162: 0 | C162: 4 | D162: =_xlfn.RANK.AVG(B162, B$158:B163) -> 3.5 | E162: =IFERROR(IF(A162<>"",IF(COUNTIF($B$157:B161,B162)=0,COUNTIF(B163:$B176,B162),0),0),"") -> 0 | I162: =IF(I62 = TRUE, I112, 0) -> 0 | J162: 0 | K162: 0 | Y162: =IFERROR(I162*Y60,"") -> 0 | Z162: 0 | AA162: 0
A163: 6 | B163: 0 | C163: 4 | D163: =_xlfn.RANK.AVG(B163, B$158:B163) -> 3.5 | E163: =IFERROR(IF(A163<>"",IF(COUNTIF($B$157:B162,B163)=0,COUNTIF(B164:$B177,B163),0),0),"") -> 0 | I163: 0 | J163: 0 | K163: 0 | Y163: =IFERROR(I163*Y60,"") -> 0 | Z163: 0 | AA163: 0
E164: =IFERROR(IF(A164<>"",IF(COUNTIF($B$157:B163,B164)=0,COUNTIF(B165:$B178,B164),0),0),"") -> 0 | J164: =IF(J64 = TRUE, J114, 0) -> 0 | K164: =IF(K64 = TRUE, K114, 0) -> 0 | Z164: =IFERROR(J164*Z61,"") -> 0 | AA164: 0
E165: =IFERROR(IF(A165<>"",IF(COUNTIF($B$157:B164,B165)=0,COUNTIF(B166:$B179,B165),0),0),"") -> 0 | J165: =IF(J65 = TRUE, J115, 0) -> 0 | K165: =IF(K65 = TRUE, K115, 0) -> 0 | Z165: =IFERROR(J165*Z61,"") -> 0 | AA165: 0
E166: =IFERROR(IF(A166<>"",IF(COUNTIF($B$157:B165,B166)=0,COUNTIF(B167:$B180,B166),0),0),"") -> 0 | K166: =IF(K66 = TRUE, K116, 0) -> 0 | AA166: =IFERROR(K166*AA62,"") -> 0
E167: =IFERROR(IF(A167<>"",IF(COUNTIF($B$157:B166,B167)=0,COUNTIF(B168:$B181,B167),0),0),"") -> 0 | K167: =IF(K67 = TRUE, K117, 0) -> 0 | AA167: =IFERROR(K167*AA62,"") -> 0
E168: =IFERROR(IF(A168<>"",IF(COUNTIF($B$157:B167,B168)=0,COUNTIF(B169:$B182,B168),0),0),"") -> 0 | AB168: =IFERROR(L168*AB63,"") -> 
E169: =IFERROR(IF(A169<>"",IF(COUNTIF($B$157:B168,B169)=0,COUNTIF(B170:$B183,B169),0),0),"") -> 0 | AB169: =IFERROR(L169*AB63,"") -> 
E170: =IFERROR(IF(A170<>"",IF(COUNTIF($B$157:B169,B170)=0,COUNTIF(B171:$B184,B170),0),0),"") -> 0 | AC170: =IFERROR(M170*AC64,"") -> 
E171: =IFERROR(IF(A171<>"",IF(COUNTIF($B$157:B170,B171)=0,COUNTIF(B172:$B185,B171),0),0),"") -> 0 | AC171: =IFERROR(M171*AC64,"") -> 
E172: =IFERROR(IF(A172<>"",IF(COUNTIF($B$157:B171,B172)=0,COUNTIF(B173:$B186,B172),0),0),"") -> 0 | AD172: =IFERROR(N172*AD65,"") -> 
AD173: =IFERROR(N173*AD65,"") -> 
AE174: =IFERROR(O174*AE66,"") -> 
AE175: =IFERROR(O175*AE66,"") -> 
AF176: =IFERROR(P176*AF67,"") ->  | AG176: =IFERROR(Q176*AG67,"") ->  | AH176: =IFERROR(R176*AH67,"") ->  | AI176: =IFERROR(S176*AI67,"") ->  | AJ176: =IFERROR(T176*AJ67,"") -> 
AF177: =IFERROR(P177*AF67,"") ->  | AG177: =IFERROR(Q177*AG67,"") ->  | AH177: =IFERROR(R177*AH67,"") ->  | AI177: =IFERROR(S177*AI67,"") ->  | AJ177: =IFERROR(T177*AJ67,"") -> 
AG178: =IFERROR(Q178*AG68,"") ->  | AH178: =IFERROR(R178*AH68,"") ->  | AI178: =IFERROR(S178*AI68,"") ->  | AJ178: =IFERROR(T178*AJ68,"") -> 
AG179: =IFERROR(Q179*AG68,"") ->  | AH179: =IFERROR(R179*AH68,"") ->  | AI179: =IFERROR(S179*AI68,"") ->  | AJ179: =IFERROR(T179*AJ68,"") -> 
AH180: =IFERROR(R180*AH69,"") ->  | AI180: =IFERROR(S180*AI69,"") ->  | AJ180: =IFERROR(T180*AJ69,"") -> 
AH181: =IFERROR(R181*AH69,"") ->  | AI181: =IFERROR(S181*AI69,"") ->  | AJ181: =IFERROR(T181*AJ69,"") -> 
AI182: =IFERROR(S182*AI70,"") ->  | AJ182: =IFERROR(T182*AJ70,"") -> 
AI183: =IFERROR(S183*AI70,"") ->  | AJ183: =IFERROR(T183*AJ70,"") -> 
AJ184: =IFERROR(T184*AJ71,"") -> 
AJ185: =IFERROR(T185*AJ71,"") -> 

Sheet Uložení hodnot z trojúhelníku
A1: Kritéria | B1: Počet | C1: Expert | D1: Dílčí pořadí kritéria | E1: Počet členů v remíze -1 | G1: =MAX(C:C) -> 3 | H1: =SUMPRODUCT((Tabulka1[Počet členů v remíze -1]+1)^3-(Tabulka1[Počet členů v remíze -1]+1)) -> 12 | J1: =SUMSQ(Tabulka1[Dílčí pořadí kritéria]) -> 272
A2: 1 | B2: 4 | C2: 1 | D2: 2 | E2: 0
A3: 2 | B3: 1 | C3: 1 | D3: 5 | E3: 0
A4: 3 | B4: 3 | C4: 1 | D4: 3 | E4: 0
A5: 4 | B5: 5 | C5: 1 | D5: 1 | E5: 0
A6: 5 | B6: 0 | C6: 1 | D6: 6 | E6: 0
A7: 6 | B7: 2 | C7: 1 | D7: 4 | E7: 0
A8: 1 | B8: 5 | C8: 2 | D8: 1 | E8: 0
A9: 2 | B9: 3 | C9: 2 | D9: 2.5 | E9: 1
A10: 3 | B10: 1 | C10: 2 | D10: 5.5 | E10: 1
A11: 4 | B11: 3 | C11: 2 | D11: 2.5 | E11: 0
A12: 5 | B12: 2 | C12: 2 | D12: 4 | E12: 0
A13: 6 | B13: 1 | C13: 2 | D13: 5.5 | E13: 0
A14: 1 | B14: 3 | C14: 3 | D14: 3 | E14: 0
A15: 2 | B15: 0 | C15: 3 | D15: 6 | E15: 0
A16: 3 | B16: 4 | C16: 3 | D16: 2 | E16: 0
A17: 4 | B17: 5 | C17: 3 | D17: 1 | E17: 0
A18: 5 | B18: 1 | C18: 3 | D18: 5 | E18: 0
A19: 6 | B19: 2 | C19: 3 | D19: 4 | E19: 0
E20: 0
E21: 0
E22: 0
E23: 0
E24: 0
E25: 0
E26: 0
E27: 0
E28: 0

Sheet Metoda PATTERN
D15: Hodnocení technické úrovně metodou PATTERN:
BY20: VARIANTY | BZ20: VÝZNAMNOSTI | CG20: Popisky řádků | CH20: Součet z VÝZNAMNOSTI
D21: Kritérium (parametr) | F21: Jednotka | G21: Váha (q) | H21: ='Vstupní data'!N23 -> V1 | J21: ='Vstupní data'!N24 -> V2 | L21: ='Vstupní data'!N25 -> V3 | N21: ='Vstupní data'!N26 -> V4 | P21: ='Vstupní data'!N27 -> V5 | R21: ='Vstupní data'!N28 -> V6 | T21: ='Vstupní data'!N29 -> V7 | V21: ='Vstupní data'!N30 ->  | X21: ='Vstupní data'!N31 ->  | Z21: ='Vstupní data'!N32 ->  | AB21: ='Vstupní data'!N33 ->  | AD21: ='Vstupní data'!N34 ->  | AF21: ='Vstupní data'!N35 ->  | AH21: ='Vstupní data'!N36 ->  | AJ21: ='Vstupní data'!N37 ->  | AL21: ='Vstupní data'!N38 ->  | AN21: ='Vstupní data'!N39 ->  | AP21: ='Vstupní data'!N40 ->  | AR21: ='Vstupní data'!N41 ->  | AT21: ='Vstupní data'!N42 ->  | AV21: ='Vstupní data'!N43 ->  | AX21: ='Vstupní data'!N44 ->  | AZ21: ='Vstupní data'!N45 ->  | BB21: ='Vstupní data'!N46 ->  | BD21: ='Vstupní data'!N47 ->  | BF21: ='Vstupní data'!N48 ->  | BH21: ='Vstupní data'!N49 ->  | BJ21: ='Vstupní data'!N50 ->  | BL21: ='Vstupní data'!N51 ->  | BN21: ='Vstupní data'!N52 ->  | BY21: =H21 -> V1 | BZ21: =H53 -> 1.745593177 | CG21: V1 | CH21: 1.745593177
H22: =IF(H21 <> "", 'Vstupní data'!O23, "") -> ABB 1600 - 6/1.45 | J22: =IF(J21 <> "", 'Vstupní data'!O24, "") -> ABB 1600 - 10/1.45 | L22: =IF(L21 <> "", 'Vstupní data'!O25, "") -> KUKA KR6 R1820 | N22: =IF(N21 <> "", 'Vstupní data'!O26, "") -> KUKA KR10 R1420 | P22: =IF(P21 <> "", 'Vstupní data'!O27, "") -> Yaskawa Motoman HP20F | R22: =IF(R21 <> "", 'Vstupní data'!O28, "") -> Fanuc M-10iA/10M | T22: =IF(T21 <> "", 'Vstupní data'!O29, "") -> Fanuc M-10iA/7L | V22: =IF(V21 <> "", 'Vstupní data'!O30, "") ->  | X22: =IF(X21 <> "", 'Vstupní data'!O31, "") ->  | Z22: =IF(Z21 <> "", 'Vstupní data'!O32, "") ->  | AB22: =IF(AB21 <> "", 'Vstupní data'!O33, "") ->  | AD22: =IF(AD21 <> "", 'Vstupní data'!O34, "") ->  | AF22: =IF(AF21 <> "", 'Vstupní data'!O35, "") ->  | AH22: =IF(AH21 <> "", 'Vstupní data'!O36, "") ->  | AJ22: =IF(AJ21 <> "", 'Vstupní data'!O37, "") ->  | AL22: =IF(AL21 <> "", 'Vstupní data'!O38, "") ->  | AN22: =IF(AN21 <> "", 'Vstupní data'!O39, "") ->  | AP22: =IF(AP21 <> "", 'Vstupní data'!O40, "") ->  | AR22: =IF(AR21 <> "", 'Vstupní data'!O41, "") ->  | AT22: =IF(AT21 <> "", 'Vstupní data'!O42, "") ->  | AV22: =IF(AV21 <> "", 'Vstupní data'!O43, "") ->  | AX22: =IF(AX21 <> "", 'Vstupní data'!O44, "") ->  | AZ22: =IF(AZ21 <> "", 'Vstupní data'!O45, "") ->  | BB22: =IF(BB21 <> "", 'Vstupní data'!O46, "") ->  | BD22: =IF(BD21 <> "", 'Vstupní data'!O47, "") ->  | BF22: =IF(BF21 <> "", 'Vstupní data'!O48, "") ->  | BH22: =IF(BH21 <> "", 'Vstupní data'!O49, "") ->  | BJ22: =IF(BJ21 <> "", 'Vstupní data'!O50, "") ->  | BL22: =IF(BL21 <> "", 'Vstupní data'!O51, "") ->  | BN22: =IF(BN21 <> "", 'Vstupní data'!O52, "") ->  | BY22: =J21 -> V2 | BZ22: =J53 -> 1.327986239 | CG22: V2 | CH22: 1.327986239
D23: ='Vstupní data'!P19 -> K1 | E23: ='Vstupní data'!P20 -> Cena | F23: ='Vstupní data'!P21 -> EUR | G23: =IFERROR(GETPIVOTDATA("[Measures].[Míra 1]",'Porovnání v trojúhelníku párů'!$W$8,"[Tabulka1].[Kritéria]","[Tabulka1].[Kritéria].&[1]"),0) -> 0.2666666667 | H23: ='Vstupní data'!P23 -> 28400 | J23: ='Vstupní data'!P24 -> 25600 | L23: ='Vstupní data'!P25 -> 35000 | N23: ='Vstupní data'!P26 -> 29500 | P23: ='Vstupní data'!P27 -> 36500 | R23: ='Vstupní data'!P28 -> 38000 | T23: ='Vstupní data'!P29 -> 42000 | V23: ='Vstupní data'!P30 -> 0 | X23: ='Vstupní data'!P31 -> 0 | Z23: ='Vstupní data'!P32 -> 0 | AB23: ='Vstupní data'!P33 -> 0 | AD23: ='Vstupní data'!P34 -> 0 | AF23: ='Vstupní data'!P35 -> 0 | AH23: ='Vstupní data'!P36 -> 0 | AJ23: ='Vstupní data'!P37 -> 0 | AL23: ='Vstupní data'!P38 -> 0 | AN23: ='Vstupní data'!P39 -> 0 | AP23: ='Vstupní data'!P40 -> 0 | AR23: ='Vstupní data'!P41 -> 0 | AT23: ='Vstupní data'!P42 -> 0 | AV23: ='Vstupní data'!P43 -> 0 | AX23: ='Vstupní data'!P44 -> 0 | AZ23: ='Vstupní data'!P45 -> 0 | BB23: ='Vstupní data'!P46 -> 0 | BD23: ='Vstupní data'!P47 -> 0 | BF23: ='Vstupní data'!P48 -> 0 | BH23: ='Vstupní data'!P49 -> 0 | BJ23: ='Vstupní data'!P50 -> 0 | BL23: ='Vstupní data'!P51 -> 0 | BN23: ='Vstupní data'!P52 -> 0 | BY23: =L21 -> V3 | BZ23: =L53 -> 1.306281166 | CG23: V3 | CH23: 1.306281166
H24: =IFERROR(IF('Vstupní data'!$P$22="MAX",H23/SMALL($H$23:$BO$23,COUNTIF($H$23:$BO$23,0)+1),MAX($H$23:$BO$23)/H23),"") -> 1.478873239 | I24: =IFERROR($G23*H24,"") -> 0.3943661972 | J24: =IFERROR(IF('Vstupní data'!$P$22="MAX",J23/SMALL($H$23:$BO$23,COUNTIF($H$23:$BO$23,0)+1),MAX($H$23:$BO$23)/J23),"") -> 1.640625 | K24: =IFERROR($G23*J24,"") -> 0.4375 | L24: =IFERROR(IF('Vstupní data'!$P$22="MAX",L23/SMALL($H$23:$BO$23,COUNTIF($H$23:$BO$23,0)+1),MAX($H$23:$BO$23)/L23),"") -> 1.2 | M24: =IFERROR($G23*L24,"") -> 0.32 | N24: =IFERROR(IF('Vstupní data'!$P$22="MAX",N23/SMALL($H$23:$BO$23,COUNTIF($H$23:$BO$23,0)+1),MAX($H$23:$BO$23)/N23),"") -> 1.423728814 | O24: =IFERROR($G23*N24,"") -> 0.3796610169 | P24: =IFERROR(IF('Vstupní data'!$P$22="MAX",P23/SMALL($H$23:$BO$23,COUNTIF($H$23:$BO$23,0)+1),MAX($H$23:$BO$23)/P23),"") -> 1.150684932 | Q24: =IFERROR($G23*P24,"") -> 0.3068493151 | R24: =IFERROR(IF('Vstupní data'!$P$22="MAX",R23/SMALL($H$23:$BO$23,COUNTIF($H$23:$BO$23,0)+1),MAX($H$23:$BO$23)/R23),"") -> 1.105263158 | S24: =IFERROR($G23*R24,"") -> 0.2947368421 | T24: =IFERROR(IF('Vstupní data'!$P$22="MAX",T23/SMALL($H$23:$BO$23,COUNTIF($H$23:$BO$23,0)+1),MAX($H$23:$BO$23)/T23),"") -> 1 | U24: =IFERROR($G23*T24,"") -> 0.2666666667 | V24: =IFERROR(IF('Vstupní data'!$P$22="MAX",V23/SMALL($H$23:$BO$23,COUNTIF($H$23:$BO$23,0)+1),MAX($H$23:$BO$23)/V23),"") ->  | W24: =IFERROR($G23*V24,"") ->  | X24: =IFERROR(IF('Vstupní data'!$P$22="MAX",X23/SMALL($H$23:$BO$23,COUNTIF($H$23:$BO$23,0)+1),MAX($H$23:$BO$23)/X23),"") ->  | Y24: =IFERROR($G23*X24,"") ->  | Z24: =IFERROR(IF('Vstupní data'!$P$22="MAX",Z23/SMALL($H$23:$BO$23,COUNTIF($H$23:$BO$23,0)+1),MAX($H$23:$BO$23)/Z23),"") ->  | AA24: =IFERROR($G23*Z24,"") ->  | AB24: =IFERROR(IF('Vstupní data'!$P$22="MAX",AB23/SMALL($H$23:$BO$23,COUNTIF($H$23:$BO$23,0)+1),MAX($H$23:$BO$23)/AB23),"") ->  | AC24: =IFERROR($G23*AB24,"") ->  | AD24: =IFERROR(IF('Vstupní data'!$P$22="MAX",AD23/SMALL($H$23:$BO$23,COUNTIF($H$23:$BO$23,0)+1),MAX($H$23:$BO$23)/AD23),"") ->  | AE24: =IFERROR($G23*AD24,"") ->  | AF24: =IFERROR(IF('Vstupní data'!$P$22="MAX",AF23/SMALL($H$23:$BO$23,COUNTIF($H$23:$BO$23,0)+1),MAX($H$23:$BO$23)/AF23),"") ->  | AG24: =IFERROR($G23*AF24,"") ->  | AH24: =IFERROR(IF('Vstupní data'!$P$22="MAX",AH23/SMALL($H$23:$BO$23,COUNTIF($H$23:$BO$23,0)+1),MAX($H$23:$BO$23)/AH23),"") ->  | AI24: =IFERROR($G23*AH24,"") ->  | AJ24: =IFERROR(IF('Vstupní data'!$P$22="MAX",AJ23/SMALL($H$23:$BO$23,COUNTIF($H$23:$BO$23,0)+1),MAX($H$23:$BO$23)/AJ23),"") ->  | AK24: =IFERROR($G23*AJ24,"") ->  | AL24: =IFERROR(IF('Vstupní data'!$P$22="MAX",AL23/SMALL($H$23:$BO$23,COUNTIF($H$23:$BO$23,0)+1),MAX($H$23:$BO$23)/AL23),"") ->  | AM24: =IFERROR($G23*AL24,"") ->  | AN24: =IFERROR(IF('Vstupní data'!$P$22="MAX",AN23/SMALL($H$23:$BO$23,COUNTIF($H$23:$BO$23,0)+1),MAX($H$23:$BO$23)/AN23),"") ->  | AO24: =IFERROR($G23*AN24,"") ->  | AP24: =IFERROR(IF('Vstupní data'!$P$22="MAX",AP23/SMALL($H$23:$BO$23,COUNTIF($H$23:$BO$23,0)+1),MAX($H$23:$BO$23)/AP23),"") ->  | AQ24: =IFERROR($G23*AP24,"") ->  | AR24: =IFERROR(IF('Vstupní data'!$P$22="MAX",AR23/SMALL($H$23:$BO$23,COUNTIF($H$23:$BO$23,0)+1),MAX($H$23:$BO$23)/AR23),"") ->  | AS24: =IFERROR($G23*AR24,"") ->  | AT24: =IFERROR(IF('Vstupní data'!$P$22="MAX",AT23/SMALL($H$23:$BO$23,COUNTIF($H$23:$BO$23,0)+1),MAX($H$23:$BO$23)/AT23),"") ->  | AU24: =IFERROR($G23*AT24,"") ->  | AV24: =IFERROR(IF('Vstupní data'!$P$22="MAX",AV23/SMALL($H$23:$BO$23,COUNTIF($H$23:$BO$23,0)+1),MAX($H$23:$BO$23)/AV23),"") ->  | AW24: =IFERROR($G23*AV24,"") ->  | AX24: =IFERROR(IF('Vstupní data'!$P$22="MAX",AX23/SMALL($H$23:$BO$23,COUNTIF($H$23:$BO$23,0)+1),MAX($H$23:$BO$23)/AX23),"") ->  | AY24: =IFERROR($G23*AX24,"") ->  | AZ24: =IFERROR(IF('Vstupní data'!$P$22="MAX",AZ23/SMALL($H$23:$BO$23,COUNTIF($H$23:$BO$23,0)+1),MAX($H$23:$BO$23)/AZ23),"") ->  | BA24: =IFERROR($G23*AZ24,"") ->  | BB24: =IFERROR(IF('Vstupní data'!$P$22="MAX",BB23/SMALL($H$23:$BO$23,COUNTIF($H$23:$BO$23,0)+1),MAX($H$23:$BO$23)/BB23),"") ->  | BC24: =IFERROR($G23*BB24,"") ->  | BD24: =IFERROR(IF('Vstupní data'!$P$22="MAX",BD23/SMALL($H$23:$BO$23,COUNTIF($H$23:$BO$23,0)+1),MAX($H$23:$BO$23)/BD23),"") ->  | BE24: =IFERROR($G23*BD24,"") ->  | BF24: =IFERROR(IF('Vstupní data'!$P$22="MAX",BF23/SMALL($H$23:$BO$23,COUNTIF($H$23:$BO$23,0)+1),MAX($H$23:$BO$23)/BF23),"") ->  | BG24: =IFERROR($G23*BF24,"") ->  | BH24: =IFERROR(IF('Vstupní data'!$P$22="MAX",BH23/SMALL($H$23:$BO$23,COUNTIF($H$23:$BO$23,0)+1),MAX($H$23:$BO$23)/BH23),"") ->  | BI24: =IFERROR($G23*BH24,"") ->  | BJ24: =IFERROR(IF('Vstupní data'!$P$22="MAX",BJ23/SMALL($H$23:$BO$23,COUNTIF($H$23:$BO$23,0)+1),MAX($H$23:$BO$23)/BJ23),"") ->  | BK24: =IFERROR($G23*BJ24,"") ->  | BL24: =IFERROR(IF('Vstupní data'!$P$22="MAX",BL23/SMALL($H$23:$BO$23,COUNTIF($H$23:$BO$23,0)+1),MAX($H$23:$BO$23)/BL23),"") ->  | BM24: =IFERROR($G23*BL24,"") ->  | BN24: =IFERROR(IF('Vstupní data'!$P$22="MAX",BN23/SMALL($H$23:$BO$23,COUNTIF($H$23:$BO$23,0)+1),MAX($H$23:$BO$23)/BN23),"") ->  | BO24: =IFERROR($G23*BN24,"") ->  | BY24: =N21 -> V4 | BZ24: =N53 -> 1.375123195 | CG24: V4 | CH24: 1.375123195
D25: ='Vstupní data'!Q19 -> K2 | E25: ='Vstupní data'!Q20 -> Nosnost | F25: ='Vstupní data'!Q21 -> kg | G25: =IFERROR(GETPIVOTDATA("[Measures].[Míra 1]",'Porovnání v trojúhelníku párů'!$W$8,"[Tabulka1].[Kritéria]","[Tabulka1].[Kritéria].&[2]"),0) -> 0.08888888889 | H25: ='Vstupní data'!Q23 -> 6 | J25: ='Vstupní data'!Q24 -> 10 | L25: ='Vstupní data'!Q25 -> 6 | N25: ='Vstupní data'!Q26 -> 10 | P25: ='Vstupní data'!Q27 -> 20 | R25: ='Vstupní data'!Q28 -> 10 | T25: ='Vstupní data'!Q29 -> 7 | V25: ='Vstupní data'!Q30 -> 0 | X25: ='Vstupní data'!Q31 -> 0 | Z25: ='Vstupní data'!Q32 -> 0 | AB25: ='Vstupní data'!Q33 -> 0 | AD25: ='Vstupní data'!Q34 -> 0 | AF25: ='Vstupní data'!Q35 -> 0 | AH25: ='Vstupní data'!Q36 -> 0 | AJ25: ='Vstupní data'!Q37 -> 0 | AL25: ='Vstupní data'!Q38 -> 0 | AN25: ='Vstupní data'!Q39 -> 0 | AP25: ='Vstupní data'!Q40 -> 0 | AR25: ='Vstupní data'!Q41 -> 0 | AT25: ='Vstupní data'!Q42 -> 0 | AV25: ='Vstupní data'!Q43 -> 0 | AX25: ='Vstupní data'!Q44 -> 0 | AZ25: ='Vstupní data'!Q45 -> 0 | BB25: ='Vstupní data'!Q46 -> 0 | BD25: ='Vstupní data'!Q47 -> 0 | BF25: ='Vstupní data'!Q48 -> 0 | BH25: ='Vstupní data'!Q49 -> 0 | BJ25: ='Vstupní data'!Q50 -> 0 | BL25: ='Vstupní data'!Q51 -> 0 | BN25: ='Vstupní data'!Q52 -> 0 | BY25: =P21 -> V5 | BZ25: =P53 -> 1.285148741 | CG25: V5 | CH25: 1.285148741
H26: =IFERROR(IF('Vstupní data'!$Q$22="MAX",H25/SMALL($H$25:$BO$25,COUNTIF($H$25:$BO$25,0)+1),MAX($H$25:$BO$25)/H25),"") -> 1 | I26: =IFERROR($G25*H26,"") -> 0.08888888889 | J26: =IFERROR(IF('Vstupní data'!$Q$22="MAX",J25/SMALL($H$25:$BO$25,COUNTIF($H$25:$BO$25,0)+1),MAX($H$25:$BO$25)/J25),"") -> 1.666666667 | K26: =IFERROR($G25*J26,"") -> 0.1481481481 | L26: =IFERROR(IF('Vstupní data'!$Q$22="MAX",L25/SMALL($H$25:$BO$25,COUNTIF($H$25:$BO$25,0)+1),MAX($H$25:$BO$25)/L25),"") -> 1 | M26: =IFERROR($G25*L26,"") -> 0.08888888889 | N26: =IFERROR(IF('Vstupní data'!$Q$22="MAX",N25/SMALL($H$25:$BO$25,COUNTIF($H$25:$BO$25,0)+1),MAX($H$25:$BO$25)/N25),"") -> 1.666666667 | O26: =IFERROR($G25*N26,"") -> 0.1481481481 | P26: =IFERROR(IF('Vstupní data'!$Q$22="MAX",P25/SMALL($H$25:$BO$25,COUNTIF($H$25:$BO$25,0)+1),MAX($H$25:$BO$25)/P25),"") -> 3.333333333 | Q26: =IFERROR($G25*P26,"") -> 0.2962962963 | R26: =IFERROR(IF('Vstupní data'!$Q$22="MAX",R25/SMALL($H$25:$BO$25,COUNTIF($H$25:$BO$25,0)+1),MAX($H$25:$BO$25)/R25),"") -> 1.666666667 | S26: =IFERROR($G25*R26,"") -> 0.1481481481 | T26: =IFERROR(IF('Vstupní data'!$Q$22="MAX",T25/SMALL($H$25:$BO$25,COUNTIF($H$25:$BO$25,0)+1),MAX($H$25:$BO$25)/T25),"") -> 1.166666667 | U26: =IFERROR($G25*T26,"") -> 0.1037037037 | V26: =IFERROR(IF('Vstupní data'!$Q$22="MAX",V25/SMALL($H$25:$BO$25,COUNTIF($H$25:$BO$25,0)+1),MAX($H$25:$BO$25)/V25),"") -> 0 | W26: =IFERROR($G25*V26,"") -> 0 | X26: =IFERROR(IF('Vstupní data'!$Q$22="MAX",X25/SMALL($H$25:$BO$25,COUNTIF($H$25:$BO$25,0)+1),MAX($H$25:$BO$25)/X25),"") -> 0 | Y26: =IFERROR($G25*X26,"") -> 0 | Z26: =IFERROR(IF('Vstupní data'!$Q$22="MAX",Z25/SMALL($H$25:$BO$25,COUNTIF($H$25:$BO$25,0)+1),MAX($H$25:$BO$25)/Z25),"") -> 0 | AA26: =IFERROR($G25*Z26,"") -> 0 | AB26: =IFERROR(IF('Vstupní data'!$Q$22="MAX",AB25/SMALL($H$25:$BO$25,COUNTIF($H$25:$BO$25,0)+1),MAX($H$25:$BO$25)/AB25),"") -> 0 | AC26: =IFERROR($G25*AB26,"") -> 0 | AD26: =IFERROR(IF('Vstupní data'!$Q$22="MAX",AD25/SMALL($H$25:$BO$25,COUNTIF($H$25:$BO$25,0)+1),MAX($H$25:$BO$25)/AD25),"") -> 0 | AE26: =IFERROR($G25*AD26,"") -> 0 | AF26: =IFERROR(IF('Vstupní data'!$Q$22="MAX",AF25/SMALL($H$25:$BO$25,COUNTIF($H$25:$BO$25,0)+1),MAX($H$25:$BO$25)/AF25),"") -> 0 | AG26: =IFERROR($G25*AF26,"") -> 0 | AH26: =IFERROR(IF('Vstupní data'!$Q$22="MAX",AH25/SMALL($H$25:$BO$25,COUNTIF($H$25:$BO$25,0)+1),MAX($H$25:$BO$25)/AH25),"") -> 0 | AI26: =IFERROR($G25*AH26,"") -> 0 | AJ26: =IFERROR(IF('Vstupní data'!$Q$22="MAX",AJ25/SMALL($H$25:$BO$25,COUNTIF($H$25:$BO$25,0)+1),MAX($H$25:$BO$25)/AJ25),"") -> 0 | AK26: =IFERROR($G25*AJ26,"") -> 0 | AL26: =IFERROR(IF('Vstupní data'!$Q$22="MAX",AL25/SMALL($H$25:$BO$25,COUNTIF($H$25:$BO$25,0)+1),MAX($H$25:$BO$25)/AL25),"") -> 0 | AM26: =IFERROR($G25*AL26,"") -> 0 | AN26: =IFERROR(IF('Vstupní data'!$Q$22="MAX",AN25/SMALL($H$25:$BO$25,COUNTIF($H$25:$BO$25,0)+1),MAX($H$25:$BO$25)/AN25),"") -> 0 | AO26: =IFERROR($G25*AN26,"") -> 0 | AP26: =IFERROR(IF('Vstupní data'!$Q$22="MAX",AP25/SMALL($H$25:$BO$25,COUNTIF($H$25:$BO$25,0)+1),MAX($H$25:$BO$25)/AP25),"") -> 0 | AQ26: =IFERROR($G25*AP26,"") -> 0 | AR26: =IFERROR(IF('Vstupní data'!$Q$22="MAX",AR25/SMALL($H$25:$BO$25,COUNTIF($H$25:$BO$25,0)+1),MAX($H$25:$BO$25)/AR25),"") -> 0 | AS26: =IFERROR($G25*AR26,"") -> 0 | AT26: =IFERROR(IF('Vstupní data'!$Q$22="MAX",AT25/SMALL($H$25:$BO$25,COUNTIF($H$25:$BO$25,0)+1),MAX($H$25:$BO$25)/AT25),"") -> 0 | AU26: =IFERROR($G25*AT26,"") -> 0 | AV26: =IFERROR(IF('Vstupní data'!$Q$22="MAX",AV25/SMALL($H$25:$BO$25,COUNTIF($H$25:$BO$25,0)+1),MAX($H$25:$BO$25)/AV25),"") -> 0 | AW26: =IFERROR($G25*AV26,"") -> 0 | AX26: =IFERROR(IF('Vstupní data'!$Q$22="MAX",AX25/SMALL($H$25:$BO$25,COUNTIF($H$25:$BO$25,0)+1),MAX($H$25:$BO$25)/AX25),"") -> 0 | AY26: =IFERROR($G25*AX26,"") -> 0 | AZ26: =IFERROR(IF('Vstupní data'!$Q$22="MAX",AZ25/SMALL($H$25:$BO$25,COUNTIF($H$25:$BO$25,0)+1),MAX($H$25:$BO$25)/AZ25),"") -> 0 | BA26: =IFERROR($G25*AZ26,"") -> 0 | BB26: =IFERROR(IF('Vstupní data'!$Q$22="MAX",BB25/SMALL($H$25:$BO$25,COUNTIF($H$25:$BO$25,0)+1),MAX($H$25:$BO$25)/BB25),"") -> 0 | BC26: =IFERROR($G25*BB26,"") -> 0 | BD26: =IFERROR(IF('Vstupní data'!$Q$22="MAX",BD25/SMALL($H$25:$BO$25,COUNTIF($H$25:$BO$25,0)+1),MAX($H$25:$BO$25)/BD25),"") -> 0 | BE26: =IFERROR($G25*BD26,"") -> 0 | BF26: =IFERROR(IF('Vstupní data'!$Q$22="MAX",BF25/SMALL($H$25:$BO$25,COUNTIF($H$25:$BO$25,0)+1),MAX($H$25:$BO$25)/BF25),"") -> 0 | BG26: =IFERROR($G25*BF26,"") -> 0 | BH26: =IFERROR(IF('Vstupní data'!$Q$22="MAX",BH25/SMALL($H$25:$BO$25,COUNTIF($H$25:$BO$25,0)+1),MAX($H$25:$BO$25)/BH25),"") -> 0 | BI26: =IFERROR($G25*BH26,"") -> 0 | BJ26: =IFERROR(IF('Vstupní data'!$Q$22="MAX",BJ25/SMALL($H$25:$BO$25,COUNTIF($H$25:$BO$25,0)+1),MAX($H$25:$BO$25)/BJ25),"") -> 0 | BK26: =IFERROR($G25*BJ26,"") -> 0 | BL26: =IFERROR(IF('Vstupní data'!$Q$22="MAX",BL25/SMALL($H$25:$BO$25,COUNTIF($H$25:$BO$25,0)+1),MAX($H$25:$BO$25)/BL25),"") -> 0 | BM26: =IFERROR($G25*BL26,"") -> 0 | BN26: =IFERROR(IF('Vstupní data'!$Q$22="MAX",BN25/SMALL($H$25:$BO$25,COUNTIF($H$25:$BO$25,0)+1),MAX($H$25:$BO$25)/BN25),"") -> 0 | BO26: =IFERROR($G25*BN26,"") -> 0 | BY26: =R21 -> V6 | BZ26: =R53 -> 1.405430894 | CG26: V6 | CH26: 1.405430894
D27: ='Vstupní data'!R19 -> K3 | E27: ='Vstupní data'!R20 -> Dosah (horinz.) | F27: ='Vstupní data'!R21 -> m | G27: =IFERROR(GETPIVOTDATA("[Measures].[Míra 1]",'Porovnání v trojúhelníku párů'!$W$8,"[Tabulka1].[Kritéria]","[Tabulka1].[Kritéria].&[3]"),0) -> 0.1777777778 | H27: ='Vstupní data'!R23 -> 1.45 | J27: ='Vstupní data'!R24 -> 1.45 | L27: ='Vstupní data'!R25 -> 1.82 | N27: ='Vstupní data'!R26 -> 1.42 | P27: ='Vstupní data'!R27 -> 1.72 | R27: ='Vstupní data'!R28 -> 1.42 | T27: ='Vstupní data'!R29 -> 1.63 | V27: ='Vstupní data'!R30 -> 0 | X27: ='Vstupní data'!R31 -> 0 | Z27: ='Vstupní data'!R32 -> 0 | AB27: ='Vstupní data'!R33 -> 0 | AD27: ='Vstupní data'!R34 -> 0 | AF27: ='Vstupní data'!R35 -> 0 | AH27: ='Vstupní data'!R36 -> 0 | AJ27: ='Vstupní data'!R37 -> 0 | AL27: ='Vstupní data'!R38 -> 0 | AN27: ='Vstupní data'!R39 -> 0 | AP27: ='Vstupní data'!R40 -> 0 | AR27: ='Vstupní data'!R41 -> 0 | AT27: ='Vstupní data'!R42 -> 0 | AV27: ='Vstupní data'!R43 -> 0 | AX27: ='Vstupní data'!R44 -> 0 | AZ27: ='Vstupní data'!R45 -> 0 | BB27: ='Vstupní data'!R46 -> 0 | BD27: ='Vstupní data'!R47 -> 0 | BF27: ='Vstupní data'!R48 -> 0 | BH27: ='Vstupní data'!R49 -> 0 | BJ27: ='Vstupní data'!R50 -> 0 | BL27: ='Vstupní data'!R51 -> 0 | BN27: ='Vstupní data'!R52 -> 0 | BY27: =T21 -> V7 | BZ27: =T53 -> 1.359207354 | CG27: V7 | CH27: 1.359207354
H28: =IFERROR(IF('Vstupní data'!$R$22="MAX",H27/SMALL($H$27:$BO$27,COUNTIF($H$27:$BO$27,0)+1),MAX($H$27:$BO$27)/H27),"") -> 1.021126761 | I28: =IFERROR($G27*H28,"") -> 0.1815336463 | J28: =IFERROR(IF('Vstupní data'!$R$22="MAX",J27/SMALL($H$27:$BO$27,COUNTIF($H$27:$BO$27,0)+1),MAX($H$27:$BO$27)/J27),"") -> 1.021126761 | K28: =IFERROR($G27*J28,"") -> 0.1815336463 | L28: =IFERROR(IF('Vstupní data'!$R$22="MAX",L27/SMALL($H$27:$BO$27,COUNTIF($H$27:$BO$27,0)+1),MAX($H$27:$BO$27)/L27),"") -> 1.281690141 | M28: =IFERROR($G27*L28,"") -> 0.227856025 | N28: =IFERROR(IF('Vstupní data'!$R$22="MAX",N27/SMALL($H$27:$BO$27,COUNTIF($H$27:$BO$27,0)+1),MAX($H$27:$BO$27)/N27),"") -> 1 | O28: =IFERROR($G27*N28,"") -> 0.1777777778 | P28: =IFERROR(IF('Vstupní data'!$R$22="MAX",P27/SMALL($H$27:$BO$27,COUNTIF($H$27:$BO$27,0)+1),MAX($H$27:$BO$27)/P27),"") -> 1.211267606 | Q28: =IFERROR($G27*P28,"") -> 0.2153364632 | R28: =IFERROR(IF('Vstupní data'!$R$22="MAX",R27/SMALL($H$27:$BO$27,COUNTIF($H$27:$BO$27,0)+1),MAX($H$27:$BO$27)/R27),"") -> 1 | S28: =IFERROR($G27*R28,"") -> 0.1777777778 | T28: =IFERROR(IF('Vstupní data'!$R$22="MAX",T27/SMALL($H$27:$BO$27,COUNTIF($H$27:$BO$27,0)+1),MAX($H$27:$BO$27)/T27),"") -> 1.147887324 | U28: =IFERROR($G27*T28,"") -> 0.2040688576 | V28: =IFERROR(IF('Vstupní data'!$R$22="MAX",V27/SMALL($H$27:$BO$27,COUNTIF($H$27:$BO$27,0)+1),MAX($H$27:$BO$27)/V27),"") -> 0 | W28: =IFERROR($G27*V28,"") -> 0 | X28: =IFERROR(IF('Vstupní data'!$R$22="MAX",X27/SMALL($H$27:$BO$27,COUNTIF($H$27:$BO$27,0)+1),MAX($H$27:$BO$27)/X27),"") -> 0 | Y28: =IFERROR($G27*X28,"") -> 0 | Z28: =IFERROR(IF('Vstupní data'!$R$22="MAX",Z27/SMALL($H$27:$BO$27,COUNTIF($H$27:$BO$27,0)+1),MAX($H$27:$BO$27)/Z27),"") -> 0 | AA28: =IFERROR($G27*Z28,"") -> 0 | AB28: =IFERROR(IF('Vstupní data'!$R$22="MAX",AB27/SMALL($H$27:$BO$27,COUNTIF($H$27:$BO$27,0)+1),MAX($H$27:$BO$27)/AB27),"") -> 0 | AC28: =IFERROR($G27*AB28,"") -> 0 | AD28: =IFERROR(IF('Vstupní data'!$R$22="MAX",AD27/SMALL($H$27:$BO$27,COUNTIF($H$27:$BO$27,0)+1),MAX($H$27:$BO$27)/AD27),"") -> 0 | AE28: =IFERROR($G27*AD28,"") -> 0 | AF28: =IFERROR(IF('Vstupní data'!$R$22="MAX",AF27/SMALL($H$27:$BO$27,COUNTIF($H$27:$BO$27,0)+1),MAX($H$27:$BO$27)/AF27),"") -> 0 | AG28: =IFERROR($G27*AF28,"") -> 0 | AH28: =IFERROR(IF('Vstupní data'!$R$22="MAX",AH27/SMALL($H$27:$BO$27,COUNTIF($H$27:$BO$27,0)+1),MAX($H$27:$BO$27)/AH27),"") -> 0 | AI28: =IFERROR($G27*AH28,"") -> 0 | AJ28: =IFERROR(IF('Vstupní data'!$R$22="MAX",AJ27/SMALL($H$27:$BO$27,COUNTIF($H$27:$BO$27,0)+1),MAX($H$27:$BO$27)/AJ27),"") -> 0 | AK28: =IFERROR($G27*AJ28,"") -> 0 | AL28: =IFERROR(IF('Vstupní data'!$R$22="MAX",AL27/SMALL($H$27:$BO$27,COUNTIF($H$27:$BO$27,0)+1),MAX($H$27:$BO$27)/AL27),"") -> 0 | AM28: =IFERROR($G27*AL28,"") -> 0 | AN28: =IFERROR(IF('Vstupní data'!$R$22="MAX",AN27/SMALL($H$27:$BO$27,COUNTIF($H$27:$BO$27,0)+1),MAX($H$27:$BO$27)/AN27),"") -> 0 | AO28: =IFERROR($G27*AN28,"") -> 0 | AP28: =IFERROR(IF('Vstupní data'!$R$22="MAX",AP27/SMALL($H$27:$BO$27,COUNTIF($H$27:$BO$27,0)+1),MAX($H$27:$BO$27)/AP27),"") -> 0 | AQ28: =IFERROR($G27*AP28,"") -> 0 | AR28: =IFERROR(IF('Vstupní data'!$R$22="MAX",AR27/SMALL($H$27:$BO$27,COUNTIF($H$27:$BO$27,0)+1),MAX($H$27:$BO$27)/AR27),"") -> 0 | AS28: =IFERROR($G27*AR28,"") -> 0 | AT28: =IFERROR(IF('Vstupní data'!$R$22="MAX",AT27/SMALL($H$27:$BO$27,COUNTIF($H$27:$BO$27,0)+1),MAX($H$27:$BO$27)/AT27),"") -> 0 | AU28: =IFERROR($G27*AT28,"") -> 0 | AV28: =IFERROR(IF('Vstupní data'!$R$22="MAX",AV27/SMALL($H$27:$BO$27,COUNTIF($H$27:$BO$27,0)+1),MAX($H$27:$BO$27)/AV27),"") -> 0 | AW28: =IFERROR($G27*AV28,"") -> 0 | AX28: =IFERROR(IF('Vstupní data'!$R$22="MAX",AX27/SMALL($H$27:$BO$27,COUNTIF($H$27:$BO$27,0)+1),MAX($H$27:$BO$27)/AX27),"") -> 0 | AY28: =IFERROR($G27*AX28,"") -> 0 | AZ28: =IFERROR(IF('Vstupní data'!$R$22="MAX",AZ27/SMALL($H$27:$BO$27,COUNTIF($H$27:$BO$27,0)+1),MAX($H$27:$BO$27)/AZ27),"") -> 0 | BA28: =IFERROR($G27*AZ28,"") -> 0 | BB28: =IFERROR(IF('Vstupní data'!$R$22="MAX",BB27/SMALL($H$27:$BO$27,COUNTIF($H$27:$BO$27,0)+1),MAX($H$27:$BO$27)/BB27),"") -> 0 | BC28: =IFERROR($G27*BB28,"") -> 0 | BD28: =IFERROR(IF('Vstupní data'!$R$22="MAX",BD27/SMALL($H$27:$BO$27,COUNTIF($H$27:$BO$27,0)+1),MAX($H$27:$BO$27)/BD27),"") -> 0 | BE28: =IFERROR($G27*BD28,"") -> 0 | BF28: =IFERROR(IF('Vstupní data'!$R$22="MAX",BF27/SMALL($H$27:$BO$27,COUNTIF($H$27:$BO$27,0)+1),MAX($H$27:$BO$27)/BF27),"") -> 0 | BG28: =IFERROR($G27*BF28,"") -> 0 | BH28: =IFERROR(IF('Vstupní data'!$R$22="MAX",BH27/SMALL($H$27:$BO$27,COUNTIF($H$27:$BO$27,0)+1),MAX($H$27:$BO$27)/BH27),"") -> 0 | BI28: =IFERROR($G27*BH28,"") -> 0 | BJ28: =IFERROR(IF('Vstupní data'!$R$22="MAX",BJ27/SMALL($H$27:$BO$27,COUNTIF($H$27:$BO$27,0)+1),MAX($H$27:$BO$27)/BJ27),"") -> 0 | BK28: =IFERROR($G27*BJ28,"") -> 0 | BL28: =IFERROR(IF('Vstupní data'!$R$22="MAX",BL27/SMALL($H$27:$BO$27,COUNTIF($H$27:$BO$27,0)+1),MAX($H$27:$BO$27)/BL27),"") -> 0 | BM28: =IFERROR($G27*BL28,"") -> 0 | BN28: =IFERROR(IF('Vstupní data'!$R$22="MAX",BN27/SMALL($H$27:$BO$27,COUNTIF($H$27:$BO$27,0)+1),MAX($H$27:$BO$27)/BN27),"") -> 0 | BO28: =IFERROR($G27*BN28,"") -> 0 | BY28: =V21 ->  | BZ28: =V53 -> 0 | CG28: Celkový součet | CH28: 9.804770767
D29: ='Vstupní data'!S19 -> K4 | E29: ='Vstupní data'!S20 -> Opakovatelnost | F29: ='Vstupní data'!S21 -> mm | G29: =IFERROR(GETPIVOTDATA("[Measures].[Míra 1]",'Porovnání v trojúhelníku párů'!$W$8,"[Tabulka1].[Kritéria]","[Tabulka1].[Kritéria].&[4]"),0) -> 0.2888888889 | H29: ='Vstupní data'!S23 -> 0.02 | J29: ='Vstupní data'!S24 -> 0.05 | L29: ='Vstupní data'!S25 -> 0.04 | N29: ='Vstupní data'!S26 -> 0.04 | P29: ='Vstupní data'!S27 -> 0.06 | R29: ='Vstupní data'!S28 -> 0.03 | T29: ='Vstupní data'!S29 -> 0.03 | V29: ='Vstupní data'!S30 -> 0 | X29: ='Vstupní data'!S31 -> 0 | Z29: ='Vstupní data'!S32 -> 0 | AB29: ='Vstupní data'!S33 -> 0 | AD29: ='Vstupní data'!S34 -> 0 | AF29: ='Vstupní data'!S35 -> 0 | AH29: ='Vstupní data'!S36 -> 0 | AJ29: ='Vstupní data'!S37 -> 0 | AL29: ='Vstupní data'!S38 -> 0 | AN29: ='Vstupní data'!S39 -> 0 | AP29: ='Vstupní data'!S40 -> 0 | AR29: ='Vstupní data'!S41 -> 0 | AT29: ='Vstupní data'!S42 -> 0 | AV29: ='Vstupní data'!S43 -> 0 | AX29: ='Vstupní data'!S44 -> 0 | AZ29: ='Vstupní data'!S45 -> 0 | BB29: ='Vstupní data'!S46 -> 0 | BD29: ='Vstupní data'!S47 -> 0 | BF29: ='Vstupní data'!S48 -> 0 | BH29: ='Vstupní data'!S49 -> 0 | BJ29: ='Vstupní data'!S50 -> 0 | BL29: ='Vstupní data'!S51 -> 0 | BN29: ='Vstupní data'!S52 -> 0 | BY29: =X21 ->  | BZ29: =X53 -> 0
H30: =IFERROR(IF('Vstupní data'!$S$22="MAX",H29/SMALL($H$29:$BO$29,COUNTIF($H$29:$BO$29,0)+1),MAX($H$29:$BO$29)/H29),"") -> 3 | I30: =IFERROR($G29*H30,"") -> 0.8666666667 | J30: =IFERROR(IF('Vstupní data'!$S$22="MAX",J29/SMALL($H$29:$BO$29,COUNTIF($H$29:$BO$29,0)+1),MAX($H$29:$BO$29)/J29),"") -> 1.2 | K30: =IFERROR($G29*J30,"") -> 0.3466666667 | L30: =IFERROR(IF('Vstupní data'!$S$22="MAX",L29/SMALL($H$29:$BO$29,COUNTIF($H$29:$BO$29,0)+1),MAX($H$29:$BO$29)/L29),"") -> 1.5 | M30: =IFERROR($G29*L30,"") -> 0.4333333333 | N30: =IFERROR(IF('Vstupní data'!$S$22="MAX",N29/SMALL($H$29:$BO$29,COUNTIF($H$29:$BO$29,0)+1),MAX($H$29:$BO$29)/N29),"") -> 1.5 | O30: =IFERROR($G29*N30,"") -> 0.4333333333 | P30: =IFERROR(IF('Vstupní data'!$S$22="MAX",P29/SMALL($H$29:$BO$29,COUNTIF($H$29:$BO$29,0)+1),MAX($H$29:$BO$29)/P29),"") -> 1 | Q30: =IFERROR($G29*P30,"") -> 0.2888888889 | R30: =IFERROR(IF('Vstupní data'!$S$22="MAX",R29/SMALL($H$29:$BO$29,COUNTIF($H$29:$BO$29,0)+1),MAX($H$29:$BO$29)/R29),"") -> 2 | S30: =IFERROR($G29*R30,"") -> 0.5777777778 | T30: =IFERROR(IF('Vstupní data'!$S$22="MAX",T29/SMALL($H$29:$BO$29,COUNTIF($H$29:$BO$29,0)+1),MAX($H$29:$BO$29)/T29),"") -> 2 | U30: =IFERROR($G29*T30,"") -> 0.5777777778 | V30: =IFERROR(IF('Vstupní data'!$S$22="MAX",V29/SMALL($H$29:$BO$29,COUNTIF($H$29:$BO$29,0)+1),MAX($H$29:$BO$29)/V29),"") ->  | W30: =IFERROR($G29*V30,"") ->  | X30: =IFERROR(IF('Vstupní data'!$S$22="MAX",X29/SMALL($H$29:$BO$29,COUNTIF($H$29:$BO$29,0)+1),MAX($H$29:$BO$29)/X29),"") ->  | Y30: =IFERROR($G29*X30,"") ->  | Z30: =IFERROR(IF('Vstupní data'!$S$22="MAX",Z29/SMALL($H$29:$BO$29,COUNTIF($H$29:$BO$29,0)+1),MAX($H$29:$BO$29)/Z29),"") ->  | AA30: =IFERROR($G29*Z30,"") ->  | AB30: =IFERROR(IF('Vstupní data'!$S$22="MAX",AB29/SMALL($H$29:$BO$29,COUNTIF($H$29:$BO$29,0)+1),MAX($H$29:$BO$29)/AB29),"") ->  | AC30: =IFERROR($G29*AB30,"") ->  | AD30: =IFERROR(IF('Vstupní data'!$S$22="MAX",AD29/SMALL($H$29:$BO$29,COUNTIF($H$29:$BO$29,0)+1),MAX($H$29:$BO$29)/AD29),"") ->  | AE30: =IFERROR($G29*AD30,"") ->  | AF30: =IFERROR(IF('Vstupní data'!$S$22="MAX",AF29/SMALL($H$29:$BO$29,COUNTIF($H$29:$BO$29,0)+1),MAX($H$29:$BO$29)/AF29),"") ->  | AG30: =IFERROR($G29*AF30,"") ->  | AH30: =IFERROR(IF('Vstupní data'!$S$22="MAX",AH29/SMALL($H$29:$BO$29,COUNTIF($H$29:$BO$29,0)+1),MAX($H$29:$BO$29)/AH29),"") ->  | AI30: =IFERROR($G29*AH30,"") ->  | AJ30: =IFERROR(IF('Vstupní data'!$S$22="MAX",AJ29/SMALL($H$29:$BO$29,COUNTIF($H$29:$BO$29,0)+1),MAX($H$29:$BO$29)/AJ29),"") ->  | AK30: =IFERROR($G29*AJ30,"") ->  | AL30: =IFERROR(IF('Vstupní data'!$S$22="MAX",AL29/SMALL($H$29:$BO$29,COUNTIF($H$29:$BO$29,0)+1),MAX($H$29:$BO$29)/AL29),"") ->  | AM30: =IFERROR($G29*AL30,"") ->  | AN30: =IFERROR(IF('Vstupní data'!$S$22="MAX",AN29/SMALL($H$29:$BO$29,COUNTIF($H$29:$BO$29,0)+1),MAX($H$29:$BO$29)/AN29),"") ->  | AO30: =IFERROR($G29*AN30,"") ->  | AP30: =IFERROR(IF('Vstupní data'!$S$22="MAX",AP29/SMALL($H$29:$BO$29,COUNTIF($H$29:$BO$29,0)+1),MAX($H$29:$BO$29)/AP29),"") ->  | AQ30: =IFERROR($G29*AP30,"") ->  | AR30: =IFERROR(IF('Vstupní data'!$S$22="MAX",AR29/SMALL($H$29:$BO$29,COUNTIF($H$29:$BO$29,0)+1),MAX($H$29:$BO$29)/AR29),"") ->  | AS30: =IFERROR($G29*AR30,"") ->  | AT30: =IFERROR(IF('Vstupní data'!$S$22="MAX",AT29/SMALL($H$29:$BO$29,COUNTIF($H$29:$BO$29,0)+1),MAX($H$29:$BO$29)/AT29),"") ->  | AU30: =IFERROR($G29*AT30,"") ->  | AV30: =IFERROR(IF('Vstupní data'!$S$22="MAX",AV29/SMALL($H$29:$BO$29,COUNTIF($H$29:$BO$29,0)+1),MAX($H$29:$BO$29)/AV29),"") ->  | AW30: =IFERROR($G29*AV30,"") ->  | AX30: =IFERROR(IF('Vstupní data'!$S$22="MAX",AX29/SMALL($H$29:$BO$29,COUNTIF($H$29:$BO$29,0)+1),MAX($H$29:$BO$29)/AX29),"") ->  | AY30: =IFERROR($G29*AX30,"") ->  | AZ30: =IFERROR(IF('Vstupní data'!$S$22="MAX",AZ29/SMALL($H$29:$BO$29,COUNTIF($H$29:$BO$29,0)+1),MAX($H$29:$BO$29)/AZ29),"") ->  | BA30: =IFERROR($G29*AZ30,"") ->  | BB30: =IFERROR(IF('Vstupní data'!$S$22="MAX",BB29/SMALL($H$29:$BO$29,COUNTIF($H$29:$BO$29,0)+1),MAX($H$29:$BO$29)/BB29),"") ->  | BC30: =IFERROR($G29*BB30,"") ->  | BD30: =IFERROR(IF('Vstupní data'!$S$22="MAX",BD29/SMALL($H$29:$BO$29,COUNTIF($H$29:$BO$29,0)+1),MAX($H$29:$BO$29)/BD29),"") ->  | BE30: =IFERROR($G29*BD30,"") ->  | BF30: =IFERROR(IF('Vstupní data'!$S$22="MAX",BF29/SMALL($H$29:$BO$29,COUNTIF($H$29:$BO$29,0)+1),MAX($H$29:$BO$29)/BF29),"") ->  | BG30: =IFERROR($G29*BF30,"") ->  | BH30: =IFERROR(IF('Vstupní data'!$S$22="MAX",BH29/SMALL($H$29:$BO$29,COUNTIF($H$29:$BO$29,0)+1),MAX($H$29:$BO$29)/BH29),"") ->  | BI30: =IFERROR($G29*BH30,"") ->  | BJ30: =IFERROR(IF('Vstupní data'!$S$22="MAX",BJ29/SMALL($H$29:$BO$29,COUNTIF($H$29:$BO$29,0)+1),MAX($H$29:$BO$29)/BJ29),"") ->  | BK30: =IFERROR($G29*BJ30,"") ->  | BL30: =IFERROR(IF('Vstupní data'!$S$22="MAX",BL29/SMALL($H$29:$BO$29,COUNTIF($H$29:$BO$29,0)+1),MAX($H$29:$BO$29)/BL29),"") ->  | BM30: =IFERROR($G29*BL30,"") ->  | BN30: =IFERROR(IF('Vstupní data'!$S$22="MAX",BN29/SMALL($H$29:$BO$29,COUNTIF($H$29:$BO$29,0)+1),MAX($H$29:$BO$29)/BN29),"") ->  | BO30: =IFERROR($G29*BN30,"") ->  | BY30: =Z21 ->  | BZ30: =Z53 -> 0
D31: ='Vstupní data'!T19 -> K5 | E31: ='Vstupní data'!T20 -> M-M interface | F31: ='Vstupní data'!T21 -> - | G31: =IFERROR(GETPIVOTDATA("[Measures].[Míra 1]",'Porovnání v trojúhelníku párů'!$W$8,"[Tabulka1].[Kritéria]","[Tabulka1].[Kritéria].&[5]"),0) -> 0.06666666667 | H31: ='Vstupní data'!T23 -> 0.7727 | J31: ='Vstupní data'!T24 -> 0.7727 | L31: ='Vstupní data'!T25 -> 0.6818 | N31: ='Vstupní data'!T26 -> 0.6818 | P31: ='Vstupní data'!T27 -> 0.5 | R31: ='Vstupní data'!T28 -> 0.5909 | T31: ='Vstupní data'!T29 -> 0.5909 | V31: ='Vstupní data'!T30 -> 0 | X31: ='Vstupní data'!T31 -> 0 | Z31: ='Vstupní data'!T32 -> 0 | AB31: ='Vstupní data'!T33 -> 0 | AD31: ='Vstupní data'!T34 -> 0 | AF31: ='Vstupní data'!T35 -> 0 | AH31: ='Vstupní data'!T36 -> 0 | AJ31: ='Vstupní data'!T37 -> 0 | AL31: ='Vstupní data'!T38 -> 0 | AN31: ='Vstupní data'!T39 -> 0 | AP31: ='Vstupní data'!T40 -> 0 | AR31: ='Vstupní data'!T41 -> 0 | AT31: ='Vstupní data'!T42 -> 0 | AV31: ='Vstupní data'!T43 -> 0 | AX31: ='Vstupní data'!T44 -> 0 | AZ31: ='Vstupní data'!T45 -> 0 | BB31: ='Vstupní data'!T46 -> 0 | BD31: ='Vstupní data'!T47 -> 0 | BF31: ='Vstupní data'!T48 -> 0 | BH31: ='Vstupní data'!T49 -> 0 | BJ31: ='Vstupní data'!T50 -> 0 | BL31: ='Vstupní data'!T51 -> 0 | BN31: ='Vstupní data'!T52 -> 0 | BY31: =AB21 ->  | BZ31: =AB53 -> 0
H32: =IFERROR(IF('Vstupní data'!$T$22="MAX",H31/SMALL($H$31:$BO$31,COUNTIF($H$31:$BO$31,0)+1),MAX($H$31:$BO$31)/H31),"") -> 1.5454 | I32: =IFERROR($G31*H32,"") -> 0.1030266667 | J32: =IFERROR(IF('Vstupní data'!$T$22="MAX",J31/SMALL($H$31:$BO$31,COUNTIF($H$31:$BO$31,0)+1),MAX($H$31:$BO$31)/J31),"") -> 1.5454 | K32: =IFERROR($G31*J32,"") -> 0.1030266667 | L32: =IFERROR(IF('Vstupní data'!$T$22="MAX",L31/SMALL($H$31:$BO$31,COUNTIF($H$31:$BO$31,0)+1),MAX($H$31:$BO$31)/L31),"") -> 1.3636 | M32: =IFERROR($G31*L32,"") -> 0.09090666667 | N32: =IFERROR(IF('Vstupní data'!$T$22="MAX",N31/SMALL($H$31:$BO$31,COUNTIF($H$31:$BO$31,0)+1),MAX($H$31:$BO$31)/N31),"") -> 1.3636 | O32: =IFERROR($G31*N32,"") -> 0.09090666667 | P32: =IFERROR(IF('Vstupní data'!$T$22="MAX",P31/SMALL($H$31:$BO$31,COUNTIF($H$31:$BO$31,0)+1),MAX($H$31:$BO$31)/P31),"") -> 1 | Q32: =IFERROR($G31*P32,"") -> 0.06666666667 | R32: =IFERROR(IF('Vstupní data'!$T$22="MAX",R31/SMALL($H$31:$BO$31,COUNTIF($H$31:$BO$31,0)+1),MAX($H$31:$BO$31)/R31),"") -> 1.1818 | S32: =IFERROR($G31*R32,"") -> 0.07878666667 | T32: =IFERROR(IF('Vstupní data'!$T$22="MAX",T31/SMALL($H$31:$BO$31,COUNTIF($H$31:$BO$31,0)+1),MAX($H$31:$BO$31)/T31),"") -> 1.1818 | U32: =IFERROR($G31*T32,"") -> 0.07878666667 | V32: =IFERROR(IF('Vstupní data'!$T$22="MAX",V31/SMALL($H$31:$BO$31,COUNTIF($H$31:$BO$31,0)+1),MAX($H$31:$BO$31)/V31),"") -> 0 | W32: =IFERROR($G31*V32,"") -> 0 | X32: =IFERROR(IF('Vstupní data'!$T$22="MAX",X31/SMALL($H$31:$BO$31,COUNTIF($H$31:$BO$31,0)+1),MAX($H$31:$BO$31)/X31),"") -> 0 | Y32: =IFERROR($G31*X32,"") -> 0 | Z32: =IFERROR(IF('Vstupní data'!$T$22="MAX",Z31/SMALL($H$31:$BO$31,COUNTIF($H$31:$BO$31,0)+1),MAX($H$31:$BO$31)/Z31),"") -> 0 | AA32: =IFERROR($G31*Z32,"") -> 0 | AB32: =IFERROR(IF('Vstupní data'!$T$22="MAX",AB31/SMALL($H$31:$BO$31,COUNTIF($H$31:$BO$31,0)+1),MAX($H$31:$BO$31)/AB31),"") -> 0 | AC32: =IFERROR($G31*AB32,"") -> 0 | AD32: =IFERROR(IF('Vstupní data'!$T$22="MAX",AD31/SMALL($H$31:$BO$31,COUNTIF($H$31:$BO$31,0)+1),MAX($H$31:$BO$31)/AD31),"") -> 0 | AE32: =IFERROR($G31*AD32,"") -> 0 | AF32: =IFERROR(IF('Vstupní data'!$T$22="MAX",AF31/SMALL($H$31:$BO$31,COUNTIF($H$31:$BO$31,0)+1),MAX($H$31:$BO$31)/AF31),"") -> 0 | AG32: =IFERROR($G31*AF32,"") -> 0 | AH32: =IFERROR(IF('Vstupní data'!$T$22="MAX",AH31/SMALL($H$31:$BO$31,COUNTIF($H$31:$BO$31,0)+1),MAX($H$31:$BO$31)/AH31),"") -> 0 | AI32: =IFERROR($G31*AH32,"") -> 0 | AJ32: =IFERROR(IF('Vstupní data'!$T$22="MAX",AJ31/SMALL($H$31:$BO$31,COUNTIF($H$31:$BO$31,0)+1),MAX($H$31:$BO$31)/AJ31),"") -> 0 | AK32: =IFERROR($G31*AJ32,"") -> 0 | AL32: =IFERROR(IF('Vstupní data'!$T$22="MAX",AL31/SMALL($H$31:$BO$31,COUNTIF($H$31:$BO$31,0)+1),MAX($H$31:$BO$31)/AL31),"") -> 0 | AM32: =IFERROR($G31*AL32,"") -> 0 | AN32: =IFERROR(IF('Vstupní data'!$T$22="MAX",AN31/SMALL($H$31:$BO$31,COUNTIF($H$31:$BO$31,0)+1),MAX($H$31:$BO$31)/AN31),"") -> 0 | AO32: =IFERROR($G31*AN32,"") -> 0 | AP32: =IFERROR(IF('Vstupní data'!$T$22="MAX",AP31/SMALL($H$31:$BO$31,COUNTIF($H$31:$BO$31,0)+1),MAX($H$31:$BO$31)/AP31),"") -> 0 | AQ32: =IFERROR($G31*AP32,"") -> 0 | AR32: =IFERROR(IF('Vstupní data'!$T$22="MAX",AR31/SMALL($H$31:$BO$31,COUNTIF($H$31:$BO$31,0)+1),MAX($H$31:$BO$31)/AR31),"") -> 0 | AS32: =IFERROR($G31*AR32,"") -> 0 | AT32: =IFERROR(IF('Vstupní data'!$T$22="MAX",AT31/SMALL($H$31:$BO$31,COUNTIF($H$31:$BO$31,0)+1),MAX($H$31:$BO$31)/AT31),"") -> 0 | AU32: =IFERROR($G31*AT32,"") -> 0 | AV32: =IFERROR(IF('Vstupní data'!$T$22="MAX",AV31/SMALL($H$31:$BO$31,COUNTIF($H$31:$BO$31,0)+1),MAX($H$31:$BO$31)/AV31),"") -> 0 | AW32: =IFERROR($G31*AV32,"") -> 0 | AX32: =IFERROR(IF('Vstupní data'!$T$22="MAX",AX31/SMALL($H$31:$BO$31,COUNTIF($H$31:$BO$31,0)+1),MAX($H$31:$BO$31)/AX31),"") -> 0 | AY32: =IFERROR($G31*AX32,"") -> 0 | AZ32: =IFERROR(IF('Vstupní data'!$T$22="MAX",AZ31/SMALL($H$31:$BO$31,COUNTIF($H$31:$BO$31,0)+1),MAX($H$31:$BO$31)/AZ31),"") -> 0 | BA32: =IFERROR($G31*AZ32,"") -> 0 | BB32: =IFERROR(IF('Vstupní data'!$T$22="MAX",BB31/SMALL($H$31:$BO$31,COUNTIF($H$31:$BO$31,0)+1),MAX($H$31:$BO$31)/BB31),"") -> 0 | BC32: =IFERROR($G31*BB32,"") -> 0 | BD32: =IFERROR(IF('Vstupní data'!$T$22="MAX",BD31/SMALL($H$31:$BO$31,COUNTIF($H$31:$BO$31,0)+1),MAX($H$31:$BO$31)/BD31),"") -> 0 | BE32: =IFERROR($G31*BD32,"") -> 0 | BF32: =IFERROR(IF('Vstupní data'!$T$22="MAX",BF31/SMALL($H$31:$BO$31,COUNTIF($H$31:$BO$31,0)+1),MAX($H$31:$BO$31)/BF31),"") -> 0 | BG32: =IFERROR($G31*BF32,"") -> 0 | BH32: =IFERROR(IF('Vstupní data'!$T$22="MAX",BH31/SMALL($H$31:$BO$31,COUNTIF($H$31:$BO$31,0)+1),MAX($H$31:$BO$31)/BH31),"") -> 0 | BI32: =IFERROR($G31*BH32,"") -> 0 | BJ32: =IFERROR(IF('Vstupní data'!$T$22="MAX",BJ31/SMALL($H$31:$BO$31,COUNTIF($H$31:$BO$31,0)+1),MAX($H$31:$BO$31)/BJ31),"") -> 0 | BK32: =IFERROR($G31*BJ32,"") -> 0 | BL32: =IFERROR(IF('Vstupní data'!$T$22="MAX",BL31/SMALL($H$31:$BO$31,COUNTIF($H$31:$BO$31,0)+1),MAX($H$31:$BO$31)/BL31),"") -> 0 | BM32: =IFERROR($G31*BL32,"") -> 0 | BN32: =IFERROR(IF('Vstupní data'!$T$22="MAX",BN31/SMALL($H$31:$BO$31,COUNTIF($H$31:$BO$31,0)+1),MAX($H$31:$BO$31)/BN31),"") -> 0 | BO32: =IFERROR($G31*BN32,"") -> 0 | BY32: =AD21 ->  | BZ32: =AD53 -> 0
D33: ='Vstupní data'!U19 -> K6 | E33: ='Vstupní data'!U20 -> Flexibilita prog. | F33: ='Vstupní data'!U21 -> - | G33: =IFERROR(GETPIVOTDATA("[Measures].[Míra 1]",'Porovnání v trojúhelníku párů'!$W$8,"[Tabulka1].[Kritéria]","[Tabulka1].[Kritéria].&[6]"),0) -> 0.1111111111 | H33: ='Vstupní data'!U23 -> 0.5909 | J33: ='Vstupní data'!U24 -> 0.5909 | L33: ='Vstupní data'!U25 -> 0.7727 | N33: ='Vstupní data'!U26 -> 0.7727 | P33: ='Vstupní data'!U27 -> 0.5909 | R33: ='Vstupní data'!U28 -> 0.6818 | T33: ='Vstupní data'!U29 -> 0.6818 | V33: ='Vstupní data'!U30 -> 0 | X33: ='Vstupní data'!U31 -> 0 | Z33: ='Vstupní data'!U32 -> 0 | AB33: ='Vstupní data'!U33 -> 0 | AD33: ='Vstupní data'!U34 -> 0 | AF33: ='Vstupní data'!U35 -> 0 | AH33: ='Vstupní data'!U36 -> 0 | AJ33: ='Vstupní data'!U37 -> 0 | AL33: ='Vstupní data'!U38 -> 0 | AN33: ='Vstupní data'!U39 -> 0 | AP33: ='Vstupní data'!U40 -> 0 | AR33: ='Vstupní data'!U41 -> 0 | AT33: ='Vstupní data'!U42 -> 0 | AV33: ='Vstupní data'!U43 -> 0 | AX33: ='Vstupní data'!U44 -> 0 | AZ33: ='Vstupní data'!U45 -> 0 | BB33: ='Vstupní data'!U46 -> 0 | BD33: ='Vstupní data'!U47 -> 0 | BF33: ='Vstupní data'!U48 -> 0 | BH33: ='Vstupní data'!U49 -> 0 | BJ33: ='Vstupní data'!U50 -> 0 | BL33: ='Vstupní data'!U51 -> 0 | BN33: ='Vstupní data'!U52 -> 0 | BY33: =AF21 ->  | BZ33: =AF53 -> 0
H34: =IFERROR(IF('Vstupní data'!$U$22="MAX",H33/SMALL($H$33:$BO$33,COUNTIF($H$33:$BO$33,0)+1),MAX($H$33:$BO$33)/H33),"") -> 1 | I34: =IFERROR($G33*H34,"") -> 0.1111111111 | J34: =IFERROR(IF('Vstupní data'!$U$22="MAX",J33/SMALL($H$33:$BO$33,COUNTIF($H$33:$BO$33,0)+1),MAX($H$33:$BO$33)/J33),"") -> 1 | K34: =IFERROR($G33*J34,"") -> 0.1111111111 | L34: =IFERROR(IF('Vstupní data'!$U$22="MAX",L33/SMALL($H$33:$BO$33,COUNTIF($H$33:$BO$33,0)+1),MAX($H$33:$BO$33)/L33),"") -> 1.307666272 | M34: =IFERROR($G33*L34,"") -> 0.1452962524 | N34: =IFERROR(IF('Vstupní data'!$U$22="MAX",N33/SMALL($H$33:$BO$33,COUNTIF($H$33:$BO$33,0)+1),MAX($H$33:$BO$33)/N33),"") -> 1.307666272 | O34: =IFERROR($G33*N34,"") -> 0.1452962524 | P34: =IFERROR(IF('Vstupní data'!$U$22="MAX",P33/SMALL($H$33:$BO$33,COUNTIF($H$33:$BO$33,0)+1),MAX($H$33:$BO$33)/P33),"") -> 1 | Q34: =IFERROR($G33*P34,"") -> 0.1111111111 | R34: =IFERROR(IF('Vstupní data'!$U$22="MAX",R33/SMALL($H$33:$BO$33,COUNTIF($H$33:$BO$33,0)+1),MAX($H$33:$BO$33)/R33),"") -> 1.153833136 | S34: =IFERROR($G33*R34,"") -> 0.1282036818 | T34: =IFERROR(IF('Vstupní data'!$U$22="MAX",T33/SMALL($H$33:$BO$33,COUNTIF($H$33:$BO$33,0)+1),MAX($H$33:$BO$33)/T33),"") -> 1.153833136 | U34: =IFERROR($G33*T34,"") -> 0.1282036818 | V34: =IFERROR(IF('Vstupní data'!$U$22="MAX",V33/SMALL($H$33:$BO$33,COUNTIF($H$33:$BO$33,0)+1),MAX($H$33:$BO$33)/V33),"") -> 0 | W34: =IFERROR($G33*V34,"") -> 0 | X34: =IFERROR(IF('Vstupní data'!$U$22="MAX",X33/SMALL($H$33:$BO$33,COUNTIF($H$33:$BO$33,0)+1),MAX($H$33:$BO$33)/X33),"") -> 0 | Y34: =IFERROR($G33*X34,"") -> 0 | Z34: =IFERROR(IF('Vstupní data'!$U$22="MAX",Z33/SMALL($H$33:$BO$33,COUNTIF($H$33:$BO$33,0)+1),MAX($H$33:$BO$33)/Z33),"") -> 0 | AA34: =IFERROR($G33*Z34,"") -> 0 | AB34: =IFERROR(IF('Vstupní data'!$U$22="MAX",AB33/SMALL($H$33:$BO$33,COUNTIF($H$33:$BO$33,0)+1),MAX($H$33:$BO$33)/AB33),"") -> 0 | AC34: =IFERROR($G33*AB34,"") -> 0 | AD34: =IFERROR(IF('Vstupní data'!$U$22="MAX",AD33/SMALL($H$33:$BO$33,COUNTIF($H$33:$BO$33,0)+1),MAX($H$33:$BO$33)/AD33),"") -> 0 | AE34: =IFERROR($G33*AD34,"") -> 0 | AF34: =IFERROR(IF('Vstupní data'!$U$22="MAX",AF33/SMALL($H$33:$BO$33,COUNTIF($H$33:$BO$33,0)+1),MAX($H$33:$BO$33)/AF33),"") -> 0 | AG34: =IFERROR($G33*AF34,"") -> 0 | AH34: =IFERROR(IF('Vstupní data'!$U$22="MAX",AH33/SMALL($H$33:$BO$33,COUNTIF($H$33:$BO$33,0)+1),MAX($H$33:$BO$33)/AH33),"") -> 0 | AI34: =IFERROR($G33*AH34,"") -> 0 | AJ34: =IFERROR(IF('Vstupní data'!$U$22="MAX",AJ33/SMALL($H$33:$BO$33,COUNTIF($H$33:$BO$33,0)+1),MAX($H$33:$BO$33)/AJ33),"") -> 0 | AK34: =IFERROR($G33*AJ34,"") -> 0 | AL34: =IFERROR(IF('Vstupní data'!$U$22="MAX",AL33/SMALL($H$33:$BO$33,COUNTIF($H$33:$BO$33,0)+1),MAX($H$33:$BO$33)/AL33),"") -> 0 | AM34: =IFERROR($G33*AL34,"") -> 0 | AN34: =IFERROR(IF('Vstupní data'!$U$22="MAX",AN33/SMALL($H$33:$BO$33,COUNTIF($H$33:$BO$33,0)+1),MAX($H$33:$BO$33)/AN33),"") -> 0 | AO34: =IFERROR($G33*AN34,"") -> 0 | AP34: =IFERROR(IF('Vstupní data'!$U$22="MAX",AP33/SMALL($H$33:$BO$33,COUNTIF($H$33:$BO$33,0)+1),MAX($H$33:$BO$33)/AP33),"") -> 0 | AQ34: =IFERROR($G33*AP34,"") -> 0 | AR34: =IFERROR(IF('Vstupní data'!$U$22="MAX",AR33/SMALL($H$33:$BO$33,COUNTIF($H$33:$BO$33,0)+1),MAX($H$33:$BO$33)/AR33),"") -> 0 | AS34: =IFERROR($G33*AR34,"") -> 0 | AT34: =IFERROR(IF('Vstupní data'!$U$22="MAX",AT33/SMALL($H$33:$BO$33,COUNTIF($H$33:$BO$33,0)+1),MAX($H$33:$BO$33)/AT33),"") -> 0 | AU34: =IFERROR($G33*AT34,"") -> 0 | AV34: =IFERROR(IF('Vstupní data'!$U$22="MAX",AV33/SMALL($H$33:$BO$33,COUNTIF($H$33:$BO$33,0)+1),MAX($H$33:$BO$33)/AV33),"") -> 0 | AW34: =IFERROR($G33*AV34,"") -> 0 | AX34: =IFERROR(IF('Vstupní data'!$U$22="MAX",AX33/SMALL($H$33:$BO$33,COUNTIF($H$33:$BO$33,0)+1),MAX($H$33:$BO$33)/AX33),"") -> 0 | AY34: =IFERROR($G33*AX34,"") -> 0 | AZ34: =IFERROR(IF('Vstupní data'!$U$22="MAX",AZ33/SMALL($H$33:$BO$33,COUNTIF($H$33:$BO$33,0)+1),MAX($H$33:$BO$33)/AZ33),"") -> 0 | BA34: =IFERROR($G33*AZ34,"") -> 0 | BB34: =IFERROR(IF('Vstupní data'!$U$22="MAX",BB33/SMALL($H$33:$BO$33,COUNTIF($H$33:$BO$33,0)+1),MAX($H$33:$BO$33)/BB33),"") -> 0 | BC34: =IFERROR($G33*BB34,"") -> 0 | BD34: =IFERROR(IF('Vstupní data'!$U$22="MAX",BD33/SMALL($H$33:$BO$33,COUNTIF($H$33:$BO$33,0)+1),MAX($H$33:$BO$33)/BD33),"") -> 0 | BE34: =IFERROR($G33*BD34,"") -> 0 | BF34: =IFERROR(IF('Vstupní data'!$U$22="MAX",BF33/SMALL($H$33:$BO$33,COUNTIF($H$33:$BO$33,0)+1),MAX($H$33:$BO$33)/BF33),"") -> 0 | BG34: =IFERROR($G33*BF34,"") -> 0 | BH34: =IFERROR(IF('Vstupní data'!$U$22="MAX",BH33/SMALL($H$33:$BO$33,COUNTIF($H$33:$BO$33,0)+1),MAX($H$33:$BO$33)/BH33),"") -> 0 | BI34: =IFERROR($G33*BH34,"") -> 0 | BJ34: =IFERROR(IF('Vstupní data'!$U$22="MAX",BJ33/SMALL($H$33:$BO$33,COUNTIF($H$33:$BO$33,0)+1),MAX($H$33:$BO$33)/BJ33),"") -> 0 | BK34: =IFERROR($G33*BJ34,"") -> 0 | BL34: =IFERROR(IF('Vstupní data'!$U$22="MAX",BL33/SMALL($H$33:$BO$33,COUNTIF($H$33:$BO$33,0)+1),MAX($H$33:$BO$33)/BL33),"") -> 0 | BM34: =IFERROR($G33*BL34,"") -> 0 | BN34: =IFERROR(IF('Vstupní data'!$U$22="MAX",BN33/SMALL($H$33:$BO$33,COUNTIF($H$33:$BO$33,0)+1),MAX($H$33:$BO$33)/BN33),"") -> 0 | BO34: =IFERROR($G33*BN34,"") -> 0 | BY34: =AH21 ->  | BZ34: =AH53 -> 0
D35: ='Vstupní data'!V19 -> 0 | E35: ='Vstupní data'!V20 -> 0 | F35: ='Vstupní data'!V21 -> 0 | G35: =IFERROR(GETPIVOTDATA("[Measures].[Míra 1]",'Porovnání v trojúhelníku párů'!$W$8,"[Tabulka1].[Kritéria]","[Tabulka1].[Kritéria].&[7]"),0) -> 0 | H35: ='Vstupní data'!V23 -> 0 | J35: ='Vstupní data'!V24 -> 0 | L35: ='Vstupní data'!V25 -> 0 | N35: ='Vstupní data'!V26 -> 0 | P35: ='Vstupní data'!V27 -> 0 | R35: ='Vstupní data'!V28 -> 0 | T35: ='Vstupní data'!V29 -> 0 | V35: ='Vstupní data'!V30 -> 0 | X35: ='Vstupní data'!V31 -> 0 | Z35: ='Vstupní data'!V32 -> 0 | AB35: ='Vstupní data'!V33 -> 0 | AD35: ='Vstupní data'!V34 -> 0 | AF35: ='Vstupní data'!V35 -> 0 | AH35: ='Vstupní data'!V36 -> 0 | AJ35: ='Vstupní data'!V37 -> 0 | AL35: ='Vstupní data'!V38 -> 0 | AN35: ='Vstupní data'!V39 -> 0 | AP35: ='Vstupní data'!V40 -> 0 | AR35: ='Vstupní data'!V41 -> 0 | AT35: ='Vstupní data'!V42 -> 0 | AV35: ='Vstupní data'!V43 -> 0 | AX35: ='Vstupní data'!V44 -> 0 | AZ35: ='Vstupní data'!V45 -> 0 | BB35: ='Vstupní data'!V46 -> 0 | BD35: ='Vstupní data'!V47 -> 0 | BF35: ='Vstupní data'!V48 -> 0 | BH35: ='Vstupní data'!V49 -> 0 | BJ35: ='Vstupní data'!V50 -> 0 | BL35: ='Vstupní data'!V51 -> 0 | BN35: ='Vstupní data'!V52 -> 0 | BY35: =AJ21 ->  | BZ35: =AJ53 -> 0
H36: =IFERROR(IF('Vstupní data'!$V$22="MAX",H35/SMALL($H$35:$BO$35,COUNTIF($H$35:$BO$35,0)+1),MAX($H$35:$BO$35)/H35),"") ->  | I36: =IFERROR($G35*H36,"") ->  | J36: =IFERROR(IF('Vstupní data'!$V$22="MAX",J35/SMALL($H$35:$BO$35,COUNTIF($H$35:$BO$35,0)+1),MAX($H$35:$BO$35)/J35),"") ->  | K36: =IFERROR($G35*J36,"") ->  | L36: =IFERROR(IF('Vstupní data'!$V$22="MAX",L35/SMALL($H$35:$BO$35,COUNTIF($H$35:$BO$35,0)+1),MAX($H$35:$BO$35)/L35),"") ->  | M36: =IFERROR($G35*L36,"") ->  | N36: =IFERROR(IF('Vstupní data'!$V$22="MAX",N35/SMALL($H$35:$BO$35,COUNTIF($H$35:$BO$35,0)+1),MAX($H$35:$BO$35)/N35),"") ->  | O36: =IFERROR($G35*N36,"") ->  | P36: =IFERROR(IF('Vstupní data'!$V$22="MAX",P35/SMALL($H$35:$BO$35,COUNTIF($H$35:$BO$35,0)+1),MAX($H$35:$BO$35)/P35),"") ->  | Q36: =IFERROR($G35*P36,"") ->  | R36: =IFERROR(IF('Vstupní data'!$V$22="MAX",R35/SMALL($H$35:$BO$35,COUNTIF($H$35:$BO$35,0)+1),MAX($H$35:$BO$35)/R35),"") ->  | S36: =IFERROR($G35*R36,"") ->  | T36: =IFERROR(IF('Vstupní data'!$V$22="MAX",T35/SMALL($H$35:$BO$35,COUNTIF($H$35:$BO$35,0)+1),MAX($H$35:$BO$35)/T35),"") ->  | U36: =IFERROR($G35*T36,"") ->  | V36: =IFERROR(IF('Vstupní data'!$V$22="MAX",V35/SMALL($H$35:$BO$35,COUNTIF($H$35:$BO$35,0)+1),MAX($H$35:$BO$35)/V35),"") ->  | W36: =IFERROR($G35*V36,"") ->  | X36: =IFERROR(IF('Vstupní data'!$V$22="MAX",X35/SMALL($H$35:$BO$35,COUNTIF($H$35:$BO$35,0)+1),MAX($H$35:$BO$35)/X35),"") ->  | Y36: =IFERROR($G35*X36,"") ->  | Z36: =IFERROR(IF('Vstupní data'!$V$22="MAX",Z35/SMALL($H$35:$BO$35,COUNTIF($H$35:$BO$35,0)+1),MAX($H$35:$BO$35)/Z35),"") ->  | AA36: =IFERROR($G35*Z36,"") ->  | AB36: =IFERROR(IF('Vstupní data'!$V$22="MAX",AB35/SMALL($H$35:$BO$35,COUNTIF($H$35:$BO$35,0)+1),MAX($H$35:$BO$35)/AB35),"") ->  | AC36: =IFERROR($G35*AB36,"") ->  | AD36: =IFERROR(IF('Vstupní data'!$V$22="MAX",AD35/SMALL($H$35:$BO$35,COUNTIF($H$35:$BO$35,0)+1),MAX($H$35:$BO$35)/AD35),"") ->  | AE36: =IFERROR($G35*AD36,"") ->  | AF36: =IFERROR(IF('Vstupní data'!$V$22="MAX",AF35/SMALL($H$35:$BO$35,COUNTIF($H$35:$BO$35,0)+1),MAX($H$35:$BO$35)/AF35),"") ->  | AG36: =IFERROR($G35*AF36,"") ->  | AH36: =IFERROR(IF('Vstupní data'!$V$22="MAX",AH35/SMALL($H$35:$BO$35,COUNTIF($H$35:$BO$35,0)+1),MAX($H$35:$BO$35)/AH35),"") ->  | AI36: =IFERROR($G35*AH36,"") ->  | AJ36: =IFERROR(IF('Vstupní data'!$V$22="MAX",AJ35/SMALL($H$35:$BO$35,COUNTIF($H$35:$BO$35,0)+1),MAX($H$35:$BO$35)/AJ35),"") ->  | AK36: =IFERROR($G35*AJ36,"") ->  | AL36: =IFERROR(IF('Vstupní data'!$V$22="MAX",AL35/SMALL($H$35:$BO$35,COUNTIF($H$35:$BO$35,0)+1),MAX($H$35:$BO$35)/AL35),"") ->  | AM36: =IFERROR($G35*AL36,"") ->  | AN36: =IFERROR(IF('Vstupní data'!$V$22="MAX",AN35/SMALL($H$35:$BO$35,COUNTIF($H$35:$BO$35,0)+1),MAX($H$35:$BO$35)/AN35),"") ->  | AO36: =IFERROR($G35*AN36,"") ->  | AP36: =IFERROR(IF('Vstupní data'!$V$22="MAX",AP35/SMALL($H$35:$BO$35,COUNTIF($H$35:$BO$35,0)+1),MAX($H$35:$BO$35)/AP35),"") ->  | AQ36: =IFERROR($G35*AP36,"") ->  | AR36: =IFERROR(IF('Vstupní data'!$V$22="MAX",AR35/SMALL($H$35:$BO$35,COUNTIF($H$35:$BO$35,0)+1),MAX($H$35:$BO$35)/AR35),"") ->  | AS36: =IFERROR($G35*AR36,"") ->  | AT36: =IFERROR(IF('Vstupní data'!$V$22="MAX",AT35/SMALL($H$35:$BO$35,COUNTIF($H$35:$BO$35,0)+1),MAX($H$35:$BO$35)/AT35),"") ->  | AU36: =IFERROR($G35*AT36,"") ->  | AV36: =IFERROR(IF('Vstupní data'!$V$22="MAX",AV35/SMALL($H$35:$BO$35,COUNTIF($H$35:$BO$35,0)+1),MAX($H$35:$BO$35)/AV35),"") ->  | AW36: =IFERROR($G35*AV36,"") ->  | AX36: =IFERROR(IF('Vstupní data'!$V$22="MAX",AX35/SMALL($H$35:$BO$35,COUNTIF($H$35:$BO$35,0)+1),MAX($H$35:$BO$35)/AX35),"") ->  | AY36: =IFERROR($G35*AX36,"") ->  | AZ36: =IFERROR(IF('Vstupní data'!$V$22="MAX",AZ35/SMALL($H$35:$BO$35,COUNTIF($H$35:$BO$35,0)+1),MAX($H$35:$BO$35)/AZ35),"") ->  | BA36: =IFERROR($G35*AZ36,"") ->  | BB36: =IFERROR(IF('Vstupní data'!$V$22="MAX",BB35/SMALL($H$35:$BO$35,COUNTIF($H$35:$BO$35,0)+1),MAX($H$35:$BO$35)/BB35),"") ->  | BC36: =IFERROR($G35*BB36,"") ->  | BD36: =IFERROR(IF('Vstupní data'!$V$22="MAX",BD35/SMALL($H$35:$BO$35,COUNTIF($H$35:$BO$35,0)+1),MAX($H$35:$BO$35)/BD35),"") ->  | BE36: =IFERROR($G35*BD36,"") ->  | BF36: =IFERROR(IF('Vstupní data'!$V$22="MAX",BF35/SMALL($H$35:$BO$35,COUNTIF($H$35:$BO$35,0)+1),MAX($H$35:$BO$35)/BF35),"") ->  | BG36: =IFERROR($G35*BF36,"") ->  | BH36: =IFERROR(IF('Vstupní data'!$V$22="MAX",BH35/SMALL($H$35:$BO$35,COUNTIF($H$35:$BO$35,0)+1),MAX($H$35:$BO$35)/BH35),"") ->  | BI36: =IFERROR($G35*BH36,"") ->  | BJ36: =IFERROR(IF('Vstupní data'!$V$22="MAX",BJ35/SMALL($H$35:$BO$35,COUNTIF($H$35:$BO$35,0)+1),MAX($H$35:$BO$35)/BJ35),"") ->  | BK36: =IFERROR($G35*BJ36,"") ->  | BL36: =IFERROR(IF('Vstupní data'!$V$22="MAX",BL35/SMALL($H$35:$BO$35,COUNTIF($H$35:$BO$35,0)+1),MAX($H$35:$BO$35)/BL35),"") ->  | BM36: =IFERROR($G35*BL36,"") ->  | BN36: =IFERROR(IF('Vstupní data'!$V$22="MAX",BN35/SMALL($H$35:$BO$35,COUNTIF($H$35:$BO$35,0)+1),MAX($H$35:$BO$35)/BN35),"") ->  | BO36: =IFERROR($G35*BN36,"") ->  | BY36: =AL21 ->  | BZ36: =AL53 -> 0
D37: ='Vstupní data'!W19 -> 0 | E37: ='Vstupní data'!W20 -> 0 | F37: ='Vstupní data'!W21 -> 0 | G37: =IFERROR(GETPIVOTDATA("[Measures].[Míra 1]",'Porovnání v trojúhelníku párů'!$W$8,"[Tabulka1].[Kritéria]","[Tabulka1].[Kritéria].&[8]"),0) -> 0 | H37: ='Vstupní data'!W23 -> 0 | J37: ='Vstupní data'!W24 -> 0 | L37: ='Vstupní data'!W25 -> 0 | N37: ='Vstupní data'!W26 -> 0 | P37: ='Vstupní data'!W27 -> 0 | R37: ='Vstupní data'!W28 -> 0 | T37: ='Vstupní data'!W29 -> 0 | V37: ='Vstupní data'!W30 -> 0 | X37: ='Vstupní data'!W31 -> 0 | Z37: ='Vstupní data'!W32 -> 0 | AB37: ='Vstupní data'!W33 -> 0 | AD37: ='Vstupní data'!W34 -> 0 | AF37: ='Vstupní data'!W35 -> 0 | AH37: ='Vstupní data'!W36 -> 0 | AJ37: ='Vstupní data'!W37 -> 0 | AL37: ='Vstupní data'!W38 -> 0 | AN37: ='Vstupní data'!W39 -> 0 | AP37: ='Vstupní data'!W40 -> 0 | AR37: ='Vstupní data'!W41 -> 0 | AT37: ='Vstupní data'!W42 -> 0 | AV37: ='Vstupní data'!W43 -> 0 | AX37: ='Vstupní data'!W44 -> 0 | AZ37: ='Vstupní data'!W45 -> 0 | BB37: ='Vstupní data'!W46 -> 0 | BD37: ='Vstupní data'!W47 -> 0 | BF37: ='Vstupní data'!W48 -> 0 | BH37: ='Vstupní data'!W49 -> 0 | BJ37: ='Vstupní data'!W50 -> 0 | BL37: ='Vstupní data'!W51 -> 0 | BN37: ='Vstupní data'!W52 -> 0 | BY37: =AN21 ->  | BZ37: =AN53 -> 0
H38: =IFERROR(IF('Vstupní data'!$W$22="MAX",H37/SMALL($H$37:$BO$37,COUNTIF($H$37:$BO$37,0)+1),MAX($H$37:$BO$37)/H37),"") ->  | I38: =IFERROR($G37*H38,"") ->  | J38: =IFERROR(IF('Vstupní data'!$W$22="MAX",J37/SMALL($H$37:$BO$37,COUNTIF($H$37:$BO$37,0)+1),MAX($H$37:$BO$37)/J37),"") ->  | K38: =IFERROR($G37*J38,"") ->  | L38: =IFERROR(IF('Vstupní data'!$W$22="MAX",L37/SMALL($H$37:$BO$37,COUNTIF($H$37:$BO$37,0)+1),MAX($H$37:$BO$37)/L37),"") ->  | M38: =IFERROR($G37*L38,"") ->  | N38: =IFERROR(IF('Vstupní data'!$W$22="MAX",N37/SMALL($H$37:$BO$37,COUNTIF($H$37:$BO$37,0)+1),MAX($H$37:$BO$37)/N37),"") ->  | O38: =IFERROR($G37*N38,"") ->  | P38: =IFERROR(IF('Vstupní data'!$W$22="MAX",P37/SMALL($H$37:$BO$37,COUNTIF($H$37:$BO$37,0)+1),MAX($H$37:$BO$37)/P37),"") ->  | Q38: =IFERROR($G37*P38,"") ->  | R38: =IFERROR(IF('Vstupní data'!$W$22="MAX",R37/SMALL($H$37:$BO$37,COUNTIF($H$37:$BO$37,0)+1),MAX($H$37:$BO$37)/R37),"") ->  | S38: =IFERROR($G37*R38,"") ->  | T38: =IFERROR(IF('Vstupní data'!$W$22="MAX",T37/SMALL($H$37:$BO$37,COUNTIF($H$37:$BO$37,0)+1),MAX($H$37:$BO$37)/T37),"") ->  | U38: =IFERROR($G37*T38,"") ->  | V38: =IFERROR(IF('Vstupní data'!$W$22="MAX",V37/SMALL($H$37:$BO$37,COUNTIF($H$37:$BO$37,0)+1),MAX($H$37:$BO$37)/V37),"") ->  | W38: =IFERROR($G37*V38,"") ->  | X38: =IFERROR(IF('Vstupní data'!$W$22="MAX",X37/SMALL($H$37:$BO$37,COUNTIF($H$37:$BO$37,0)+1),MAX($H$37:$BO$37)/X37),"") ->  | Y38: =IFERROR($G37*X38,"") ->  | Z38: =IFERROR(IF('Vstupní data'!$W$22="MAX",Z37/SMALL($H$37:$BO$37,COUNTIF($H$37:$BO$37,0)+1),MAX($H$37:$BO$37)/Z37),"") ->  | AA38: =IFERROR($G37*Z38,"") ->  | AB38: =IFERROR(IF('Vstupní data'!$W$22="MAX",AB37/SMALL($H$37:$BO$37,COUNTIF($H$37:$BO$37,0)+1),MAX($H$37:$BO$37)/AB37),"") ->  | AC38: =IFERROR($G37*AB38,"") ->  | AD38: =IFERROR(IF('Vstupní data'!$W$22="MAX",AD37/SMALL($H$37:$BO$37,COUNTIF($H$37:$BO$37,0)+1),MAX($H$37:$BO$37)/AD37),"") ->  | AE38: =IFERROR($G37*AD38,"") ->  | AF38: =IFERROR(IF('Vstupní data'!$W$22="MAX",AF37/SMALL($H$37:$BO$37,COUNTIF($H$37:$BO$37,0)+1),MAX($H$37:$BO$37)/AF37),"") ->  | AG38: =IFERROR($G37*AF38,"") ->  | AH38: =IFERROR(IF('Vstupní data'!$W$22="MAX",AH37/SMALL($H$37:$BO$37,COUNTIF($H$37:$BO$37,0)+1),MAX($H$37:$BO$37)/AH37),"") ->  | AI38: =IFERROR($G37*AH38,"") ->  | AJ38: =IFERROR(IF('Vstupní data'!$W$22="MAX",AJ37/SMALL($H$37:$BO$37,COUNTIF($H$37:$BO$37,0)+1),MAX($H$37:$BO$37)/AJ37),"") ->  | AK38: =IFERROR($G37*AJ38,"") ->  | AL38: =IFERROR(IF('Vstupní data'!$W$22="MAX",AL37/SMALL($H$37:$BO$37,COUNTIF($H$37:$BO$37,0)+1),MAX($H$37:$BO$37)/AL37),"") ->  | AM38: =IFERROR($G37*AL38,"") ->  | AN38: =IFERROR(IF('Vstupní data'!$W$22="MAX",AN37/SMALL($H$37:$BO$37,COUNTIF($H$37:$BO$37,0)+1),MAX($H$37:$BO$37)/AN37),"") ->  | AO38: =IFERROR($G37*AN38,"") ->  | AP38: =IFERROR(IF('Vstupní data'!$W$22="MAX",AP37/SMALL($H$37:$BO$37,COUNTIF($H$37:$BO$37,0)+1),MAX($H$37:$BO$37)/AP37),"") ->  | AQ38: =IFERROR($G37*AP38,"") ->  | AR38: =IFERROR(IF('Vstupní data'!$W$22="MAX",AR37/SMALL($H$37:$BO$37,COUNTIF($H$37:$BO$37,0)+1),MAX($H$37:$BO$37)/AR37),"") ->  | AS38: =IFERROR($G37*AR38,"") ->  | AT38: =IFERROR(IF('Vstupní data'!$W$22="MAX",AT37/SMALL($H$37:$BO$37,COUNTIF($H$37:$BO$37,0)+1),MAX($H$37:$BO$37)/AT37),"") ->  | AU38: =IFERROR($G37*AT38,"") ->  | AV38: =IFERROR(IF('Vstupní data'!$W$22="MAX",AV37/SMALL($H$37:$BO$37,COUNTIF($H$37:$BO$37,0)+1),MAX($H$37:$BO$37)/AV37),"") ->  | AW38: =IFERROR($G37*AV38,"") ->  | AX38: =IFERROR(IF('Vstupní data'!$W$22="MAX",AX37/SMALL($H$37:$BO$37,COUNTIF($H$37:$BO$37,0)+1),MAX($H$37:$BO$37)/AX37),"") ->  | AY38: =IFERROR($G37*AX38,"") ->  | AZ38: =IFERROR(IF('Vstupní data'!$W$22="MAX",AZ37/SMALL($H$37:$BO$37,COUNTIF($H$37:$BO$37,0)+1),MAX($H$37:$BO$37)/AZ37),"") ->  | BA38: =IFERROR($G37*AZ38,"") ->  | BB38: =IFERROR(IF('Vstupní data'!$W$22="MAX",BB37/SMALL($H$37:$BO$37,COUNTIF($H$37:$BO$37,0)+1),MAX($H$37:$BO$37)/BB37),"") ->  | BC38: =IFERROR($G37*BB38,"") ->  | BD38: =IFERROR(IF('Vstupní data'!$W$22="MAX",BD37/SMALL($H$37:$BO$37,COUNTIF($H$37:$BO$37,0)+1),MAX($H$37:$BO$37)/BD37),"") ->  | BE38: =IFERROR($G37*BD38,"") ->  | BF38: =IFERROR(IF('Vstupní data'!$W$22="MAX",BF37/SMALL($H$37:$BO$37,COUNTIF($H$37:$BO$37,0)+1),MAX($H$37:$BO$37)/BF37),"") ->  | BG38: =IFERROR($G37*BF38,"") ->  | BH38: =IFERROR(IF('Vstupní data'!$W$22="MAX",BH37/SMALL($H$37:$BO$37,COUNTIF($H$37:$BO$37,0)+1),MAX($H$37:$BO$37)/BH37),"") ->  | BI38: =IFERROR($G37*BH38,"") ->  | BJ38: =IFERROR(IF('Vstupní data'!$W$22="MAX",BJ37/SMALL($H$37:$BO$37,COUNTIF($H$37:$BO$37,0)+1),MAX($H$37:$BO$37)/BJ37),"") ->  | BK38: =IFERROR($G37*BJ38,"") ->  | BL38: =IFERROR(IF('Vstupní data'!$W$22="MAX",BL37/SMALL($H$37:$BO$37,COUNTIF($H$37:$BO$37,0)+1),MAX($H$37:$BO$37)/BL37),"") ->  | BM38: =IFERROR($G37*BL38,"") ->  | BN38: =IFERROR(IF('Vstupní data'!$W$22="MAX",BN37/SMALL($H$37:$BO$37,COUNTIF($H$37:$BO$37,0)+1),MAX($H$37:$BO$37)/BN37),"") ->  | BO38: =IFERROR($G37*BN38,"") ->  | BY38: =AP21 ->  | BZ38: =AP53 -> 0
D39: ='Vstupní data'!X19 -> 0 | E39: ='Vstupní data'!X20 -> 0 | F39: ='Vstupní data'!X21 -> 0 | G39: =IFERROR(GETPIVOTDATA("[Measures].[Míra 1]",'Porovnání v trojúhelníku párů'!$W$8,"[Tabulka1].[Kritéria]","[Tabulka1].[Kritéria].&[9]"),0) -> 0 | H39: ='Vstupní data'!X23 -> 0 | J39: ='Vstupní data'!X24 -> 0 | L39: ='Vstupní data'!X25 -> 0 | N39: ='Vstupní data'!X26 -> 0 | P39: ='Vstupní data'!X27 -> 0 | R39: ='Vstupní data'!X28 -> 0 | T39: ='Vstupní data'!X29 -> 0 | V39: ='Vstupní data'!X30 -> 0 | X39: ='Vstupní data'!X31 -> 0 | Z39: ='Vstupní data'!X32 -> 0 | AB39: ='Vstupní data'!X33 -> 0 | AD39: ='Vstupní data'!X34 -> 0 | AF39: ='Vstupní data'!X35 -> 0 | AH39: ='Vstupní data'!X36 -> 0 | AJ39: ='Vstupní data'!X37 -> 0 | AL39: ='Vstupní data'!X38 -> 0 | AN39: ='Vstupní data'!X39 -> 0 | AP39: ='Vstupní data'!X40 -> 0 | AR39: ='Vstupní data'!X41 -> 0 | AT39: ='Vstupní data'!X42 -> 0 | AV39: ='Vstupní data'!X43 -> 0 | AX39: ='Vstupní data'!X44 -> 0 | AZ39: ='Vstupní data'!X45 -> 0 | BB39: ='Vstupní data'!X46 -> 0 | BD39: ='Vstupní data'!X47 -> 0 | BF39: ='Vstupní data'!X48 -> 0 | BH39: ='Vstupní data'!X49 -> 0 | BJ39: ='Vstupní data'!X50 -> 0 | BL39: ='Vstupní data'!X51 -> 0 | BN39: ='Vstupní data'!X52 -> 0 | BY39: =AR21 ->  | BZ39: =AR53 -> 0
H40: =IFERROR(IF('Vstupní data'!$X$22="MAX",H39/SMALL($H$39:$BO$39,COUNTIF($H$39:$BO$39,0)+1),MAX($H$39:$BO$39)/H39),"") ->  | I40: =IFERROR($G39*H40,"") ->  | J40: =IFERROR(IF('Vstupní data'!$X$22="MAX",J39/SMALL($H$39:$BO$39,COUNTIF($H$39:$BO$39,0)+1),MAX($H$39:$BO$39)/J39),"") ->  | K40: =IFERROR($G39*J40,"") ->  | L40: =IFERROR(IF('Vstupní data'!$X$22="MAX",L39/SMALL($H$39:$BO$39,COUNTIF($H$39:$BO$39,0)+1),MAX($H$39:$BO$39)/L39),"") ->  | M40: =IFERROR($G39*L40,"") ->  | N40: =IFERROR(IF('Vstupní data'!$X$22="MAX",N39/SMALL($H$39:$BO$39,COUNTIF($H$39:$BO$39,0)+1),MAX($H$39:$BO$39)/N39),"") ->  | O40: =IFERROR($G39*N40,"") ->  | P40: =IFERROR(IF('Vstupní data'!$X$22="MAX",P39/SMALL($H$39:$BO$39,COUNTIF($H$39:$BO$39,0)+1),MAX($H$39:$BO$39)/P39),"") ->  | Q40: =IFERROR($G39*P40,"") ->  | R40: =IFERROR(IF('Vstupní data'!$X$22="MAX",R39/SMALL($H$39:$BO$39,COUNTIF($H$39:$BO$39,0)+1),MAX($H$39:$BO$39)/R39),"") ->  | S40: =IFERROR($G39*R40,"") ->  | T40: =IFERROR(IF('Vstupní data'!$X$22="MAX",T39/SMALL($H$39:$BO$39,COUNTIF($H$39:$BO$39,0)+1),MAX($H$39:$BO$39)/T39),"") ->  | U40: =IFERROR($G39*T40,"") ->  | V40: =IFERROR(IF('Vstupní data'!$X$22="MAX",V39/SMALL($H$39:$BO$39,COUNTIF($H$39:$BO$39,0)+1),MAX($H$39:$BO$39)/V39),"") ->  | W40: =IFERROR($G39*V40,"") ->  | X40: =IFERROR(IF('Vstupní data'!$X$22="MAX",X39/SMALL($H$39:$BO$39,COUNTIF($H$39:$BO$39,0)+1),MAX($H$39:$BO$39)/X39),"") ->  | Y40: =IFERROR($G39*X40,"") ->  | Z40: =IFERROR(IF('Vstupní data'!$X$22="MAX",Z39/SMALL($H$39:$BO$39,COUNTIF($H$39:$BO$39,0)+1),MAX($H$39:$BO$39)/Z39),"") ->  | AA40: =IFERROR($G39*Z40,"") ->  | AB40: =IFERROR(IF('Vstupní data'!$X$22="MAX",AB39/SMALL($H$39:$BO$39,COUNTIF($H$39:$BO$39,0)+1),MAX($H$39:$BO$39)/AB39),"") ->  | AC40: =IFERROR($G39*AB40,"") ->  | AD40: =IFERROR(IF('Vstupní data'!$X$22="MAX",AD39/SMALL($H$39:$BO$39,COUNTIF($H$39:$BO$39,0)+1),MAX($H$39:$BO$39)/AD39),"") ->  | AE40: =IFERROR($G39*AD40,"") ->  | AF40: =IFERROR(IF('Vstupní data'!$X$22="MAX",AF39/SMALL($H$39:$BO$39,COUNTIF($H$39:$BO$39,0)+1),MAX($H$39:$BO$39)/AF39),"") ->  | AG40: =IFERROR($G39*AF40,"") ->  | AH40: =IFERROR(IF('Vstupní data'!$X$22="MAX",AH39/SMALL($H$39:$BO$39,COUNTIF($H$39:$BO$39,0)+1),MAX($H$39:$BO$39)/AH39),"") ->  | AI40: =IFERROR($G39*AH40,"") ->  | AJ40: =IFERROR(IF('Vstupní data'!$X$22="MAX",AJ39/SMALL($H$39:$BO$39,COUNTIF($H$39:$BO$39,0)+1),MAX($H$39:$BO$39)/AJ39),"") ->  | AK40: =IFERROR($G39*AJ40,"") ->  | AL40: =IFERROR(IF('Vstupní data'!$X$22="MAX",AL39/SMALL($H$39:$BO$39,COUNTIF($H$39:$BO$39,0)+1),MAX($H$39:$BO$39)/AL39),"") ->  | AM40: =IFERROR($G39*AL40,"") ->  | AN40: =IFERROR(IF('Vstupní data'!$X$22="MAX",AN39/SMALL($H$39:$BO$39,COUNTIF($H$39:$BO$39,0)+1),MAX($H$39:$BO$39)/AN39),"") ->  | AO40: =IFERROR($G39*AN40,"") ->  | AP40: =IFERROR(IF('Vstupní data'!$X$22="MAX",AP39/SMALL($H$39:$BO$39,COUNTIF($H$39:$BO$39,0)+1),MAX($H$39:$BO$39)/AP39),"") ->  | AQ40: =IFERROR($G39*AP40,"") ->  | AR40: =IFERROR(IF('Vstupní data'!$X$22="MAX",AR39/SMALL($H$39:$BO$39,COUNTIF($H$39:$BO$39,0)+1),MAX($H$39:$BO$39)/AR39),"") ->  | AS40: =IFERROR($G39*AR40,"") ->  | AT40: =IFERROR(IF('Vstupní data'!$X$22="MAX",AT39/SMALL($H$39:$BO$39,COUNTIF($H$39:$BO$39,0)+1),MAX($H$39:$BO$39)/AT39),"") ->  | AU40: =IFERROR($G39*AT40,"") ->  | AV40: =IFERROR(IF('Vstupní data'!$X$22="MAX",AV39/SMALL($H$39:$BO$39,COUNTIF($H$39:$BO$39,0)+1),MAX($H$39:$BO$39)/AV39),"") ->  | AW40: =IFERROR($G39*AV40,"") ->  | AX40: =IFERROR(IF('Vstupní data'!$X$22="MAX",AX39/SMALL($H$39:$BO$39,COUNTIF($H$39:$BO$39,0)+1),MAX($H$39:$BO$39)/AX39),"") ->  | AY40: =IFERROR($G39*AX40,"") ->  | AZ40: =IFERROR(IF('Vstupní data'!$X$22="MAX",AZ39/SMALL($H$39:$BO$39,COUNTIF($H$39:$BO$39,0)+1),MAX($H$39:$BO$39)/AZ39),"") ->  | BA40: =IFERROR($G39*AZ40,"") ->  | BB40: =IFERROR(IF('Vstupní data'!$X$22="MAX",BB39/SMALL($H$39:$BO$39,COUNTIF($H$39:$BO$39,0)+1),MAX($H$39:$BO$39)/BB39),"") ->  | BC40: =IFERROR($G39*BB40,"") ->  | BD40: =IFERROR(IF('Vstupní data'!$X$22="MAX",BD39/SMALL($H$39:$BO$39,COUNTIF($H$39:$BO$39,0)+1),MAX($H$39:$BO$39)/BD39),"") ->  | BE40: =IFERROR($G39*BD40,"") ->  | BF40: =IFERROR(IF('Vstupní data'!$X$22="MAX",BF39/SMALL($H$39:$BO$39,COUNTIF($H$39:$BO$39,0)+1),MAX($H$39:$BO$39)/BF39),"") ->  | BG40: =IFERROR($G39*BF40,"") ->  | BH40: =IFERROR(IF('Vstupní data'!$X$22="MAX",BH39/SMALL($H$39:$BO$39,COUNTIF($H$39:$BO$39,0)+1),MAX($H$39:$BO$39)/BH39),"") ->  | BI40: =IFERROR($G39*BH40,"") ->  | BJ40: =IFERROR(IF('Vstupní data'!$X$22="MAX",BJ39/SMALL($H$39:$BO$39,COUNTIF($H$39:$BO$39,0)+1),MAX($H$39:$BO$39)/BJ39),"") ->  | BK40: =IFERROR($G39*BJ40,"") ->  | BL40: =IFERROR(IF('Vstupní data'!$X$22="MAX",BL39/SMALL($H$39:$BO$39,COUNTIF($H$39:$BO$39,0)+1),MAX($H$39:$BO$39)/BL39),"") ->  | BM40: =IFERROR($G39*BL40,"") ->  | BN40: =IFERROR(IF('Vstupní data'!$X$22="MAX",BN39/SMALL($H$39:$BO$39,COUNTIF($H$39:$BO$39,0)+1),MAX($H$39:$BO$39)/BN39),"") ->  | BO40: =IFERROR($G39*BN40,"") ->  | BY40: =AT21 ->  | BZ40: =AT53 -> 0
D41: ='Vstupní data'!Y19 -> 0 | E41: ='Vstupní data'!Y20 -> 0 | F41: ='Vstupní data'!Y21 -> 0 | G41: =IFERROR(GETPIVOTDATA("[Measures].[Míra 1]",'Porovnání v trojúhelníku párů'!$W$8,"[Tabulka1].[Kritéria]","[Tabulka1].[Kritéria].&[10]"),0) -> 0 | H41: ='Vstupní data'!Y23 -> 0 | J41: ='Vstupní data'!Y24 -> 0 | L41: ='Vstupní data'!Y25 -> 0 | N41: ='Vstupní data'!Y26 -> 0 | P41: ='Vstupní data'!Y27 -> 0 | R41: ='Vstupní data'!Y28 -> 0 | T41: ='Vstupní data'!Y29 -> 0 | V41: ='Vstupní data'!Y30 -> 0 | X41: ='Vstupní data'!Y31 -> 0 | Z41: ='Vstupní data'!Y32 -> 0 | AB41: ='Vstupní data'!Y33 -> 0 | AD41: ='Vstupní data'!Y34 -> 0 | AF41: ='Vstupní data'!Y35 -> 0 | AH41: ='Vstupní data'!Y36 -> 0 | AJ41: ='Vstupní data'!Y37 -> 0 | AL41: ='Vstupní data'!Y38 -> 0 | AN41: ='Vstupní data'!Y39 -> 0 | AP41: ='Vstupní data'!Y40 -> 0 | AR41: ='Vstupní data'!Y41 -> 0 | AT41: ='Vstupní data'!Y42 -> 0 | AV41: ='Vstupní data'!Y43 -> 0 | AX41: ='Vstupní data'!Y44 -> 0 | AZ41: ='Vstupní data'!Y45 -> 0 | BB41: ='Vstupní data'!Y46 -> 0 | BD41: ='Vstupní data'!Y47 -> 0 | BF41: ='Vstupní data'!Y48 -> 0 | BH41: ='Vstupní data'!Y49 -> 0 | BJ41: ='Vstupní data'!Y50 -> 0 | BL41: ='Vstupní data'!Y51 -> 0 | BN41: ='Vstupní data'!Y52 -> 0 | BY41: =AV21 ->  | BZ41: =AV53 -> 0
H42: =IFERROR(IF('Vstupní data'!$Y$22="MAX",H41/SMALL($H$41:$BO$41,COUNTIF($H$41:$BO$41,0)+1),MAX($H$41:$BO$41)/H41),"") ->  | I42: =IFERROR($G41*H42,"") ->  | J42: =IFERROR(IF('Vstupní data'!$Y$22="MAX",J41/SMALL($H$41:$BO$41,COUNTIF($H$41:$BO$41,0)+1),MAX($H$41:$BO$41)/J41),"") ->  | K42: =IFERROR($G41*J42,"") ->  | L42: =IFERROR(IF('Vstupní data'!$Y$22="MAX",L41/SMALL($H$41:$BO$41,COUNTIF($H$41:$BO$41,0)+1),MAX($H$41:$BO$41)/L41),"") ->  | M42: =IFERROR($G41*L42,"") ->  | N42: =IFERROR(IF('Vstupní data'!$Y$22="MAX",N41/SMALL($H$41:$BO$41,COUNTIF($H$41:$BO$41,0)+1),MAX($H$41:$BO$41)/N41),"") ->  | O42: =IFERROR($G41*N42,"") ->  | P42: =IFERROR(IF('Vstupní data'!$Y$22="MAX",P41/SMALL($H$41:$BO$41,COUNTIF($H$41:$BO$41,0)+1),MAX($H$41:$BO$41)/P41),"") ->  | Q42: =IFERROR($G41*P42,"") ->  | R42: =IFERROR(IF('Vstupní data'!$Y$22="MAX",R41/SMALL($H$41:$BO$41,COUNTIF($H$41:$BO$41,0)+1),MAX($H$41:$BO$41)/R41),"") ->  | S42: =IFERROR($G41*R42,"") ->  | T42: =IFERROR(IF('Vstupní data'!$Y$22="MAX",T41/SMALL($H$41:$BO$41,COUNTIF($H$41:$BO$41,0)+1),MAX($H$41:$BO$41)/T41),"") ->  | U42: =IFERROR($G41*T42,"") ->  | V42: =IFERROR(IF('Vstupní data'!$Y$22="MAX",V41/SMALL($H$41:$BO$41,COUNTIF($H$41:$BO$41,0)+1),MAX($H$41:$BO$41)/V41),"") ->  | W42: =IFERROR($G41*V42,"") ->  | X42: =IFERROR(IF('Vstupní data'!$Y$22="MAX",X41/SMALL($H$41:$BO$41,COUNTIF($H$41:$BO$41,0)+1),MAX($H$41:$BO$41)/X41),"") ->  | Y42: =IFERROR($G41*X42,"") ->  | Z42: =IFERROR(IF('Vstupní data'!$Y$22="MAX",Z41/SMALL($H$41:$BO$41,COUNTIF($H$41:$BO$41,0)+1),MAX($H$41:$BO$41)/Z41),"") ->  | AA42: =IFERROR($G41*Z42,"") ->  | AB42: =IFERROR(IF('Vstupní data'!$Y$22="MAX",AB41/SMALL($H$41:$BO$41,COUNTIF($H$41:$BO$41,0)+1),MAX($H$41:$BO$41)/AB41),"") ->  | AC42: =IFERROR($G41*AB42,"") ->  | AD42: =IFERROR(IF('Vstupní data'!$Y$22="MAX",AD41/SMALL($H$41:$BO$41,COUNTIF($H$41:$BO$41,0)+1),MAX($H$41:$BO$41)/AD41),"") ->  | AE42: =IFERROR($G41*AD42,"") ->  | AF42: =IFERROR(IF('Vstupní data'!$Y$22="MAX",AF41/SMALL($H$41:$BO$41,COUNTIF($H$41:$BO$41,0)+1),MAX($H$41:$BO$41)/AF41),"") ->  | AG42: =IFERROR($G41*AF42,"") ->  | AH42: =IFERROR(IF('Vstupní data'!$Y$22="MAX",AH41/SMALL($H$41:$BO$41,COUNTIF($H$41:$BO$41,0)+1),MAX($H$41:$BO$41)/AH41),"") ->  | AI42: =IFERROR($G41*AH42,"") ->  | AJ42: =IFERROR(IF('Vstupní data'!$Y$22="MAX",AJ41/SMALL($H$41:$BO$41,COUNTIF($H$41:$BO$41,0)+1),MAX($H$41:$BO$41)/AJ41),"") ->  | AK42: =IFERROR($G41*AJ42,"") ->  | AL42: =IFERROR(IF('Vstupní data'!$Y$22="MAX",AL41/SMALL($H$41:$BO$41,COUNTIF($H$41:$BO$41,0)+1),MAX($H$41:$BO$41)/AL41),"") ->  | AM42: =IFERROR($G41*AL42,"") ->  | AN42: =IFERROR(IF('Vstupní data'!$Y$22="MAX",AN41/SMALL($H$41:$BO$41,COUNTIF($H$41:$BO$41,0)+1),MAX($H$41:$BO$41)/AN41),"") ->  | AO42: =IFERROR($G41*AN42,"") ->  | AP42: =IFERROR(IF('Vstupní data'!$Y$22="MAX",AP41/SMALL($H$41:$BO$41,COUNTIF($H$41:$BO$41,0)+1),MAX($H$41:$BO$41)/AP41),"") ->  | AQ42: =IFERROR($G41*AP42,"") ->  | AR42: =IFERROR(IF('Vstupní data'!$Y$22="MAX",AR41/SMALL($H$41:$BO$41,COUNTIF($H$41:$BO$41,0)+1),MAX($H$41:$BO$41)/AR41),"") ->  | AS42: =IFERROR($G41*AR42,"") ->  | AT42: =IFERROR(IF('Vstupní data'!$Y$22="MAX",AT41/SMALL($H$41:$BO$41,COUNTIF($H$41:$BO$41,0)+1),MAX($H$41:$BO$41)/AT41),"") ->  | AU42: =IFERROR($G41*AT42,"") ->  | AV42: =IFERROR(IF('Vstupní data'!$Y$22="MAX",AV41/SMALL($H$41:$BO$41,COUNTIF($H$41:$BO$41,0)+1),MAX($H$41:$BO$41)/AV41),"") ->  | AW42: =IFERROR($G41*AV42,"") ->  | AX42: =IFERROR(IF('Vstupní data'!$Y$22="MAX",AX41/SMALL($H$41:$BO$41,COUNTIF($H$41:$BO$41,0)+1),MAX($H$41:$BO$41)/AX41),"") ->  | AY42: =IFERROR($G41*AX42,"") ->  | AZ42: =IFERROR(IF('Vstupní data'!$Y$22="MAX",AZ41/SMALL($H$41:$BO$41,COUNTIF($H$41:$BO$41,0)+1),MAX($H$41:$BO$41)/AZ41),"") ->  | BA42: =IFERROR($G41*AZ42,"") ->  | BB42: =IFERROR(IF('Vstupní data'!$Y$22="MAX",BB41/SMALL($H$41:$BO$41,COUNTIF($H$41:$BO$41,0)+1),MAX($H$41:$BO$41)/BB41),"") ->  | BC42: =IFERROR($G41*BB42,"") ->  | BD42: =IFERROR(IF('Vstupní data'!$Y$22="MAX",BD41/SMALL($H$41:$BO$41,COUNTIF($H$41:$BO$41,0)+1),MAX($H$41:$BO$41)/BD41),"") ->  | BE42: =IFERROR($G41*BD42,"") ->  | BF42: =IFERROR(IF('Vstupní data'!$Y$22="MAX",BF41/SMALL($H$41:$BO$41,COUNTIF($H$41:$BO$41,0)+1),MAX($H$41:$BO$41)/BF41),"") ->  | BG42: =IFERROR($G41*BF42,"") ->  | BH42: =IFERROR(IF('Vstupní data'!$Y$22="MAX",BH41/SMALL($H$41:$BO$41,COUNTIF($H$41:$BO$41,0)+1),MAX($H$41:$BO$41)/BH41),"") ->  | BI42: =IFERROR($G41*BH42,"") ->  | BJ42: =IFERROR(IF('Vstupní data'!$Y$22="MAX",BJ41/SMALL($H$41:$BO$41,COUNTIF($H$41:$BO$41,0)+1),MAX($H$41:$BO$41)/BJ41),"") ->  | BK42: =IFERROR($G41*BJ42,"") ->  | BL42: =IFERROR(IF('Vstupní data'!$Y$22="MAX",BL41/SMALL($H$41:$BO$41,COUNTIF($H$41:$BO$41,0)+1),MAX($H$41:$BO$41)/BL41),"") ->  | BM42: =IFERROR($G41*BL42,"") ->  | BN42: =IFERROR(IF('Vstupní data'!$Y$22="MAX",BN41/SMALL($H$41:$BO$41,COUNTIF($H$41:$BO$41,0)+1),MAX($H$41:$BO$41)/BN41),"") ->  | BO42: =IFERROR($G41*BN42,"") ->  | BY42: =AX21 ->  | BZ42: =AX53 -> 0
D43: ='Vstupní data'!Z19 -> 0 | E43: ='Vstupní data'!Z20 -> 0 | F43: ='Vstupní data'!Z21 -> 0 | G43: =IFERROR(GETPIVOTDATA("[Measures].[Míra 1]",'Porovnání v trojúhelníku párů'!$W$8,"[Tabulka1].[Kritéria]","[Tabulka1].[Kritéria].&[11]"),0) -> 0 | H43: ='Vstupní data'!Z23 -> 0 | J43: ='Vstupní data'!Z24 -> 0 | L43: ='Vstupní data'!Z25 -> 0 | N43: ='Vstupní data'!Z26 -> 0 | P43: ='Vstupní data'!Z27 -> 0 | R43: ='Vstupní data'!Z28 -> 0 | T43: ='Vstupní data'!Z29 -> 0 | V43: ='Vstupní data'!Z30 -> 0 | X43: ='Vstupní data'!Z31 -> 0 | Z43: ='Vstupní data'!Z32 -> 0 | AB43: ='Vstupní data'!Z33 -> 0 | AD43: ='Vstupní data'!Z34 -> 0 | AF43: ='Vstupní data'!Z35 -> 0 | AH43: ='Vstupní data'!Z36 -> 0 | AJ43: ='Vstupní data'!Z37 -> 0 | AL43: ='Vstupní data'!Z38 -> 0 | AN43: ='Vstupní data'!Z39 -> 0 | AP43: ='Vstupní data'!Z40 -> 0 | AR43: ='Vstupní data'!Z41 -> 0 | AT43: ='Vstupní data'!Z42 -> 0 | AV43: ='Vstupní data'!Z43 -> 0 | AX43: ='Vstupní data'!Z44 -> 0 | AZ43: ='Vstupní data'!Z45 -> 0 | BB43: ='Vstupní data'!Z46 -> 0 | BD43: ='Vstupní data'!Z47 -> 0 | BF43: ='Vstupní data'!Z48 -> 0 | BH43: ='Vstupní data'!Z49 -> 0 | BJ43: ='Vstupní data'!Z50 -> 0 | BL43: ='Vstupní data'!Z51 -> 0 | BN43: ='Vstupní data'!Z52 -> 0 | BY43: =AZ21 ->  | BZ43: =AZ53 -> 0
H44: =IFERROR(IF('Vstupní data'!$Z$22="MAX",H43/SMALL($H$43:$BO$43,COUNTIF($H$43:$BO$43,0)+1),MAX($H$43:$BO$43)/H43),"") ->  | I44: =IFERROR($G43*H44,"") ->  | J44: =IFERROR(IF('Vstupní data'!$Z$22="MAX",J43/SMALL($H$43:$BO$43,COUNTIF($H$43:$BO$43,0)+1),MAX($H$43:$BO$43)/J43),"") ->  | K44: =IFERROR($G43*J44,"") ->  | L44: =IFERROR(IF('Vstupní data'!$Z$22="MAX",L43/SMALL($H$43:$BO$43,COUNTIF($H$43:$BO$43,0)+1),MAX($H$43:$BO$43)/L43),"") ->  | M44: =IFERROR($G43*L44,"") ->  | N44: =IFERROR(IF('Vstupní data'!$Z$22="MAX",N43/SMALL($H$43:$BO$43,COUNTIF($H$43:$BO$43,0)+1),MAX($H$43:$BO$43)/N43),"") ->  | O44: =IFERROR($G43*N44,"") ->  | P44: =IFERROR(IF('Vstupní data'!$Z$22="MAX",P43/SMALL($H$43:$BO$43,COUNTIF($H$43:$BO$43,0)+1),MAX($H$43:$BO$43)/P43),"") ->  | Q44: =IFERROR($G43*P44,"") ->  | R44: =IFERROR(IF('Vstupní data'!$Z$22="MAX",R43/SMALL($H$43:$BO$43,COUNTIF($H$43:$BO$43,0)+1),MAX($H$43:$BO$43)/R43),"") ->  | S44: =IFERROR($G43*R44,"") ->  | T44: =IFERROR(IF('Vstupní data'!$Z$22="MAX",T43/SMALL($H$43:$BO$43,COUNTIF($H$43:$BO$43,0)+1),MAX($H$43:$BO$43)/T43),"") ->  | U44: =IFERROR($G43*T44,"") ->  | V44: =IFERROR(IF('Vstupní data'!$Z$22="MAX",V43/SMALL($H$43:$BO$43,COUNTIF($H$43:$BO$43,0)+1),MAX($H$43:$BO$43)/V43),"") ->  | W44: =IFERROR($G43*V44,"") ->  | X44: =IFERROR(IF('Vstupní data'!$Z$22="MAX",X43/SMALL($H$43:$BO$43,COUNTIF($H$43:$BO$43,0)+1),MAX($H$43:$BO$43)/X43),"") ->  | Y44: =IFERROR($G43*X44,"") ->  | Z44: =IFERROR(IF('Vstupní data'!$Z$22="MAX",Z43/SMALL($H$43:$BO$43,COUNTIF($H$43:$BO$43,0)+1),MAX($H$43:$BO$43)/Z43),"") ->  | AA44: =IFERROR($G43*Z44,"") ->  | AB44: =IFERROR(IF('Vstupní data'!$Z$22="MAX",AB43/SMALL($H$43:$BO$43,COUNTIF($H$43:$BO$43,0)+1),MAX($H$43:$BO$43)/AB43),"") ->  | AC44: =IFERROR($G43*AB44,"") ->  | AD44: =IFERROR(IF('Vstupní data'!$Z$22="MAX",AD43/SMALL($H$43:$BO$43,COUNTIF($H$43:$BO$43,0)+1),MAX($H$43:$BO$43)/AD43),"") ->  | AE44: =IFERROR($G43*AD44,"") ->  | AF44: =IFERROR(IF('Vstupní data'!$Z$22="MAX",AF43/SMALL($H$43:$BO$43,COUNTIF($H$43:$BO$43,0)+1),MAX($H$43:$BO$43)/AF43),"") ->  | AG44: =IFERROR($G43*AF44,"") ->  | AH44: =IFERROR(IF('Vstupní data'!$Z$22="MAX",AH43/SMALL($H$43:$BO$43,COUNTIF($H$43:$BO$43,0)+1),MAX($H$43:$BO$43)/AH43),"") ->  | AI44: =IFERROR($G43*AH44,"") ->  | AJ44: =IFERROR(IF('Vstupní data'!$Z$22="MAX",AJ43/SMALL($H$43:$BO$43,COUNTIF($H$43:$BO$43,0)+1),MAX($H$43:$BO$43)/AJ43),"") ->  | AK44: =IFERROR($G43*AJ44,"") ->  | AL44: =IFERROR(IF('Vstupní data'!$Z$22="MAX",AL43/SMALL($H$43:$BO$43,COUNTIF($H$43:$BO$43,0)+1),MAX($H$43:$BO$43)/AL43),"") ->  | AM44: =IFERROR($G43*AL44,"") ->  | AN44: =IFERROR(IF('Vstupní data'!$Z$22="MAX",AN43/SMALL($H$43:$BO$43,COUNTIF($H$43:$BO$43,0)+1),MAX($H$43:$BO$43)/AN43),"") ->  | AO44: =IFERROR($G43*AN44,"") ->  | AP44: =IFERROR(IF('Vstupní data'!$Z$22="MAX",AP43/SMALL($H$43:$BO$43,COUNTIF($H$43:$BO$43,0)+1),MAX($H$43:$BO$43)/AP43),"") ->  | AQ44: =IFERROR($G43*AP44,"") ->  | AR44: =IFERROR(IF('Vstupní data'!$Z$22="MAX",AR43/SMALL($H$43:$BO$43,COUNTIF($H$43:$BO$43,0)+1),MAX($H$43:$BO$43)/AR43),"") ->  | AS44: =IFERROR($G43*AR44,"") ->  | AT44: =IFERROR(IF('Vstupní data'!$Z$22="MAX",AT43/SMALL($H$43:$BO$43,COUNTIF($H$43:$BO$43,0)+1),MAX($H$43:$BO$43)/AT43),"") ->  | AU44: =IFERROR($G43*AT44,"") ->  | AV44: =IFERROR(IF('Vstupní data'!$Z$22="MAX",AV43/SMALL($H$43:$BO$43,COUNTIF($H$43:$BO$43,0)+1),MAX($H$43:$BO$43)/AV43),"") ->  | AW44: =IFERROR($G43*AV44,"") ->  | AX44: =IFERROR(IF('Vstupní data'!$Z$22="MAX",AX43/SMALL($H$43:$BO$43,COUNTIF($H$43:$BO$43,0)+1),MAX($H$43:$BO$43)/AX43),"") ->  | AY44: =IFERROR($G43*AX44,"") ->  | AZ44: =IFERROR(IF('Vstupní data'!$Z$22="MAX",AZ43/SMALL($H$43:$BO$43,COUNTIF($H$43:$BO$43,0)+1),MAX($H$43:$BO$43)/AZ43),"") ->  | BA44: =IFERROR($G43*AZ44,"") ->  | BB44: =IFERROR(IF('Vstupní data'!$Z$22="MAX",BB43/SMALL($H$43:$BO$43,COUNTIF($H$43:$BO$43,0)+1),MAX($H$43:$BO$43)/BB43),"") ->  | BC44: =IFERROR($G43*BB44,"") ->  | BD44: =IFERROR(IF('Vstupní data'!$Z$22="MAX",BD43/SMALL($H$43:$BO$43,COUNTIF($H$43:$BO$43,0)+1),MAX($H$43:$BO$43)/BD43),"") ->  | BE44: =IFERROR($G43*BD44,"") ->  | BF44: =IFERROR(IF('Vstupní data'!$Z$22="MAX",BF43/SMALL($H$43:$BO$43,COUNTIF($H$43:$BO$43,0)+1),MAX($H$43:$BO$43)/BF43),"") ->  | BG44: =IFERROR($G43*BF44,"") ->  | BH44: =IFERROR(IF('Vstupní data'!$Z$22="MAX",BH43/SMALL($H$43:$BO$43,COUNTIF($H$43:$BO$43,0)+1),MAX($H$43:$BO$43)/BH43),"") ->  | BI44: =IFERROR($G43*BH44,"") ->  | BJ44: =IFERROR(IF('Vstupní data'!$Z$22="MAX",BJ43/SMALL($H$43:$BO$43,COUNTIF($H$43:$BO$43,0)+1),MAX($H$43:$BO$43)/BJ43),"") ->  | BK44: =IFERROR($G43*BJ44,"") ->  | BL44: =IFERROR(IF('Vstupní data'!$Z$22="MAX",BL43/SMALL($H$43:$BO$43,COUNTIF($H$43:$BO$43,0)+1),MAX($H$43:$BO$43)/BL43),"") ->  | BM44: =IFERROR($G43*BL44,"") ->  | BN44: =IFERROR(IF('Vstupní data'!$Z$22="MAX",BN43/SMALL($H$43:$BO$43,COUNTIF($H$43:$BO$43,0)+1),MAX($H$43:$BO$43)/BN43),"") ->  | BO44: =IFERROR($G43*BN44,"") ->  | BY44: =BB21 ->  | BZ44: =BB53 -> 0
D45: ='Vstupní data'!AA19 -> 0 | E45: ='Vstupní data'!AA20 -> 0 | F45: ='Vstupní data'!AA21 -> 0 | G45: =IFERROR(GETPIVOTDATA("[Measures].[Míra 1]",'Porovnání v trojúhelníku párů'!$W$8,"[Tabulka1].[Kritéria]","[Tabulka1].[Kritéria].&[12]"),0) -> 0 | H45: ='Vstupní data'!AA23 -> 0 | J45: ='Vstupní data'!AA24 -> 0 | L45: ='Vstupní data'!AA25 -> 0 | N45: ='Vstupní data'!AA26 -> 0 | P45: ='Vstupní data'!AA27 -> 0 | R45: ='Vstupní data'!AA28 -> 0 | T45: ='Vstupní data'!AA29 -> 0 | V45: ='Vstupní data'!AA30 -> 0 | X45: ='Vstupní data'!AA31 -> 0 | Z45: ='Vstupní data'!AA32 -> 0 | AB45: ='Vstupní data'!AA33 -> 0 | AD45: ='Vstupní data'!AA34 -> 0 | AF45: ='Vstupní data'!AA35 -> 0 | AH45: ='Vstupní data'!AA36 -> 0 | AJ45: ='Vstupní data'!AA37 -> 0 | AL45: ='Vstupní data'!AA38 -> 0 | AN45: ='Vstupní data'!AA39 -> 0 | AP45: ='Vstupní data'!AA40 -> 0 | AR45: ='Vstupní data'!AA41 -> 0 | AT45: ='Vstupní data'!AA42 -> 0 | AV45: ='Vstupní data'!AA43 -> 0 | AX45: ='Vstupní data'!AA44 -> 0 | AZ45: ='Vstupní data'!AA45 -> 0 | BB45: ='Vstupní data'!AA46 -> 0 | BD45: ='Vstupní data'!AA47 -> 0 | BF45: ='Vstupní data'!AA48 -> 0 | BH45: ='Vstupní data'!AA49 -> 0 | BJ45: ='Vstupní data'!AA50 -> 0 | BL45: ='Vstupní data'!AA51 -> 0 | BN45: ='Vstupní data'!AA52 -> 0 | BY45: =BD21 ->  | BZ45: =BD53 -> 0
H46: =IFERROR(IF('Vstupní data'!$AA$22="MAX",H45/SMALL($H$45:$BO$45,COUNTIF($H$45:$BO$45,0)+1),MAX($H$45:$BO$45)/H45),"") ->  | I46: =IFERROR($G45*H46,"") ->  | J46: =IFERROR(IF('Vstupní data'!$AA$22="MAX",J45/SMALL($H$45:$BO$45,COUNTIF($H$45:$BO$45,0)+1),MAX($H$45:$BO$45)/J45),"") ->  | K46: =IFERROR($G45*J46,"") ->  | L46: =IFERROR(IF('Vstupní data'!$AA$22="MAX",L45/SMALL($H$45:$BO$45,COUNTIF($H$45:$BO$45,0)+1),MAX($H$45:$BO$45)/L45),"") ->  | M46: =IFERROR($G45*L46,"") ->  | N46: =IFERROR(IF('Vstupní data'!$AA$22="MAX",N45/SMALL($H$45:$BO$45,COUNTIF($H$45:$BO$45,0)+1),MAX($H$45:$BO$45)/N45),"") ->  | O46: =IFERROR($G45*N46,"") ->  | P46: =IFERROR(IF('Vstupní data'!$AA$22="MAX",P45/SMALL($H$45:$BO$45,COUNTIF($H$45:$BO$45,0)+1),MAX($H$45:$BO$45)/P45),"") ->  | Q46: =IFERROR($G45*P46,"") ->  | R46: =IFERROR(IF('Vstupní data'!$AA$22="MAX",R45/SMALL($H$45:$BO$45,COUNTIF($H$45:$BO$45,0)+1),MAX($H$45:$BO$45)/R45),"") ->  | S46: =IFERROR($G45*R46,"") ->  | T46: =IFERROR(IF('Vstupní data'!$AA$22="MAX",T45/SMALL($H$45:$BO$45,COUNTIF($H$45:$BO$45,0)+1),MAX($H$45:$BO$45)/T45),"") ->  | U46: =IFERROR($G45*T46,"") ->  | V46: =IFERROR(IF('Vstupní data'!$AA$22="MAX",V45/SMALL($H$45:$BO$45,COUNTIF($H$45:$BO$45,0)+1),MAX($H$45:$BO$45)/V45),"") ->  | W46: =IFERROR($G45*V46,"") ->  | X46: =IFERROR(IF('Vstupní data'!$AA$22="MAX",X45/SMALL($H$45:$BO$45,COUNTIF($H$45:$BO$45,0)+1),MAX($H$45:$BO$45)/X45),"") ->  | Y46: =IFERROR($G45*X46,"") ->  | Z46: =IFERROR(IF('Vstupní data'!$AA$22="MAX",Z45/SMALL($H$45:$BO$45,COUNTIF($H$45:$BO$45,0)+1),MAX($H$45:$BO$45)/Z45),"") ->  | AA46: =IFERROR($G45*Z46,"") ->  | AB46: =IFERROR(IF('Vstupní data'!$AA$22="MAX",AB45/SMALL($H$45:$BO$45,COUNTIF($H$45:$BO$45,0)+1),MAX($H$45:$BO$45)/AB45),"") ->  | AC46: =IFERROR($G45*AB46,"") ->  | AD46: =IFERROR(IF('Vstupní data'!$AA$22="MAX",AD45/SMALL($H$45:$BO$45,COUNTIF($H$45:$BO$45,0)+1),MAX($H$45:$BO$45)/AD45),"") ->  | AE46: =IFERROR($G45*AD46,"") ->  | AF46: =IFERROR(IF('Vstupní data'!$AA$22="MAX",AF45/SMALL($H$45:$BO$45,COUNTIF($H$45:$BO$45,0)+1),MAX($H$45:$BO$45)/AF45),"") ->  | AG46: =IFERROR($G45*AF46,"") ->  | AH46: =IFERROR(IF('Vstupní data'!$AA$22="MAX",AH45/SMALL($H$45:$BO$45,COUNTIF($H$45:$BO$45,0)+1),MAX($H$45:$BO$45)/AH45),"") ->  | AI46: =IFERROR($G45*AH46,"") ->  | AJ46: =IFERROR(IF('Vstupní data'!$AA$22="MAX",AJ45/SMALL($H$45:$BO$45,COUNTIF($H$45:$BO$45,0)+1),MAX($H$45:$BO$45)/AJ45),"") ->  | AK46: =IFERROR($G45*AJ46,"") ->  | AL46: =IFERROR(IF('Vstupní data'!$AA$22="MAX",AL45/SMALL($H$45:$BO$45,COUNTIF($H$45:$BO$45,0)+1),MAX($H$45:$BO$45)/AL45),"") ->  | AM46: =IFERROR($G45*AL46,"") ->  | AN46: =IFERROR(IF('Vstupní data'!$AA$22="MAX",AN45/SMALL($H$45:$BO$45,COUNTIF($H$45:$BO$45,0)+1),MAX($H$45:$BO$45)/AN45),"") ->  | AO46: =IFERROR($G45*AN46,"") ->  | AP46: =IFERROR(IF('Vstupní data'!$AA$22="MAX",AP45/SMALL($H$45:$BO$45,COUNTIF($H$45:$BO$45,0)+1),MAX($H$45:$BO$45)/AP45),"") ->  | AQ46: =IFERROR($G45*AP46,"") ->  | AR46: =IFERROR(IF('Vstupní data'!$AA$22="MAX",AR45/SMALL($H$45:$BO$45,COUNTIF($H$45:$BO$45,0)+1),MAX($H$45:$BO$45)/AR45),"") ->  | AS46: =IFERROR($G45*AR46,"") ->  | AT46: =IFERROR(IF('Vstupní data'!$AA$22="MAX",AT45/SMALL($H$45:$BO$45,COUNTIF($H$45:$BO$45,0)+1),MAX($H$45:$BO$45)/AT45),"") ->  | AU46: =IFERROR($G45*AT46,"") ->  | AV46: =IFERROR(IF('Vstupní data'!$AA$22="MAX",AV45/SMALL($H$45:$BO$45,COUNTIF($H$45:$BO$45,0)+1),MAX($H$45:$BO$45)/AV45),"") ->  | AW46: =IFERROR($G45*AV46,"") ->  | AX46: =IFERROR(IF('Vstupní data'!$AA$22="MAX",AX45/SMALL($H$45:$BO$45,COUNTIF($H$45:$BO$45,0)+1),MAX($H$45:$BO$45)/AX45),"") ->  | AY46: =IFERROR($G45*AX46,"") ->  | AZ46: =IFERROR(IF('Vstupní data'!$AA$22="MAX",AZ45/SMALL($H$45:$BO$45,COUNTIF($H$45:$BO$45,0)+1),MAX($H$45:$BO$45)/AZ45),"") ->  | BA46: =IFERROR($G45*AZ46,"") ->  | BB46: =IFERROR(IF('Vstupní data'!$AA$22="MAX",BB45/SMALL($H$45:$BO$45,COUNTIF($H$45:$BO$45,0)+1),MAX($H$45:$BO$45)/BB45),"") ->  | BC46: =IFERROR($G45*BB46,"") ->  | BD46: =IFERROR(IF('Vstupní data'!$AA$22="MAX",BD45/SMALL($H$45:$BO$45,COUNTIF($H$45:$BO$45,0)+1),MAX($H$45:$BO$45)/BD45),"") ->  | BE46: =IFERROR($G45*BD46,"") ->  | BF46: =IFERROR(IF('Vstupní data'!$AA$22="MAX",BF45/SMALL($H$45:$BO$45,COUNTIF($H$45:$BO$45,0)+1),MAX($H$45:$BO$45)/BF45),"") ->  | BG46: =IFERROR($G45*BF46,"") ->  | BH46: =IFERROR(IF('Vstupní data'!$AA$22="MAX",BH45/SMALL($H$45:$BO$45,COUNTIF($H$45:$BO$45,0)+1),MAX($H$45:$BO$45)/BH45),"") ->  | BI46: =IFERROR($G45*BH46,"") ->  | BJ46: =IFERROR(IF('Vstupní data'!$AA$22="MAX",BJ45/SMALL($H$45:$BO$45,COUNTIF($H$45:$BO$45,0)+1),MAX($H$45:$BO$45)/BJ45),"") ->  | BK46: =IFERROR($G45*BJ46,"") ->  | BL46: =IFERROR(IF('Vstupní data'!$AA$22="MAX",BL45/SMALL($H$45:$BO$45,COUNTIF($H$45:$BO$45,0)+1),MAX($H$45:$BO$45)/BL45),"") ->  | BM46: =IFERROR($G45*BL46,"") ->  | BN46: =IFERROR(IF('Vstupní data'!$AA$22="MAX",BN45/SMALL($H$45:$BO$45,COUNTIF($H$45:$BO$45,0)+1),MAX($H$45:$BO$45)/BN45),"") ->  | BO46: =IFERROR($G45*BN46,"") ->  | BY46: =BF21 ->  | BZ46: =BF53 -> 0
D47: ='Vstupní data'!AB19 -> 0 | E47: ='Vstupní data'!AB20 -> 0 | F47: ='Vstupní data'!AB21 -> 0 | G47: =IFERROR(GETPIVOTDATA("[Measures].[Míra 1]",'Porovnání v trojúhelníku párů'!$W$8,"[Tabulka1].[Kritéria]","[Tabulka1].[Kritéria].&[13]"),0) -> 0 | H47: ='Vstupní data'!AB23 -> 0 | J47: ='Vstupní data'!AB24 -> 0 | L47: ='Vstupní data'!AB25 -> 0 | N47: ='Vstupní data'!AB26 -> 0 | P47: ='Vstupní data'!AB27 -> 0 | R47: ='Vstupní data'!AB28 -> 0 | T47: ='Vstupní data'!AB29 -> 0 | V47: ='Vstupní data'!AB30 -> 0 | X47: ='Vstupní data'!AB31 -> 0 | Z47: ='Vstupní data'!AB32 -> 0 | AB47: ='Vstupní data'!AB33 -> 0 | AD47: ='Vstupní data'!AB34 -> 0 | AF47: ='Vstupní data'!AB35 -> 0 | AH47: ='Vstupní data'!AB36 -> 0 | AJ47: ='Vstupní data'!AB37 -> 0 | AL47: ='Vstupní data'!AB38 -> 0 | AN47: ='Vstupní data'!AB39 -> 0 | AP47: ='Vstupní data'!AB40 -> 0 | AR47: ='Vstupní data'!AB41 -> 0 | AT47: ='Vstupní data'!AB42 -> 0 | AV47: ='Vstupní data'!AB43 -> 0 | AX47: ='Vstupní data'!AB44 -> 0 | AZ47: ='Vstupní data'!AB45 -> 0 | BB47: ='Vstupní data'!AB46 -> 0 | BD47: ='Vstupní data'!AB47 -> 0 | BF47: ='Vstupní data'!AB48 -> 0 | BH47: ='Vstupní data'!AB49 -> 0 | BJ47: ='Vstupní data'!AB50 -> 0 | BL47: ='Vstupní data'!AB51 -> 0 | BN47: ='Vstupní data'!AB52 -> 0 | BY47: =BH21 ->  | BZ47: =BH53 -> 0
H48: =IFERROR(IF('Vstupní data'!$AB$22="MAX",H47/SMALL($H$47:$BO$47,COUNTIF($H$47:$BO$47,0)+1),MAX($H$47:$BO$47)/H47),"") ->  | I48: =IFERROR($G47*H48,"") ->  | J48: =IFERROR(IF('Vstupní data'!$AB$22="MAX",J47/SMALL($H$47:$BO$47,COUNTIF($H$47:$BO$47,0)+1),MAX($H$47:$BO$47)/J47),"") ->  | K48: =IFERROR($G47*J48,"") ->  | L48: =IFERROR(IF('Vstupní data'!$AB$22="MAX",L47/SMALL($H$47:$BO$47,COUNTIF($H$47:$BO$47,0)+1),MAX($H$47:$BO$47)/L47),"") ->  | M48: =IFERROR($G47*L48,"") ->  | N48: =IFERROR(IF('Vstupní data'!$AB$22="MAX",N47/SMALL($H$47:$BO$47,COUNTIF($H$47:$BO$47,0)+1),MAX($H$47:$BO$47)/N47),"") ->  | O48: =IFERROR($G47*N48,"") ->  | P48: =IFERROR(IF('Vstupní data'!$AB$22="MAX",P47/SMALL($H$47:$BO$47,COUNTIF($H$47:$BO$47,0)+1),MAX($H$47:$BO$47)/P47),"") ->  | Q48: =IFERROR($G47*P48,"") ->  | R48: =IFERROR(IF('Vstupní data'!$AB$22="MAX",R47/SMALL($H$47:$BO$47,COUNTIF($H$47:$BO$47,0)+1),MAX($H$47:$BO$47)/R47),"") ->  | S48: =IFERROR($G47*R48,"") ->  | T48: =IFERROR(IF('Vstupní data'!$AB$22="MAX",T47/SMALL($H$47:$BO$47,COUNTIF($H$47:$BO$47,0)+1),MAX($H$47:$BO$47)/T47),"") ->  | U48: =IFERROR($G47*T48,"") ->  | V48: =IFERROR(IF('Vstupní data'!$AB$22="MAX",V47/SMALL($H$47:$BO$47,COUNTIF($H$47:$BO$47,0)+1),MAX($H$47:$BO$47)/V47),"") ->  | W48: =IFERROR($G47*V48,"") ->  | X48: =IFERROR(IF('Vstupní data'!$AB$22="MAX",X47/SMALL($H$47:$BO$47,COUNTIF($H$47:$BO$47,0)+1),MAX($H$47:$BO$47)/X47),"") ->  | Y48: =IFERROR($G47*X48,"") ->  | Z48: =IFERROR(IF('Vstupní data'!$AB$22="MAX",Z47/SMALL($H$47:$BO$47,COUNTIF($H$47:$BO$47,0)+1),MAX($H$47:$BO$47)/Z47),"") ->  | AA48: =IFERROR($G47*Z48,"") ->  | AB48: =IFERROR(IF('Vstupní data'!$AB$22="MAX",AB47/SMALL($H$47:$BO$47,COUNTIF($H$47:$BO$47,0)+1),MAX($H$47:$BO$47)/AB47),"") ->  | AC48: =IFERROR($G47*AB48,"") ->  | AD48: =IFERROR(IF('Vstupní data'!$AB$22="MAX",AD47/SMALL($H$47:$BO$47,COUNTIF($H$47:$BO$47,0)+1),MAX($H$47:$BO$47)/AD47),"") ->  | AE48: =IFERROR($G47*AD48,"") ->  | AF48: =IFERROR(IF('Vstupní data'!$AB$22="MAX",AF47/SMALL($H$47:$BO$47,COUNTIF($H$47:$BO$47,0)+1),MAX($H$47:$BO$47)/AF47),"") ->  | AG48: =IFERROR($G47*AF48,"") ->  | AH48: =IFERROR(IF('Vstupní data'!$AB$22="MAX",AH47/SMALL($H$47:$BO$47,COUNTIF($H$47:$BO$47,0)+1),MAX($H$47:$BO$47)/AH47),"") ->  | AI48: =IFERROR($G47*AH48,"") ->  | AJ48: =IFERROR(IF('Vstupní data'!$AB$22="MAX",AJ47/SMALL($H$47:$BO$47,COUNTIF($H$47:$BO$47,0)+1),MAX($H$47:$BO$47)/AJ47),"") ->  | AK48: =IFERROR($G47*AJ48,"") ->  | AL48: =IFERROR(IF('Vstupní data'!$AB$22="MAX",AL47/SMALL($H$47:$BO$47,COUNTIF($H$47:$BO$47,0)+1),MAX($H$47:$BO$47)/AL47),"") ->  | AM48: =IFERROR($G47*AL48,"") ->  | AN48: =IFERROR(IF('Vstupní data'!$AB$22="MAX",AN47/SMALL($H$47:$BO$47,COUNTIF($H$47:$BO$47,0)+1),MAX($H$47:$BO$47)/AN47),"") ->  | AO48: =IFERROR($G47*AN48,"") ->  | AP48: =IFERROR(IF('Vstupní data'!$AB$22="MAX",AP47/SMALL($H$47:$BO$47,COUNTIF($H$47:$BO$47,0)+1),MAX($H$47:$BO$47)/AP47),"") ->  | AQ48: =IFERROR($G47*AP48,"") ->  | AR48: =IFERROR(IF('Vstupní data'!$AB$22="MAX",AR47/SMALL($H$47:$BO$47,COUNTIF($H$47:$BO$47,0)+1),MAX($H$47:$BO$47)/AR47),"") ->  | AS48: =IFERROR($G47*AR48,"") ->  | AT48: =IFERROR(IF('Vstupní data'!$AB$22="MAX",AT47/SMALL($H$47:$BO$47,COUNTIF($H$47:$BO$47,0)+1),MAX($H$47:$BO$47)/AT47),"") ->  | AU48: =IFERROR($G47*AT48,"") ->  | AV48: =IFERROR(IF('Vstupní data'!$AB$22="MAX",AV47/SMALL($H$47:$BO$47,COUNTIF($H$47:$BO$47,0)+1),MAX($H$47:$BO$47)/AV47),"") ->  | AW48: =IFERROR($G47*AV48,"") ->  | AX48: =IFERROR(IF('Vstupní data'!$AB$22="MAX",AX47/SMALL($H$47:$BO$47,COUNTIF($H$47:$BO$47,0)+1),MAX($H$47:$BO$47)/AX47),"") ->  | AY48: =IFERROR($G47*AX48,"") ->  | AZ48: =IFERROR(IF('Vstupní data'!$AB$22="MAX",AZ47/SMALL($H$47:$BO$47,COUNTIF($H$47:$BO$47,0)+1),MAX($H$47:$BO$47)/AZ47),"") ->  | BA48: =IFERROR($G47*AZ48,"") ->  | BB48: =IFERROR(IF('Vstupní data'!$AB$22="MAX",BB47/SMALL($H$47:$BO$47,COUNTIF($H$47:$BO$47,0)+1),MAX($H$47:$BO$47)/BB47),"") ->  | BC48: =IFERROR($G47*BB48,"") ->  | BD48: =IFERROR(IF('Vstupní data'!$AB$22="MAX",BD47/SMALL($H$47:$BO$47,COUNTIF($H$47:$BO$47,0)+1),MAX($H$47:$BO$47)/BD47),"") ->  | BE48: =IFERROR($G47*BD48,"") ->  | BF48: =IFERROR(IF('Vstupní data'!$AB$22="MAX",BF47/SMALL($H$47:$BO$47,COUNTIF($H$47:$BO$47,0)+1),MAX($H$47:$BO$47)/BF47),"") ->  | BG48: =IFERROR($G47*BF48,"") ->  | BH48: =IFERROR(IF('Vstupní data'!$AB$22="MAX",BH47/SMALL($H$47:$BO$47,COUNTIF($H$47:$BO$47,0)+1),MAX($H$47:$BO$47)/BH47),"") ->  | BI48: =IFERROR($G47*BH48,"") ->  | BJ48: =IFERROR(IF('Vstupní data'!$AB$22="MAX",BJ47/SMALL($H$47:$BO$47,COUNTIF($H$47:$BO$47,0)+1),MAX($H$47:$BO$47)/BJ47),"") ->  | BK48: =IFERROR($G47*BJ48,"") ->  | BL48: =IFERROR(IF('Vstupní data'!$AB$22="MAX",BL47/SMALL($H$47:$BO$47,COUNTIF($H$47:$BO$47,0)+1),MAX($H$47:$BO$47)/BL47),"") ->  | BM48: =IFERROR($G47*BL48,"") ->  | BN48: =IFERROR(IF('Vstupní data'!$AB$22="MAX",BN47/SMALL($H$47:$BO$47,COUNTIF($H$47:$BO$47,0)+1),MAX($H$47:$BO$47)/BN47),"") ->  | BO48: =IFERROR($G47*BN48,"") ->  | BY48: =BJ21 ->  | BZ48: =BJ53 -> 0
D49: ='Vstupní data'!AC19 -> 0 | E49: ='Vstupní data'!AC20 -> 0 | F49: ='Vstupní data'!AC21 -> 0 | G49: =IFERROR(GETPIVOTDATA("[Measures].[Míra 1]",'Porovnání v trojúhelníku párů'!$W$8,"[Tabulka1].[Kritéria]","[Tabulka1].[Kritéria].&[14]"),0) -> 0 | H49: ='Vstupní data'!AC23 -> 0 | J49: ='Vstupní data'!AC24 -> 0 | L49: ='Vstupní data'!AC25 -> 0 | N49: ='Vstupní data'!AC26 -> 0 | P49: ='Vstupní data'!AC27 -> 0 | R49: ='Vstupní data'!AC28 -> 0 | T49: ='Vstupní data'!AC29 -> 0 | V49: ='Vstupní data'!AC30 -> 0 | X49: ='Vstupní data'!AC31 -> 0 | Z49: ='Vstupní data'!AC32 -> 0 | AB49: ='Vstupní data'!AC33 -> 0 | AD49: ='Vstupní data'!AC34 -> 0 | AF49: ='Vstupní data'!AC35 -> 0 | AH49: ='Vstupní data'!AC36 -> 0 | AJ49: ='Vstupní data'!AC37 -> 0 | AL49: ='Vstupní data'!AC38 -> 0 | AN49: ='Vstupní data'!AC39 -> 0 | AP49: ='Vstupní data'!AC40 -> 0 | AR49: ='Vstupní data'!AC41 -> 0 | AT49: ='Vstupní data'!AC42 -> 0 | AV49: ='Vstupní data'!AC43 -> 0 | AX49: ='Vstupní data'!AC44 -> 0 | AZ49: ='Vstupní data'!AC45 -> 0 | BB49: ='Vstupní data'!AC46 -> 0 | BD49: ='Vstupní data'!AC47 -> 0 | BF49: ='Vstupní data'!AC48 -> 0 | BH49: ='Vstupní data'!AC49 -> 0 | BJ49: ='Vstupní data'!AC50 -> 0 | BL49: ='Vstupní data'!AC51 -> 0 | BN49: ='Vstupní data'!AC52 -> 0 | BY49: =BL21 ->  | BZ49: =BL53 -> 0
H50: =IFERROR(IF('Vstupní data'!$AC$22="MAX",H49/SMALL($H$49:$BO$49,COUNTIF($H$49:$BO$49,0)+1),MAX($H$49:$BO$49)/H49),"") ->  | I50: =IFERROR($G49*H50,"") ->  | J50: =IFERROR(IF('Vstupní data'!$AC$22="MAX",J49/SMALL($H$49:$BO$49,COUNTIF($H$49:$BO$49,0)+1),MAX($H$49:$BO$49)/J49),"") ->  | K50: =IFERROR($G49*J50,"") ->  | L50: =IFERROR(IF('Vstupní data'!$AC$22="MAX",L49/SMALL($H$49:$BO$49,COUNTIF($H$49:$BO$49,0)+1),MAX($H$49:$BO$49)/L49),"") ->  | M50: =IFERROR($G49*L50,"") ->  | N50: =IFERROR(IF('Vstupní data'!$AC$22="MAX",N49/SMALL($H$49:$BO$49,COUNTIF($H$49:$BO$49,0)+1),MAX($H$49:$BO$49)/N49),"") ->  | O50: =IFERROR($G49*N50,"") ->  | P50: =IFERROR(IF('Vstupní data'!$AC$22="MAX",P49/SMALL($H$49:$BO$49,COUNTIF($H$49:$BO$49,0)+1),MAX($H$49:$BO$49)/P49),"") ->  | Q50: =IFERROR($G49*P50,"") ->  | R50: =IFERROR(IF('Vstupní data'!$AC$22="MAX",R49/SMALL($H$49:$BO$49,COUNTIF($H$49:$BO$49,0)+1),MAX($H$49:$BO$49)/R49),"") ->  | S50: =IFERROR($G49*R50,"") ->  | T50: =IFERROR(IF('Vstupní data'!$AC$22="MAX",T49/SMALL($H$49:$BO$49,COUNTIF($H$49:$BO$49,0)+1),MAX($H$49:$BO$49)/T49),"") ->  | U50: =IFERROR($G49*T50,"") ->  | V50: =IFERROR(IF('Vstupní data'!$AC$22="MAX",V49/SMALL($H$49:$BO$49,COUNTIF($H$49:$BO$49,0)+1),MAX($H$49:$BO$49)/V49),"") ->  | W50: =IFERROR($G49*V50,"") ->  | X50: =IFERROR(IF('Vstupní data'!$AC$22="MAX",X49/SMALL($H$49:$BO$49,COUNTIF($H$49:$BO$49,0)+1),MAX($H$49:$BO$49)/X49),"") ->  | Y50: =IFERROR($G49*X50,"") ->  | Z50: =IFERROR(IF('Vstupní data'!$AC$22="MAX",Z49/SMALL($H$49:$BO$49,COUNTIF($H$49:$BO$49,0)+1),MAX($H$49:$BO$49)/Z49),"") ->  | AA50: =IFERROR($G49*Z50,"") ->  | AB50: =IFERROR(IF('Vstupní data'!$AC$22="MAX",AB49/SMALL($H$49:$BO$49,COUNTIF($H$49:$BO$49,0)+1),MAX($H$49:$BO$49)/AB49),"") ->  | AC50: =IFERROR($G49*AB50,"") ->  | AD50: =IFERROR(IF('Vstupní data'!$AC$22="MAX",AD49/SMALL($H$49:$BO$49,COUNTIF($H$49:$BO$49,0)+1),MAX($H$49:$BO$49)/AD49),"") ->  | AE50: =IFERROR($G49*AD50,"") ->  | AF50: =IFERROR(IF('Vstupní data'!$AC$22="MAX",AF49/SMALL($H$49:$BO$49,COUNTIF($H$49:$BO$49,0)+1),MAX($H$49:$BO$49)/AF49),"") ->  | AG50: =IFERROR($G49*AF50,"") ->  | AH50: =IFERROR(IF('Vstupní data'!$AC$22="MAX",AH49/SMALL($H$49:$BO$49,COUNTIF($H$49:$BO$49,0)+1),MAX($H$49:$BO$49)/AH49),"") ->  | AI50: =IFERROR($G49*AH50,"") ->  | AJ50: =IFERROR(IF('Vstupní data'!$AC$22="MAX",AJ49/SMALL($H$49:$BO$49,COUNTIF($H$49:$BO$49,0)+1),MAX($H$49:$BO$49)/AJ49),"") ->  | AK50: =IFERROR($G49*AJ50,"") ->  | AL50: =IFERROR(IF('Vstupní data'!$AC$22="MAX",AL49/SMALL($H$49:$BO$49,COUNTIF($H$49:$BO$49,0)+1),MAX($H$49:$BO$49)/AL49),"") ->  | AM50: =IFERROR($G49*AL50,"") ->  | AN50: =IFERROR(IF('Vstupní data'!$AC$22="MAX",AN49/SMALL($H$49:$BO$49,COUNTIF($H$49:$BO$49,0)+1),MAX($H$49:$BO$49)/AN49),"") ->  | AO50: =IFERROR($G49*AN50,"") ->  | AP50: =IFERROR(IF('Vstupní data'!$AC$22="MAX",AP49/SMALL($H$49:$BO$49,COUNTIF($H$49:$BO$49,0)+1),MAX($H$49:$BO$49)/AP49),"") ->  | AQ50: =IFERROR($G49*AP50,"") ->  | AR50: =IFERROR(IF('Vstupní data'!$AC$22="MAX",AR49/SMALL($H$49:$BO$49,COUNTIF($H$49:$BO$49,0)+1),MAX($H$49:$BO$49)/AR49),"") ->  | AS50: =IFERROR($G49*AR50,"") ->  | AT50: =IFERROR(IF('Vstupní data'!$AC$22="MAX",AT49/SMALL($H$49:$BO$49,COUNTIF($H$49:$BO$49,0)+1),MAX($H$49:$BO$49)/AT49),"") ->  | AU50: =IFERROR($G49*AT50,"") ->  | AV50: =IFERROR(IF('Vstupní data'!$AC$22="MAX",AV49/SMALL($H$49:$BO$49,COUNTIF($H$49:$BO$49,0)+1),MAX($H$49:$BO$49)/AV49),"") ->  | AW50: =IFERROR($G49*AV50,"") ->  | AX50: =IFERROR(IF('Vstupní data'!$AC$22="MAX",AX49/SMALL($H$49:$BO$49,COUNTIF($H$49:$BO$49,0)+1),MAX($H$49:$BO$49)/AX49),"") ->  | AY50: =IFERROR($G49*AX50,"") ->  | AZ50: =IFERROR(IF('Vstupní data'!$AC$22="MAX",AZ49/SMALL($H$49:$BO$49,COUNTIF($H$49:$BO$49,0)+1),MAX($H$49:$BO$49)/AZ49),"") ->  | BA50: =IFERROR($G49*AZ50,"") ->  | BB50: =IFERROR(IF('Vstupní data'!$AC$22="MAX",BB49/SMALL($H$49:$BO$49,COUNTIF($H$49:$BO$49,0)+1),MAX($H$49:$BO$49)/BB49),"") ->  | BC50: =IFERROR($G49*BB50,"") ->  | BD50: =IFERROR(IF('Vstupní data'!$AC$22="MAX",BD49/SMALL($H$49:$BO$49,COUNTIF($H$49:$BO$49,0)+1),MAX($H$49:$BO$49)/BD49),"") ->  | BE50: =IFERROR($G49*BD50,"") ->  | BF50: =IFERROR(IF('Vstupní data'!$AC$22="MAX",BF49/SMALL($H$49:$BO$49,COUNTIF($H$49:$BO$49,0)+1),MAX($H$49:$BO$49)/BF49),"") ->  | BG50: =IFERROR($G49*BF50,"") ->  | BH50: =IFERROR(IF('Vstupní data'!$AC$22="MAX",BH49/SMALL($H$49:$BO$49,COUNTIF($H$49:$BO$49,0)+1),MAX($H$49:$BO$49)/BH49),"") ->  | BI50: =IFERROR($G49*BH50,"") ->  | BJ50: =IFERROR(IF('Vstupní data'!$AC$22="MAX",BJ49/SMALL($H$49:$BO$49,COUNTIF($H$49:$BO$49,0)+1),MAX($H$49:$BO$49)/BJ49),"") ->  | BK50: =IFERROR($G49*BJ50,"") ->  | BL50: =IFERROR(IF('Vstupní data'!$AC$22="MAX",BL49/SMALL($H$49:$BO$49,COUNTIF($H$49:$BO$49,0)+1),MAX($H$49:$BO$49)/BL49),"") ->  | BM50: =IFERROR($G49*BL50,"") ->  | BN50: =IFERROR(IF('Vstupní data'!$AC$22="MAX",BN49/SMALL($H$49:$BO$49,COUNTIF($H$49:$BO$49,0)+1),MAX($H$49:$BO$49)/BN49),"") ->  | BO50: =IFERROR($G49*BN50,"") ->  | BY50: =BN21 ->  | BZ50: =BN53 -> 0
D51: ='Vstupní data'!AD19 -> 0 | E51: ='Vstupní data'!AD20 -> 0 | F51: ='Vstupní data'!AD21 -> 0 | G51: =IFERROR(GETPIVOTDATA("[Measures].[Míra 1]",'Porovnání v trojúhelníku párů'!$W$8,"[Tabulka1].[Kritéria]","[Tabulka1].[Kritéria].&[15]"),0) -> 0 | H51: ='Vstupní data'!AD23 -> 0 | J51: ='Vstupní data'!AD24 -> 0 | L51: ='Vstupní data'!AD25 -> 0 | N51: ='Vstupní data'!AD26 -> 0 | P51: ='Vstupní data'!AD27 -> 0 | R51: ='Vstupní data'!AD28 -> 0 | T51: ='Vstupní data'!AD29 -> 0 | V51: ='Vstupní data'!AD30 -> 0 | X51: ='Vstupní data'!AD31 -> 0 | Z51: ='Vstupní data'!AD32 -> 0 | AB51: ='Vstupní data'!AD33 -> 0 | AD51: ='Vstupní data'!AD34 -> 0 | AF51: ='Vstupní data'!AD35 -> 0 | AH51: ='Vstupní data'!AD36 -> 0 | AJ51: ='Vstupní data'!AD37 -> 0 | AL51: ='Vstupní data'!AD38 -> 0 | AN51: ='Vstupní data'!AD39 -> 0 | AP51: ='Vstupní data'!AD40 -> 0 | AR51: ='Vstupní data'!AD41 -> 0 | AT51: ='Vstupní data'!AD42 -> 0 | AV51: ='Vstupní data'!AD43 -> 0 | AX51: ='Vstupní data'!AD44 -> 0 | AZ51: ='Vstupní data'!AD45 -> 0 | BB51: ='Vstupní data'!AD46 -> 0 | BD51: ='Vstupní data'!AD47 -> 0 | BF51: ='Vstupní data'!AD48 -> 0 | BH51: ='Vstupní data'!AD49 -> 0 | BJ51: ='Vstupní data'!AD50 -> 0 | BL51: ='Vstupní data'!AD51 -> 0 | BN51: ='Vstupní data'!AD52 -> 0
H52: =IFERROR(IF('Vstupní data'!$AD$22="MAX",H51/SMALL($H$51:$BO$51,COUNTIF($H$51:$BO$51,0)+1),MAX($H$51:$BO$51)/H51),"") ->  | I52: =IFERROR($G51*H52,"") ->  | J52: =IFERROR(IF('Vstupní data'!$AD$22="MAX",J51/SMALL($H$51:$BO$51,COUNTIF($H$51:$BO$51,0)+1),MAX($H$51:$BO$51)/J51),"") ->  | K52: =IFERROR($G51*J52,"") ->  | L52: =IFERROR(IF('Vstupní data'!$AD$22="MAX",L51/SMALL($H$51:$BO$51,COUNTIF($H$51:$BO$51,0)+1),MAX($H$51:$BO$51)/L51),"") ->  | M52: =IFERROR($G51*L52,"") ->  | N52: =IFERROR(IF('Vstupní data'!$AD$22="MAX",N51/SMALL($H$51:$BO$51,COUNTIF($H$51:$BO$51,0)+1),MAX($H$51:$BO$51)/N51),"") ->  | O52: =IFERROR($G51*N52,"") ->  | P52: =IFERROR(IF('Vstupní data'!$AD$22="MAX",P51/SMALL($H$51:$BO$51,COUNTIF($H$51:$BO$51,0)+1),MAX($H$51:$BO$51)/P51),"") ->  | Q52: =IFERROR($G51*P52,"") ->  | R52: =IFERROR(IF('Vstupní data'!$AD$22="MAX",R51/SMALL($H$51:$BO$51,COUNTIF($H$51:$BO$51,0)+1),MAX($H$51:$BO$51)/R51),"") ->  | S52: =IFERROR($G51*R52,"") ->  | T52: =IFERROR(IF('Vstupní data'!$AD$22="MAX",T51/SMALL($H$51:$BO$51,COUNTIF($H$51:$BO$51,0)+1),MAX($H$51:$BO$51)/T51),"") ->  | U52: =IFERROR($G51*T52,"") ->  | V52: =IFERROR(IF('Vstupní data'!$AD$22="MAX",V51/SMALL($H$51:$BO$51,COUNTIF($H$51:$BO$51,0)+1),MAX($H$51:$BO$51)/V51),"") ->  | W52: =IFERROR($G51*V52,"") ->  | X52: =IFERROR(IF('Vstupní data'!$AD$22="MAX",X51/SMALL($H$51:$BO$51,COUNTIF($H$51:$BO$51,0)+1),MAX($H$51:$BO$51)/X51),"") ->  | Y52: =IFERROR($G51*X52,"") ->  | Z52: =IFERROR(IF('Vstupní data'!$AD$22="MAX",Z51/SMALL($H$51:$BO$51,COUNTIF($H$51:$BO$51,0)+1),MAX($H$51:$BO$51)/Z51),"") ->  | AA52: =IFERROR($G51*Z52,"") ->  | AB52: =IFERROR(IF('Vstupní data'!$AD$22="MAX",AB51/SMALL($H$51:$BO$51,COUNTIF($H$51:$BO$51,0)+1),MAX($H$51:$BO$51)/AB51),"") ->  | AC52: =IFERROR($G51*AB52,"") ->  | AD52: =IFERROR(IF('Vstupní data'!$AD$22="MAX",AD51/SMALL($H$51:$BO$51,COUNTIF($H$51:$BO$51,0)+1),MAX($H$51:$BO$51)/AD51),"") ->  | AE52: =IFERROR($G51*AD52,"") ->  | AF52: =IFERROR(IF('Vstupní data'!$AD$22="MAX",AF51/SMALL($H$51:$BO$51,COUNTIF($H$51:$BO$51,0)+1),MAX($H$51:$BO$51)/AF51),"") ->  | AG52: =IFERROR($G51*AF52,"") ->  | AH52: =IFERROR(IF('Vstupní data'!$AD$22="MAX",AH51/SMALL($H$51:$BO$51,COUNTIF($H$51:$BO$51,0)+1),MAX($H$51:$BO$51)/AH51),"") ->  | AI52: =IFERROR($G51*AH52,"") ->  | AJ52: =IFERROR(IF('Vstupní data'!$AD$22="MAX",AJ51/SMALL($H$51:$BO$51,COUNTIF($H$51:$BO$51,0)+1),MAX($H$51:$BO$51)/AJ51),"") ->  | AK52: =IFERROR($G51*AJ52,"") ->  | AL52: =IFERROR(IF('Vstupní data'!$AD$22="MAX",AL51/SMALL($H$51:$BO$51,COUNTIF($H$51:$BO$51,0)+1),MAX($H$51:$BO$51)/AL51),"") ->  | AM52: =IFERROR($G51*AL52,"") ->  | AN52: =IFERROR(IF('Vstupní data'!$AD$22="MAX",AN51/SMALL($H$51:$BO$51,COUNTIF($H$51:$BO$51,0)+1),MAX($H$51:$BO$51)/AN51),"") ->  | AO52: =IFERROR($G51*AN52,"") ->  | AP52: =IFERROR(IF('Vstupní data'!$AD$22="MAX",AP51/SMALL($H$51:$BO$51,COUNTIF($H$51:$BO$51,0)+1),MAX($H$51:$BO$51)/AP51),"") ->  | AQ52: =IFERROR($G51*AP52,"") ->  | AR52: =IFERROR(IF('Vstupní data'!$AD$22="MAX",AR51/SMALL($H$51:$BO$51,COUNTIF($H$51:$BO$51,0)+1),MAX($H$51:$BO$51)/AR51),"") ->  | AS52: =IFERROR($G51*AR52,"") ->  | AT52: =IFERROR(IF('Vstupní data'!$AD$22="MAX",AT51/SMALL($H$51:$BO$51,COUNTIF($H$51:$BO$51,0)+1),MAX($H$51:$BO$51)/AT51),"") ->  | AU52: =IFERROR($G51*AT52,"") ->  | AV52: =IFERROR(IF('Vstupní data'!$AD$22="MAX",AV51/SMALL($H$51:$BO$51,COUNTIF($H$51:$BO$51,0)+1),MAX($H$51:$BO$51)/AV51),"") ->  | AW52: =IFERROR($G51*AV52,"") ->  | AX52: =IFERROR(IF('Vstupní data'!$AD$22="MAX",AX51/SMALL($H$51:$BO$51,COUNTIF($H$51:$BO$51,0)+1),MAX($H$51:$BO$51)/AX51),"") ->  | AY52: =IFERROR($G51*AX52,"") ->  | AZ52: =IFERROR(IF('Vstupní data'!$AD$22="MAX",AZ51/SMALL($H$51:$BO$51,COUNTIF($H$51:$BO$51,0)+1),MAX($H$51:$BO$51)/AZ51),"") ->  | BA52: =IFERROR($G51*AZ52,"") ->  | BB52: =IFERROR(IF('Vstupní data'!$AD$22="MAX",BB51/SMALL($H$51:$BO$51,COUNTIF($H$51:$BO$51,0)+1),MAX($H$51:$BO$51)/BB51),"") ->  | BC52: =IFERROR($G51*BB52,"") ->  | BD52: =IFERROR(IF('Vstupní data'!$AD$22="MAX",BD51/SMALL($H$51:$BO$51,COUNTIF($H$51:$BO$51,0)+1),MAX($H$51:$BO$51)/BD51),"") ->  | BE52: =IFERROR($G51*BD52,"") ->  | BF52: =IFERROR(IF('Vstupní data'!$AD$22="MAX",BF51/SMALL($H$51:$BO$51,COUNTIF($H$51:$BO$51,0)+1),MAX($H$51:$BO$51)/BF51),"") ->  | BG52: =IFERROR($G51*BF52,"") ->  | BH52: =IFERROR(IF('Vstupní data'!$AD$22="MAX",BH51/SMALL($H$51:$BO$51,COUNTIF($H$51:$BO$51,0)+1),MAX($H$51:$BO$51)/BH51),"") ->  | BI52: =IFERROR($G51*BH52,"") ->  | BJ52: =IFERROR(IF('Vstupní data'!$AD$22="MAX",BJ51/SMALL($H$51:$BO$51,COUNTIF($H$51:$BO$51,0)+1),MAX($H$51:$BO$51)/BJ51),"") ->  | BK52: =IFERROR($G51*BJ52,"") ->  | BL52: =IFERROR(IF('Vstupní data'!$AD$22="MAX",BL51/SMALL($H$51:$BO$51,COUNTIF($H$51:$BO$51,0)+1),MAX($H$51:$BO$51)/BL51),"") ->  | BM52: =IFERROR($G51*BL52,"") ->  | BN52: =IFERROR(IF('Vstupní data'!$AD$22="MAX",BN51/SMALL($H$51:$BO$51,COUNTIF($H$51:$BO$51,0)+1),MAX($H$51:$BO$51)/BN51),"") ->  | BO52: =IFERROR($G51*BN52,"") -> 
D53: Celkem Sj | G53: =SUM(G23:G52) -> 1 | H53: =SUM(I23:I52) -> 1.745593177 | J53: =SUM(K23:K52) -> 1.327986239 | L53: =SUM(M23:M52) -> 1.306281166 | N53: =SUM(O23:O52) -> 1.375123195 | P53: =SUM(Q23:Q52) -> 1.285148741 | R53: =SUM(S23:S52) -> 1.405430894 | T53: 1.359207354 | V53: 0 | X53: 0 | Z53: 0 | AB53: 0 | AD53: 0 | AF53: 0 | AH53: 0 | AJ53: 0 | AL53: 0 | AN53: 0 | AP53: 0 | AR53: 0 | AT53: 0 | AV53: 0 | AX53: 0 | AZ53: 0 | BB53: 0 | BD53: 0 | BF53: 0 | BH53: 0 | BJ53: 0 | BL53: 0 | BN53: 0
D54: Relativní technická úroveň | H54: =IFERROR(H53/SMALL($H$53:$BO$53,COUNTIF($H$53:$BO$53,0)+1),"") -> 1.358281046 | J54: =IFERROR(J53/SMALL($H$53:$BO$53,COUNTIF($H$53:$BO$53,0)+1),"") -> 1.033332716 | L54: =IFERROR(L53/SMALL($H$53:$BO$53,COUNTIF($H$53:$BO$53,0)+1),"") -> 1.016443564 | N54: =IFERROR(N53/SMALL($H$53:$BO$53,COUNTIF($H$53:$BO$53,0)+1),"") -> 1.070010926 | P54: =IFERROR(P53/SMALL($H$53:$BO$53,COUNTIF($H$53:$BO$53,0)+1),"") -> 1 | R54: =IFERROR(R53/SMALL($H$53:$BO$53,COUNTIF($H$53:$BO$53,0)+1),"") -> 1.093593955 | T54: =IFERROR(T53/SMALL($H$53:$BO$53,COUNTIF($H$53:$BO$53,0)+1),"") -> 1.057626491 | V54: =IFERROR(V53/SMALL($H$53:$BO$53,COUNTIF($H$53:$BO$53,0)+1),"") -> 0 | X54: =IFERROR(X53/SMALL($H$53:$BO$53,COUNTIF($H$53:$BO$53,0)+1),"") -> 0 | Z54: =IFERROR(Z53/SMALL($H$53:$BO$53,COUNTIF($H$53:$BO$53,0)+1),"") -> 0 | AB54: =IFERROR(AB53/SMALL($H$53:$BO$53,COUNTIF($H$53:$BO$53,0)+1),"") -> 0 | AD54: =IFERROR(AD53/SMALL($H$53:$BO$53,COUNTIF($H$53:$BO$53,0)+1),"") -> 0 | AF54: =IFERROR(AF53/SMALL($H$53:$BO$53,COUNTIF($H$53:$BO$53,0)+1),"") -> 0 | AH54: =IFERROR(AH53/SMALL($H$53:$BO$53,COUNTIF($H$53:$BO$53,0)+1),"") -> 0 | AJ54: =IFERROR(AJ53/SMALL($H$53:$BO$53,COUNTIF($H$53:$BO$53,0)+1),"") -> 0 | AL54: =IFERROR(AL53/SMALL($H$53:$BO$53,COUNTIF($H$53:$BO$53,0)+1),"") -> 0 | AN54: =IFERROR(AN53/SMALL($H$53:$BO$53,COUNTIF($H$53:$BO$53,0)+1),"") -> 0 | AP54: =IFERROR(AP53/SMALL($H$53:$BO$53,COUNTIF($H$53:$BO$53,0)+1),"") -> 0 | AR54: =IFERROR(AR53/SMALL($H$53:$BO$53,COUNTIF($H$53:$BO$53,0)+1),"") -> 0 | AT54: =IFERROR(AT53/SMALL($H$53:$BO$53,COUNTIF($H$53:$BO$53,0)+1),"") -> 0 | AV54: =IFERROR(AV53/SMALL($H$53:$BO$53,COUNTIF($H$53:$BO$53,0)+1),"") -> 0 | AX54: =IFERROR(AX53/SMALL($H$53:$BO$53,COUNTIF($H$53:$BO$53,0)+1),"") -> 0 | AZ54: =IFERROR(AZ53/SMALL($H$53:$BO$53,COUNTIF($H$53:$BO$53,0)+1),"") -> 0 | BB54: =IFERROR(BB53/SMALL($H$53:$BO$53,COUNTIF($H$53:$BO$53,0)+1),"") -> 0 | BD54: =IFERROR(BD53/SMALL($H$53:$BO$53,COUNTIF($H$53:$BO$53,0)+1),"") -> 0 | BF54: =IFERROR(BF53/SMALL($H$53:$BO$53,COUNTIF($H$53:$BO$53,0)+1),"") -> 0 | BH54: =IFERROR(BH53/SMALL($H$53:$BO$53,COUNTIF($H$53:$BO$53,0)+1),"") -> 0 | BJ54: =IFERROR(BJ53/SMALL($H$53:$BO$53,COUNTIF($H$53:$BO$53,0)+1),"") -> 0 | BL54: =IFERROR(BL53/SMALL($H$53:$BO$53,COUNTIF($H$53:$BO$53,0)+1),"") -> 0 | BN54: =IFERROR(BN53/SMALL($H$53:$BO$53,COUNTIF($H$53:$BO$53,0)+1),"") -> 0
D55: Pořadí | H55: =IF(H53=0,"",RANK(H53,IF($H$53:$BO$53>0,$H$53:$BO$53,0))+COUNTIF($H$53:$BO$53,H53)-1) -> 1 | J55: =IF(J53=0,"",RANK(J53,IF($H$53:$BO$53>0,$H$53:$BO$53,0))+COUNTIF($H$53:$BO$53,J53)-1) -> 5 | L55: =IF(L53=0,"",RANK(L53,IF($H$53:$BO$53>0,$H$53:$BO$53,0))+COUNTIF($H$53:$BO$53,L53)-1) -> 6 | N55: =IF(N53=0,"",RANK(N53,IF($H$53:$BO$53>0,$H$53:$BO$53,0))+COUNTIF($H$53:$BO$53,N53)-1) -> 3 | P55: =IF(P53=0,"",RANK(P53,IF($H$53:$BO$53>0,$H$53:$BO$53,0))+COUNTIF($H$53:$BO$53,P53)-1) -> 7 | R55: =IF(R53=0,"",RANK(R53,IF($H$53:$BO$53>0,$H$53:$BO$53,0))+COUNTIF($H$53:$BO$53,R53)-1) -> 2 | T55: =IF(T53=0,"",RANK(T53,IF($H$53:$BO$53>0,$H$53:$BO$53,0))+COUNTIF($H$53:$BO$53,T53)-1) -> 4 | V55: =IF(V53=0,"",RANK(V53,IF($H$53:$BO$53>0,$H$53:$BO$53,0))+COUNTIF($H$53:$BO$53,V53)-1) ->  | X55: =IF(X53=0,"",RANK(X53,IF($H$53:$BO$53>0,$H$53:$BO$53,0))+COUNTIF($H$53:$BO$53,X53)-1) ->  | Z55: =IF(Z53=0,"",RANK(Z53,IF($H$53:$BO$53>0,$H$53:$BO$53,0))+COUNTIF($H$53:$BO$53,Z53)-1) ->  | AB55: =IF(AB53=0,"",RANK(AB53,IF($H$53:$BO$53>0,$H$53:$BO$53,0))+COUNTIF($H$53:$BO$53,AB53)-1) ->  | AD55: =IF(AD53=0,"",RANK(AD53,IF($H$53:$BO$53>0,$H$53:$BO$53,0))+COUNTIF($H$53:$BO$53,AD53)-1) ->  | AF55: =IF(AF53=0,"",RANK(AF53,IF($H$53:$BO$53>0,$H$53:$BO$53,0))+COUNTIF($H$53:$BO$53,AF53)-1) ->  | AH55: =IF(AH53=0,"",RANK(AH53,IF($H$53:$BO$53>0,$H$53:$BO$53,0))+COUNTIF($H$53:$BO$53,AH53)-1) ->  | AJ55: =IF(AJ53=0,"",RANK(AJ53,IF($H$53:$BO$53>0,$H$53:$BO$53,0))+COUNTIF($H$53:$BO$53,AJ53)-1) ->  | AL55: =IF(AL53=0,"",RANK(AL53,IF($H$53:$BO$53>0,$H$53:$BO$53,0))+COUNTIF($H$53:$BO$53,AL53)-1) ->  | AN55: =IF(AN53=0,"",RANK(AN53,IF($H$53:$BO$53>0,$H$53:$BO$53,0))+COUNTIF($H$53:$BO$53,AN53)-1) ->  | AP55: =IF(AP53=0,"",RANK(AP53,IF($H$53:$BO$53>0,$H$53:$BO$53,0))+COUNTIF($H$53:$BO$53,AP53)-1) ->  | AR55: =IF(AR53=0,"",RANK(AR53,IF($H$53:$BO$53>0,$H$53:$BO$53,0))+COUNTIF($H$53:$BO$53,AR53)-1) ->  | AT55: =IF(AT53=0,"",RANK(AT53,IF($H$53:$BO$53>0,$H$53:$BO$53,0))+COUNTIF($H$53:$BO$53,AT53)-1) ->  | AV55: =IF(AV53=0,"",RANK(AV53,IF($H$53:$BO$53>0,$H$53:$BO$53,0))+COUNTIF($H$53:$BO$53,AV53)-1) ->  | AX55: =IF(AX53=0,"",RANK(AX53,IF($H$53:$BO$53>0,$H$53:$BO$53,0))+COUNTIF($H$53:$BO$53,AX53)-1) ->  | AZ55: =IF(AZ53=0,"",RANK(AZ53,IF($H$53:$BO$53>0,$H$53:$BO$53,0))+COUNTIF($H$53:$BO$53,AZ53)-1) ->  | BB55: =IF(BB53=0,"",RANK(BB53,IF($H$53:$BO$53>0,$H$53:$BO$53,0))+COUNTIF($H$53:$BO$53,BB53)-1) ->  | BD55: =IF(BD53=0,"",RANK(BD53,IF($H$53:$BO$53>0,$H$53:$BO$53,0))+COUNTIF($H$53:$BO$53,BD53)-1) ->  | BF55: =IF(BF53=0,"",RANK(BF53,IF($H$53:$BO$53>0,$H$53:$BO$53,0))+COUNTIF($H$53:$BO$53,BF53)-1) ->  | BH55: =IF(BH53=0,"",RANK(BH53,IF($H$53:$BO$53>0,$H$53:$BO$53,0))+COUNTIF($H$53:$BO$53,BH53)-1) ->  | BJ55: =IF(BJ53=0,"",RANK(BJ53,IF($H$53:$BO$53>0,$H$53:$BO$53,0))+COUNTIF($H$53:$BO$53,BJ53)-1) ->  | BL55: =IF(BL53=0,"",RANK(BL53,IF($H$53:$BO$53>0,$H$53:$BO$53,0))+COUNTIF($H$53:$BO$53,BL53)-1) ->  | BN55: =IF(BN53=0,"",RANK(BN53,IF($H$53:$BO$53>0,$H$53:$BO$53,0))+COUNTIF($H$53:$BO$53,BN53)-1) -> 

Sheet Export do PDF
A1: Varianta | B1: Název varianty | C1: Hodnota významnosti
A2: ='Vstupní data'!N23 -> V1 | B2: =IF('Vstupní data'!O23=0,"",'Vstupní data'!O23) -> ABB 1600 - 6/1.45 | C2: =IF('Metoda PATTERN'!BZ21=0,"",'Metoda PATTERN'!BZ21) -> 1.745593177
A3: ='Vstupní data'!N24 -> V2 | B3: =IF('Vstupní data'!O24=0,"",'Vstupní data'!O24) -> ABB 1600 - 10/1.45 | C3: =IF('Metoda PATTERN'!BZ22=0,"",'Metoda PATTERN'!BZ22) -> 1.327986239
A4: ='Vstupní data'!N25 -> V3 | B4: =IF('Vstupní data'!O25=0,"",'Vstupní data'!O25) -> KUKA KR6 R1820 | C4: =IF('Metoda PATTERN'!BZ23=0,"",'Metoda PATTERN'!BZ23) -> 1.306281166
A5: ='Vstupní data'!N26 -> V4 | B5: =IF('Vstupní data'!O26=0,"",'Vstupní data'!O26) -> KUKA KR10 R1420 | C5: =IF('Metoda PATTERN'!BZ24=0,"",'Metoda PATTERN'!BZ24) -> 1.375123195
A6: ='Vstupní data'!N27 -> V5 | B6: =IF('Vstupní data'!O27=0,"",'Vstupní data'!O27) -> Yaskawa Motoman HP20F | C6: =IF('Metoda PATTERN'!BZ25=0,"",'Metoda PATTERN'!BZ25) -> 1.285148741
A7: ='Vstupní data'!N28 -> V6 | B7: =IF('Vstupní data'!O28=0,"",'Vstupní data'!O28) -> Fanuc M-10iA/10M | C7: =IF('Metoda PATTERN'!BZ26=0,"",'Metoda PATTERN'!BZ26) -> 1.405430894
A8: ='Vstupní data'!N29 -> V7 | B8: =IF('Vstupní data'!O29=0,"",'Vstupní data'!O29) -> Fanuc M-10iA/7L | C8: =IF('Metoda PATTERN'!BZ27=0,"",'Metoda PATTERN'!BZ27) -> 1.359207354 | F8: ='Porovnání v trojúhelníku párů'!A8 ->  | G8: ='Porovnání v trojúhelníku párů'!B8 ->  | H8: =IFERROR(GETPIVOTDATA("[Measures].[Míra 1]",'Porovnání v trojúhelníku párů'!$W$8,"[Tabulka1].[Kritéria]","[Tabulka1].[Kritéria].&[7]"),"") -> 
A9: ='Vstupní data'!N30 ->  | B9: =IF('Vstupní data'!O30=0,"",'Vstupní data'!O30) ->  | C9: =IF('Metoda PATTERN'!BZ28=0,"",'Metoda PATTERN'!BZ28) ->  | F9: ='Porovnání v trojúhelníku párů'!A9 ->  | G9: ='Porovnání v trojúhelníku párů'!B9 ->  | H9: =IFERROR(GETPIVOTDATA("[Measures].[Míra 1]",'Porovnání v trojúhelníku párů'!$W$8,"[Tabulka1].[Kritéria]","[Tabulka1].[Kritéria].&[8]"),"") -> 
A10: ='Vstupní data'!N31 ->  | B10: =IF('Vstupní data'!O31=0,"",'Vstupní data'!O31) ->  | C10: =IF('Metoda PATTERN'!BZ29=0,"",'Metoda PATTERN'!BZ29) ->  | F10: ='Porovnání v trojúhelníku párů'!A10 ->  | G10: ='Porovnání v trojúhelníku párů'!B10 ->  | H10: =IFERROR(GETPIVOTDATA("[Measures].[Míra 1]",'Porovnání v trojúhelníku párů'!$W$8,"[Tabulka1].[Kritéria]","[Tabulka1].[Kritéria].&[9]"),"") -> 
A11: ='Vstupní data'!N32 ->  | B11: =IF('Vstupní data'!O32=0,"",'Vstupní data'!O32) ->  | C11: =IF('Metoda PATTERN'!BZ30=0,"",'Metoda PATTERN'!BZ30) ->  | F11: ='Porovnání v trojúhelníku párů'!A11 ->  | G11: ='Porovnání v trojúhelníku párů'!B11 ->  | H11: =IFERROR(GETPIVOTDATA("[Measures].[Míra 1]",'Porovnání v trojúhelníku párů'!$W$8,"[Tabulka1].[Kritéria]","[Tabulka1].[Kritéria].&[10]"),"") -> 
A12: ='Vstupní data'!N33 ->  | B12: =IF('Vstupní data'!O33=0,"",'Vstupní data'!O33) ->  | C12: =IF('Metoda PATTERN'!BZ31=0,"",'Metoda PATTERN'!BZ31) ->  | F12: ='Porovnání v trojúhelníku párů'!A12 ->  | G12: ='Porovnání v trojúhelníku párů'!B12 ->  | H12: =IFERROR(GETPIVOTDATA("[Measures].[Míra 1]",'Porovnání v trojúhelníku párů'!$W$8,"[Tabulka1].[Kritéria]","[Tabulka1].[Kritéria].&[11]"),"") -> 
A13: ='Vstupní data'!N34 ->  | B13: =IF('Vstupní data'!O34=0,"",'Vstupní data'!O34) ->  | C13: =IF('Metoda PATTERN'!BZ32=0,"",'Metoda PATTERN'!BZ32) ->  | F13: ='Porovnání v trojúhelníku párů'!A13 ->  | G13: ='Porovnání v trojúhelníku párů'!B13 ->  | H13: =IFERROR(GETPIVOTDATA("[Measures].[Míra 1]",'Porovnání v trojúhelníku párů'!$W$8,"[Tabulka1].[Kritéria]","[Tabulka1].[Kritéria].&[12]"),"") -> 
A14: ='Vstupní data'!N35 ->  | B14: =IF('Vstupní data'!O35=0,"",'Vstupní data'!O35) ->  | C14: =IF('Metoda PATTERN'!BZ33=0,"",'Metoda PATTERN'!BZ33) ->  | F14: ='Porovnání v trojúhelníku párů'!A14 ->  | G14: ='Porovnání v trojúhelníku párů'!B14 ->  | H14: =IFERROR(GETPIVOTDATA("[Measures].[Míra 1]",'Porovnání v trojúhelníku párů'!$W$8,"[Tabulka1].[Kritéria]","[Tabulka1].[Kritéria].&[13]"),"") -> 
A15: ='Vstupní data'!N36 ->  | B15: =IF('Vstupní data'!O36=0,"",'Vstupní data'!O36) ->  | C15: =IF('Metoda PATTERN'!BZ34=0,"",'Metoda PATTERN'!BZ34) ->  | F15: ='Porovnání v trojúhelníku párů'!A15 ->  | G15: ='Porovnání v trojúhelníku párů'!B15 ->  | H15: =IFERROR(GETPIVOTDATA("[Measures].[Míra 1]",'Porovnání v trojúhelníku párů'!$W$8,"[Tabulka1].[Kritéria]","[Tabulka1].[Kritéria].&[14]"),"") -> 
A16: ='Vstupní data'!N37 ->  | B16: =IF('Vstupní data'!O37=0,"",'Vstupní data'!O37) ->  | C16: =IF('Metoda PATTERN'!BZ35=0,"",'Metoda PATTERN'!BZ35) ->  | F16: ='Porovnání v trojúhelníku párů'!A16 ->  | G16: ='Porovnání v trojúhelníku párů'!B16 ->  | H16: =IFERROR(GETPIVOTDATA("[Measures].[Míra 1]",'Porovnání v trojúhelníku párů'!$W$8,"[Tabulka1].[Kritéria]","[Tabulka1].[Kritéria].&[15]"),"") -> 
A42: Kritérium | B42: Název | C42: Váha
A43: ='Porovnání v trojúhelníku párů'!A2 -> K1 | B43: ='Porovnání v trojúhelníku párů'!B2 -> Cena | C43: =IFERROR(GETPIVOTDATA("[Measures].[Míra 1]",'Porovnání v trojúhelníku párů'!$W$8,"[Tabulka1].[Kritéria]","[Tabulka1].[Kritéria].&[1]"),"") -> 0.2666666667
A44: ='Porovnání v trojúhelníku párů'!A3 -> K2 | B44: ='Porovnání v trojúhelníku párů'!B3 -> Nosnost | C44: =IFERROR(GETPIVOTDATA("[Measures].[Míra 1]",'Porovnání v trojúhelníku párů'!$W$8,"[Tabulka1].[Kritéria]","[Tabulka1].[Kritéria].&[2]"),"") -> 0.08888888889
A45: ='Porovnání v trojúhelníku párů'!A4 -> K3 | B45: ='Porovnání v trojúhelníku párů'!B4 -> Dosah (horinz.) | C45: =IFERROR(GETPIVOTDATA("[Measures].[Míra 1]",'Porovnání v trojúhelníku párů'!$W$8,"[Tabulka1].[Kritéria]","[Tabulka1].[Kritéria].&[3]"),"") -> 0.1777777778
A46: ='Porovnání v trojúhelníku párů'!A5 -> K4 | B46: ='Porovnání v trojúhelníku párů'!B5 -> Opakovatelnost | C46: =IFERROR(GETPIVOTDATA("[Measures].[Míra 1]",'Porovnání v trojúhelníku párů'!$W$8,"[Tabulka1].[Kritéria]","[Tabulka1].[Kritéria].&[4]"),"") -> 0.2888888889
A47: ='Porovnání v trojúhelníku párů'!A6 -> K5 | B47: ='Porovnání v trojúhelníku párů'!B6 -> M-M interface | C47: =IFERROR(GETPIVOTDATA("[Measures].[Míra 1]",'Porovnání v trojúhelníku párů'!$W$8,"[Tabulka1].[Kritéria]","[Tabulka1].[Kritéria].&[5]"),"") -> 0.06666666667
A48: ='Porovnání v trojúhelníku párů'!A7 -> K6 | B48: ='Porovnání v trojúhelníku párů'!B7 -> Flexibilita prog. | C48: =IFERROR(GETPIVOTDATA("[Measures].[Míra 1]",'Porovnání v trojúhelníku párů'!$W$8,"[Tabulka1].[Kritéria]","[Tabulka1].[Kritéria].&[6]"),"") -> 0.1111111111
A49: ='Porovnání v trojúhelníku párů'!A8 ->  | B49: ='Porovnání v trojúhelníku párů'!B8 ->  | C49: =IFERROR(GETPIVOTDATA("[Measures].[Míra 1]",'Porovnání v trojúhelníku párů'!$W$8,"[Tabulka1].[Kritéria]","[Tabulka1].[Kritéria].&[7]"),"") -> 
A50: ='Porovnání v trojúhelníku párů'!A9 ->  | B50: ='Porovnání v trojúhelníku párů'!B9 ->  | C50: =IFERROR(GETPIVOTDATA("[Measures].[Míra 1]",'Porovnání v trojúhelníku párů'!$W$8,"[Tabulka1].[Kritéria]","[Tabulka1].[Kritéria].&[8]"),"") -> 
A51: ='Porovnání v trojúhelníku párů'!A10 ->  | B51: ='Porovnání v trojúhelníku párů'!B10 ->  | C51: =IFERROR(GETPIVOTDATA("[Measures].[Míra 1]",'Porovnání v trojúhelníku párů'!$W$8,"[Tabulka1].[Kritéria]","[Tabulka1].[Kritéria].&[9]"),"") -> 
A52: ='Porovnání v trojúhelníku párů'!A11 ->  | B52: ='Porovnání v trojúhelníku párů'!B11 ->  | C52: =IFERROR(GETPIVOTDATA("[Measures].[Míra 1]",'Porovnání v trojúhelníku párů'!$W$8,"[Tabulka1].[Kritéria]","[Tabulka1].[Kritéria].&[10]"),"") -> 
A53: ='Porovnání v trojúhelníku párů'!A12 ->  | B53: ='Porovnání v trojúhelníku párů'!B12 ->  | C53: =IFERROR(GETPIVOTDATA("[Measures].[Míra 1]",'Porovnání v trojúhelníku párů'!$W$8,"[Tabulka1].[Kritéria]","[Tabulka1].[Kritéria].&[11]"),"") -> 
A54: ='Porovnání v trojúhelníku párů'!A13 ->  | B54: ='Porovnání v trojúhelníku párů'!B13 ->  | C54: =IFERROR(GETPIVOTDATA("[Measures].[Míra 1]",'Porovnání v trojúhelníku párů'!$W$8,"[Tabulka1].[Kritéria]","[Tabulka1].[Kritéria].&[12]"),"") -> 
A55: ='Porovnání v trojúhelníku párů'!A14 ->  | B55: ='Porovnání v trojúhelníku párů'!B14 ->  | C55: =IFERROR(GETPIVOTDATA("[Measures].[Míra 1]",'Porovnání v trojúhelníku párů'!$W$8,"[Tabulka1].[Kritéria]","[Tabulka1].[Kritéria].&[13]"),"") -> 
A56: ='Porovnání v trojúhelníku párů'!A15 ->  | B56: ='Porovnání v trojúhelníku párů'!B15 ->  | C56: =IFERROR(GETPIVOTDATA("[Measures].[Míra 1]",'Porovnání v trojúhelníku párů'!$W$8,"[Tabulka1].[Kritéria]","[Tabulka1].[Kritéria].&[14]"),"") -> 
A57: ='Porovnání v trojúhelníku párů'!A16 ->  | B57: ='Porovnání v trojúhelníku párů'!B16 ->  | C57: =IFERROR(GETPIVOTDATA("[Measures].[Míra 1]",'Porovnání v trojúhelníku párů'!$W$8,"[Tabulka1].[Kritéria]","[Tabulka1].[Kritéria].&[15]"),"") -> 
